Workbook

Sheet Instructions
A1: INSTRUCTIONS
A3: Step 1 - Utilize the appropriate seed calculator spreadsheet (327, 643 etc) to design the proposed seed mixture. Additionally, fill in the following information on the design sheet:
A4: * Landowner Name
A5: * Planner Name
A6: * Tract and Farm Number as appropriate
A7: * Acreage to be seeded
A9: Step 2 - Upon validation that the mixture meets NRCS standards and specifications, Click the Green "Copy to Seed Plan" button in the upper right hand portion of the design spreadsheet.
A11: Step 3 - The Seeding Plan will be auto-populated with the selected species and quantities from the design spreadsheet as well as the information entered in Step 1.
A12: * Planner shall select the "Type of Seeding" from the drop down box.
A13: * If desired, unused rows may be hidden using the green "Hide/Unhide Extra Rows" button.
A15: Step 4 - Select the following recommendations from the appropriate drop down boxes.
A16: * Seed Dates
A17: * Seeding Method and Site Preparation
A18: * Companion Crop
A19: * Fertilizer Recommendation (Introduced Grass/Legume Mixtures Only)
A21: Step 5 - Select green "Print" button to print the seeding plan.

Sheet Master Page (hidden)
E1: 643 TALLGRASS PRAIRIE
E2: SEEDING DESIGN | J2: DATE | K2: =TODAY() -> 2022-06-16
A5: LANDOWNER | B5: Drake Mallard | I5: Tract No. | J5: 120 / 12
A7: PLANNER | B7: Sonny Day | I7: Field No. | J7: 22
I10: Background Information
A11: GRASS SPECIES | C11: PLANNED % | E11: POUNDS | F11: TOTAL SEEDS/ | G11: % BY SEEDS | J11: SEEDS/ | K11: COC | L11: COC
C12: OF GRASS COMPONENT BY | E12: PLS/AC. | F12: SQ. FOOT | G12: SQ./FT | J12: SQ. FOOT | K12: Selected | L12: Reference
C13: SEEDS/SQ. FOOT | G13: 1/ | H13: 2/ | J13: At 1 lb. Rate | L13: 6/
A14: COMMON NAME | B14: SCIENTIFIC NAME | C14: Planned | G14: Can't Exceed | H14: Planned %
A16: WARM SEASON 7/
A17: Big Bluestem | B17: Andropogon gerardii | C17: 0 to 25 | E17: 1 | F17: =J17*E17 -> 4.04040404 | G17: =PRODUCT(F17/F59,100) -> 1.633410673 | H17: =IF(AND(26>G17),"OK","HIGH") -> OK | I17: 176000 | J17: =PRODUCT(I17/43560) -> 4.04040404 | K17: =IF(E17=0,"",L17) -> 4 | L17: 4
A18: Blue Grama | B18: Bouteloua gracilis | C18: 0 to 20 | E18: 1 | F18: =J18*E18 -> 17.21763085 | G18: =PRODUCT(F18/F59,100) -> 6.960556845 | H18: =IF(AND(21>G18),"OK","HIGH") -> OK | I18: 750000 | J18: 17.21763085 | K18: 8 | L18: 8
A19: Indiangrass | B19: Sorgastrum nutans | C19: 0 to 25 | E19: 1 | F19: 4.43067034 | G19: =PRODUCT(F19/F59,100) -> 1.791183295 | H19: =IF(AND(26>G19),"OK","HIGH") -> OK | I19: 193000 | J19: 4.43067034 | K19: 4 | L19: 4
A20: Little Bluestem | B20: Schizachryrium scoparium | C20: 0 to 30 | E20: 1 | F20: 6.565656566 | G20: =PRODUCT(F20/F59,100) -> 2.654292343 | H20: =IF(AND(31>G20),"OK","HIGH") -> OK | I20: 286000 | J20: 6.565656566 | K20: 5 | L20: 5
A21: Prairie Cordgrass | B21: Spartina pectinata | C21: 0 to 5 | E21: 1 | F21: 4.201101928 | G21: =PRODUCT(F21/F59,100) -> 1.69837587 | H21: =IF(AND(6>G21),"OK","HIGH") -> OK | I21: 183000 | J21: 4.201101928 | K21: 4 | L21: 4
A22: Prairie Dropseed | B22: Sporopolus heterolepis | C22: 0 to 10 | E22: 1 | F22: 5.142332415 | G22: =PRODUCT(F22/F59,100) -> 2.078886311 | H22: =IF(AND(11>G22),"OK","HIGH") -> OK | I22: 224000 | J22: 5.142332415 | K22: 9 | L22: 9
A23: Prairie Sandreed | B23: Calamovilfa longifolia | C23: 0 to 30 | E23: 1 | F23: 6.313131313 | G23: =PRODUCT(F23/F59,100) -> 2.552204176 | H23: =IF(AND(31>G23),"OK","HIGH") -> OK | I23: 275000 | J23: 6.313131313 | K23: 7 | L23: 7
A24: Rough Dropseed | B24: Sporobolus compositus | C24: 0 to 10 | E24: 1 | F24: 11.01928375 | G24: =PRODUCT(F24/F59,100) -> 4.454756381 | H24: =IF(AND(11>G24),"OK","HIGH") -> OK | I24: 480000 | J24: 11.01928375 | K24: 9 | L24: 9
A25: Sideoats Grama | B25: Bouteloua curtipendula | C25: 0 to 30 | E25: 1 | F25: 4.132231405 | G25: =PRODUCT(F25/F59,100) -> 1.670533643 | H25: =IF(AND(31>G25),"OK","HIGH") -> OK | I25: 180000 | J25: 4.132231405 | K25: 6 | L25: 6
A26: Switchgrass | B26: Panicum virgatum | C26: 0 to 5 | E26: 1 | F26: 8.953168044 | G26: =PRODUCT(F26/F59,100) -> 3.619489559 | H26: =IF(AND(6>G26),"OK","HIGH") -> OK | I26: 390000 | J26: 8.953168044 | K26: 5 | L26: 5
C27: 0 to 10 | E27: 1 | F27: 0 | G27: =PRODUCT(F27/F59,100) -> 0 | H27: =IF(AND(11>G27),"OK","HIGH") -> OK | J27: 0 | K27: 0
C28: 0 to 10 | E28: 1 | F28: 0 | G28: =PRODUCT(F28/F59,100) -> 0 | H28: OK | J28: 0 | K28: 0
C29: 0 to 10 | E29: 1 | F29: 0 | G29: =PRODUCT(F29/F59,100) -> 0 | H29: OK | J29: 0 | K29: 0
C30: 0 to 10 | E30: 1 | F30: 0 | G30: =PRODUCT(F30/F59,100) -> 0 | H30: OK | J30: 0 | K30: 0
C31: 0 to 10 | E31: 1 | F31: 0 | G31: =PRODUCT(F31/F59,100) -> 0 | H31: OK | J31: =PRODUCT(I31/43560) -> 0 | K31: =IF(E31=0,"",L31) -> 0
C32: 0 to 10 | F32: 0 | G32: =PRODUCT(F32/F59,100) -> 0 | H32: OK | J32: =PRODUCT(I32/43560) -> 0 | K32: =IF(E32=0,"",L32) -> 
A33: COOL SEASON 7/
A34: Canada Bluejoint | B34: Calamagrostis canadensis | C34: 0 to 5 | E34: 1 | F34: 102.8466483 | G34: =PRODUCT(F34/F59,100) -> 41.57772622 | H34: =IF(AND(6>G34),"OK","HIGH") -> HIGH | I34: 4480000 | J34: =PRODUCT(I34/43560) -> 102.8466483 | K34: =IF(E34=0,"",L34) -> 5 | L34: 5
A35: Canada Wildrye | B35: Elymus canadensis | C35: 0 to 10 | E35: 1 | F35: 2.640036731 | G35: =PRODUCT(F35/F59,100) -> 1.067285383 | H35: =IF(AND(11>G35),"OK","HIGH") -> OK | I35: 115000 | J35: 2.640036731 | K35: 5 | L35: 5
A36: Green Needlegrass | B36: Stipa viridula | C36: 0 to 10 | E36: 1 | F36: 4.132231405 | G36: =PRODUCT(F36/F59,100) -> 1.670533643 | H36: =IF(AND(11>G36),"OK","HIGH") -> OK | I36: 180000 | J36: 4.132231405 | K36: 5 | L36: 5
A37: June grass | B37: Koleria macrantha | C37: 0 to 5 | E37: 1 | F37: 53.14508724 | G37: =PRODUCT(F37/F59,100) -> 21.48491879 | H37: =IF(AND(6>G37),"OK","HIGH") -> HIGH | I37: 2315000 | J37: 53.14508724 | K37: 7 | L37: 7
A38: Kalms Brome | B38: Bromus kalmii | C38: 0 to 10 | E38: 1 | F38: 2.938475666 | G38: =PRODUCT(F38/F59,100) -> 1.187935035 | H38: =IF(AND(11>G38),"OK","HIGH") -> OK | I38: 128000 | J38: 2.938475666 | K38: 5 | L38: 5
A39: Porcupine grass | B39: Hesperostipa spartea | C39: 0 to 10 | E39: 1 | F39: 1.308539945 | G39: =PRODUCT(F39/F59,100) -> 0.5290023202 | H39: =IF(AND(11>G39),"OK","HIGH") -> OK | I39: 57000 | J39: 1.308539945 | K39: 6 | L39: 6
A40: Slender Wheatgrass | B40: Agropyron caninum | C40: 0 to 10 | E40: 1 | F40: 3.558310376 | G40: =PRODUCT(F40/F59,100) -> 1.438515081 | H40: =IF(AND(11>G40),"OK","HIGH") -> OK | I40: 155000 | J40: 3.558310376 | K40: 5 | L40: 5
A41: Virginia Wildrye | B41: Elymus virginicus | C41: 0 to 10 | E41: 1 | F41: 2.203856749 | G41: =PRODUCT(F41/F59,100) -> 0.8909512761 | H41: =IF(AND(11>G41),"OK","HIGH") -> OK | I41: 96000 | J41: 2.203856749 | K41: 3 | L41: 3
A42: Western Wheatgrass | B42: Agropyron smithii | C42: 0 to 10 | E42: 1 | F42: 2.571166208 | G42: =PRODUCT(F42/F59,100) -> 1.039443155 | H42: =IF(AND(11>G42),"OK","HIGH") -> OK | I42: 112000 | J42: 2.571166208 | K42: 2 | L42: 2
C43: 0 to 10 | E43: 1 | F43: 0 | G43: =PRODUCT(F43/F59,100) -> 0 | H43: OK | J43: 0 | K43: 0
C44: 0 to 10 | E44: 1 | F44: 0 | G44: =PRODUCT(F44/F59,100) -> 0 | H44: OK | J44: 0 | K44: 0
C45: 0 to 10 | E45: 1 | F45: 0 | G45: =PRODUCT(F45/F59,100) -> 0 | H45: OK | J45: 0 | K45: 0
C46: 0 to 10 | E46: 1 | F46: 0 | G46: =PRODUCT(F46/F59,100) -> 0 | H46: OK | J46: 0 | K46: 0
C47: 0 to 10 | E47: 1 | F47: 0 | G47: =PRODUCT(F47/F59,100) -> 0 | H47: =IF(AND(11>G47),"OK","HIGH") -> OK | J47: =PRODUCT(I47/43560) -> 0 | K47: =IF(E47=0,"",L47) -> 0
C48: 0 to 10 | E48: 1 | F48: =J48*E48 -> 0 | G48: =PRODUCT(F48/F69,100) ->  | H48: =IF(AND(11>G48),"OK","HIGH") ->  | J48: =PRODUCT(I48/43560) -> 0 | K48: =IF(E48=0,"",L48) -> 0
C49: 0 to 10 | E49: 1 | F49: 0 | G49: =PRODUCT(F49/F69,100) ->  | J49: 0 | K49: 0
C50: 0 to 10 | E50: 1 | F50: 0 | G50: =PRODUCT(F50/F69,100) ->  | J50: 0 | K50: 0
C51: 0 to 10 | E51: 1 | F51: 0 | G51: =PRODUCT(F51/F69,100) ->  | J51: 0 | K51: 0
C52: 0 to 10 | E52: 1 | F52: 0 | G52: =PRODUCT(F52/F69,100) ->  | H52: =IF(AND(11>G52),"OK","HIGH") ->  | J52: =PRODUCT(I52/43560) -> 0 | K52: =IF(E52=0,"",L52) -> 0
C53: 0 to 10 | E53: 1 | F53: =J53*E53 -> 0 | G53: =PRODUCT(F53/F69,100) ->  | H53: =IF(AND(11>G53),"OK","HIGH") ->  | J53: =PRODUCT(I53/43560) -> 0 | K53: =IF(E53=0,"",L53) -> 0
C54: 0 to 10 | E54: 1 | F54: 0 | G54: =PRODUCT(F54/F69,100) ->  | J54: 0 | K54: 0
C55: 0 to 10 | E55: 1 | F55: 0 | G55: =PRODUCT(F55/F69,100) ->  | J55: 0 | K55: 0
C56: 0 to 10 | E56: 1 | F56: 0 | G56: =PRODUCT(F56/F69,100) ->  | H56: =IF(AND(11>G56),"OK","HIGH") ->  | J56: =PRODUCT(I56/43560) -> 0 | K56: =IF(E56=0,"",L56) -> 0
C57: 0 to 10 | E57: 1 | F57: 0 | G57: =PRODUCT(F57/F59,100) -> 0 | H57: =IF(AND(11>G57),"OK","HIGH") -> OK | J57: =PRODUCT(I57/43560) -> 0 | K57: =IF(E57=0,"",L57) -> 0
C59: TOTAL Pounds PLS | E59: =SUM(E17:E57) -> 39 | F59: =SUM(F17:F57) -> 247.3599633 | G59: =SUM(G17:G57) ->  | J59: AVE COC GRASS | K59: =AVERAGE(K17:K57) -> 2.666666667
G60: =SUM(G34:G57) -> 
F61: =IF(AND(20.1>G60,G60<100),"","COOL SEASON GRASSES EXCEED 20% OF THE MIX BASED ON SEEDS/FT") -> 
A67: 1/ ACTUAL SEEDS PER SQUARE FOOT SHALL BE WITHIN THE RANGE SPECIFIED IN PLANNED CONDITION
A68: 2/ NO MORE THAN 20% OF THE MIXTURE SHALL BE COMPRISED OF COOL SEASON GRASSES BASED ON SEEDS PER SQUARE FOOT.
I69: Background Information
A70: FORB SPECIES | E70: OUNCES | F70: TOTAL SEEDS/ | G70: % OF FORB MIX BY SEEDS/FT 3/ | I70: SEEDS/oz | J70: SEEDS/ | K70: COC | L70: COC | M70: Pollinator Monarch Preferred (Blue)
E71: PLS/AC. | F71: SQ. FOOT | J71: SQ. FOOT | K71: Selected | L71: Reference
J72: At 1 oz/ac Rate
A73: COMMON NAME | B73: SCIENTIFIC NAME
A74: DRY
A75: Bush Clover | B75: Lespedeza capitata | E75: 1 | F75: =J75*E75 -> 0.1836547291 | G75: =PRODUCT(F75/F152,100) -> 0.3819965047 | H75: =IF(AND(21>G75),"OK","HIGH") -> OK | I75: 8000 | J75: =PRODUCT(I75/43560) -> 0.1836547291 | K75: =IF(E75=0,"",L75) -> 3 | L75: 3 | M75: Late
A76: Culvers Root | B76: Veronicastrum virg. | E76: 1 | F76: 18.36547291 | G76: =PRODUCT(F76/F152,100) -> 38.19965047 | H76: =IF(AND(21>G76),"OK","HIGH") -> HIGH | I76: 800000 | J76: 18.36547291 | K76: 5 | L76: 5 | M76: Mid
A77: Dotted Blazingstar | B77: (Liatris punctata) | E77: 1 | F77: 0.160697888 | G77: =PRODUCT(F77/F152,100) -> 0.3342469416 | H77: OK | I77: 7000 | J77: 0.160697888 | K77: 8 | L77: 8 | M77: Mid
A78: Purple Coneflower, Narrow Leaved | B78: (Echinacea pallida var. angustifolia) | F78: 0 | G78: =PRODUCT(F78/F152,100) -> 0 | H78: OK | I78: 7000 | J78: 0.160697888 | L78: 8 | M78: Mid
A79: Prairie Cinquefoil | B79: (Potentilla arguta) | F79: 0 | G79: =PRODUCT(F79/F152,100) -> 0 | H79: OK | I79: 230000 | J79: 5.280073462 | L79: 8 | M79: Late
A80: Showy Penstemon | B80: (Penstemon grandifloris) | F80: 0 | G80: =PRODUCT(F80/F152,100) -> 0 | H80: OK | I80: 14000 | J80: 0.3213957759 | L80: 5 | M80: Early
A81: Stiff Sunflower | B81: (Helianthus paucifloris) | F81: 0 | G81: =PRODUCT(F81/F152,100) -> 0 | H81: =IF(AND(21>G81),"OK","HIGH") -> OK | I81: 4000 | J81: =PRODUCT(I81/43560) -> 0.09182736455 | L81: 5 | M81: Mid
A82: Silky Aster | B82: (Symphyotrichum sericeum) | F82: 0 | G82: =PRODUCT(F82/F152,100) -> 0 | H82: OK | I82: 26000 | J82: 0.5968778696 | L82: 10 | M82: Late
A83: DRY to MESIC
A84: Butterfly Weed | B84: (Asclepias tuberosa) | E84: 1 | F84: 0.0987144169 | G84: =PRODUCT(F84/F152,100) -> 0.2053231213 | H84: =IF(AND(21>G84),"OK","HIGH") -> OK | I84: 4300 | J84: =PRODUCT(I84/43560) -> 0.0987144169 | K84: =IF(E84=0,"",L84) -> 6 | L84: 6 | M84: Mid
A85: Canada Milkvetch | B85: (Astragalus canadensis) | E85: 1 | F85: 0.3902662994 | G85: =PRODUCT(F85/F152,100) -> 0.8117425726 | H85: =IF(AND(21>G85),"OK","HIGH") -> OK | I85: 17000 | J85: =PRODUCT(I85/43560) -> 0.3902662994 | K85: =IF(E85=0,"",L85) -> 4 | L85: 4 | M85: Mid
A86: Compass Plant | B86: (Silphium laciniatum) | E86: 1 | F86: 0.01515151515 | G86: =PRODUCT(F86/F152,100) -> 0.03151471164 | H86: OK | I86: 660 | J86: 0.01515151515 | K86: 7 | L86: 7 | M86: Mid
A87: Evening Primrose | B87: (Oenothera biennis) | E87: 1 | F87: 2.066115702 | G87: =PRODUCT(F87/F152,100) -> 4.297460678 | H87: OK | I87: 90000 | J87: 2.066115702 | K87: 4 | L87: 4 | M87: Mid
A88: Foxglove Beardtongue | B88: (Penstemon digitalis) | E88: 1 | F88: 2.984389348 | G88: =PRODUCT(F88/F152,100) -> 6.207443202 | H88: =IF(AND(21>G88),"OK","HIGH") -> OK | I88: 130000 | J88: 2.984389348 | K88: 5 | L88: 5 | M88: Early
A89: Heart-leaved Alexander | B89: (Zizia aptera) | E89: 1 | F89: 0.2754820937 | G89: =PRODUCT(F89/F152,100) -> 0.5729947571 | H89: OK | I89: 12000 | J89: 0.2754820937 | K89: 8 | L89: 8 | M89: Early
A90: Heath Aster | B90: (Symphyotrichum ericoides) | E90: 1 | F90: 4.591368228 | G90: =PRODUCT(F90/F152,100) -> 9.549912618 | H90: =IF(AND(21>G90),"OK","HIGH") -> OK | I90: 200000 | J90: =PRODUCT(I90/43560) -> 4.591368228 | K90: 3 | L90: 3 | M90: Late
A91: Hoary Vervain | B91: (Verbena stricta) | E91: 1 | F91: 0.6427915519 | G91: =PRODUCT(F91/F152,100) -> 1.336987767 | H91: OK | I91: 28000 | J91: 0.6427915519 | K91: 1 | L91: 1 | M91: Mid
A92: Lance-leaved Coreopsis | B92: (Coreopsis lanceolata) | E92: 1 | F92: 0.4591368228 | G92: =PRODUCT(F92/F152,100) -> 0.9549912618 | H92: OK | I92: 20000 | J92: 0.4591368228 | K92: 5 | L92: 5 | M92: Early
A93: Leadplant | B93: (Amorpha canescens) | E93: 1 | F93: 0.3673094582 | G93: =PRODUCT(F93/F152,100) -> 0.7639930095 | H93: OK | I93: 16000 | J93: 0.3673094582 | K93: 8 | L93: 8 | M93: Mid
A94: Long -headed Coneflower | B94: (Ratibida columnifera) | E94: 1 | F94: 0.9641873278 | G94: =PRODUCT(F94/F152,100) -> 2.00548165 | H94: OK | I94: 42000 | J94: 0.9641873278 | K94: 5 | L94: 5 | M94: Mid
A95: Ontario Blazingstar | B95: (Liatris cylindracea) | E95: 1 | F95: 0.3213957759 | G95: =PRODUCT(F95/F152,100) -> 0.6684938833 | H95: =IF(AND(21>G95),"OK","HIGH") -> OK | I95: 14000 | J95: =PRODUCT(I95/43560) -> 0.3213957759 | K95: 8 | L95: 8 | M95: Late
A96: Prairie Smoke | B96: (Geum triflorum) | E96: 1 | F96: 0.6198347107 | G96: =PRODUCT(F96/F152,100) -> 1.289238203 | H96: OK | I96: 27000 | J96: 0.6198347107 | K96: 8 | L96: 8 | M96: Early
A97: Rough Blazingstar | B97: (Liatris aspera) | E97: 1 | F97: 0.3673094582 | G97: =PRODUCT(F97/F152,100) -> 0.7639930095 | H97: OK | I97: 16000 | J97: 0.3673094582 | K97: 8 | L97: 8 | M97: Late
A98: Showy Goldenrod | B98: (Solidago speciosa) | E98: 1 | F98: 2.180899908 | G98: =PRODUCT(F98/F152,100) -> 4.536208494 | H98: OK | I98: 95000 | J98: 2.180899908 | K98: 7 | L98: 7 | M98: Late
A99: Smooth Aster | B99: (Symphyotrichum laeva) | E99: 1 | F99: 1.262626263 | G99: =PRODUCT(F99/F152,100) -> 2.62622597 | H99: OK | I99: 55000 | J99: 1.262626263 | K99: 7 | L99: 7 | M99: Late
A100: Spotted Beebalm | B100: (Monarda punctata) | E100: 1 | F100: 1.60697888 | G100: =PRODUCT(F100/F152,100) -> 3.342469416 | H100: OK | I100: 70000 | J100: 1.60697888 | K100: 6 | L100: 6 | M100: Mid
A101: Stiff Tickseed | B101: (Coreopsis palmata) | E101: 1 | F101: 0.2295684114 | G101: =PRODUCT(F101/F152,100) -> 0.4774956309 | H101: OK | I101: 10000 | J101: 0.2295684114 | K101: 7 | L101: 7 | M101: Mid
A102: Thimbleweed | B102: (Anemone cylindrica) | E102: 1 | F102: 0.5968778696 | G102: =PRODUCT(F102/F152,100) -> 1.24148864 | H102: OK | I102: 26000 | J102: 0.5968778696 | K102: 7 | L102: 7 | M102: Mid
A103: Whorled Milkweed | B103: (Asclepias verticillata) | E103: 1 | F103: 0.2525252525 | G103: =PRODUCT(F103/F152,100) -> 0.525245194 | H103: OK | I103: 11000 | J103: 0.2525252525 | K103: 4 | L103: 4 | M103: Mid-Late
A104: Wild Blue Phlox | B104: (Phlox divaricata) | E104: 1 | F104: 0.2869605142 | G104: =PRODUCT(F104/F152,100) -> 0.5968695386 | H104: =IF(AND(21>G104),"OK","HIGH") -> OK | I104: 12500 | J104: =PRODUCT(I104/43560) -> 0.2869605142 | K104: =IF(E104=0,"",L104) -> 7 | L104: 7 | M104: Early
A105: Wild Columbine | B105: (Aquilegia canadensis) | F105: 0 | G105: =PRODUCT(F105/F152,100) -> 0 | H105: OK | I105: 38000 | J105: 0.8723599633 | L105: 6 | M105: Early
A106: MESIC to WET
A107: Blanketflower | B107: (Gaillardia aristata) | F107: 0 | G107: =PRODUCT(F107/F152,100) -> 0 | H107: =IF(AND(21>G107),"OK","HIGH") -> OK | I107: 9813 | J107: =PRODUCT(I107/43560) -> 0.2252754821 | K107: =IF(E107=0,"",L107) ->  | L107: 2 | M107: Mid
A108: Canada Tick Trefoil | B108: (Desmodium canadense) | E108: 1 | F108: 0.1262626263 | G108: =PRODUCT(F108/F152,100) -> 0.262622597 | H108: OK | I108: 5500 | J108: 0.1262626263 | K108: 6 | L108: 6 | M108: Mid
A109: Common Ox-eye | B109: (Heliopsis helianthoides) | E109: 1 | F109: 0.1446280992 | G109: =PRODUCT(F109/F152,100) -> 0.3008222475 | H109: OK | I109: 6300 | J109: 0.1446280992 | K109: 4 | L109: 4 | M109: Mid
A110: Giant Sunflower | B110: (Helianthus giganteus) | E110: 1 | F110: 0.2295684114 | G110: =PRODUCT(F110/F152,100) -> 0.4774956309 | H110: OK | I110: 10000 | J110: 0.2295684114 | K110: 5 | L110: 5 | M110: Late
A111: Golden Alexanders | B111: (Zizia aurea) | E111: 1 | F111: 0.2525252525 | G111: =PRODUCT(F111/F152,100) -> 0.525245194 | H111: OK | I111: 11000 | J111: 0.2525252525 | K111: 6 | L111: 6 | M111: Early
A112: Great Blue Lobelia | B112: (Lobelia siphilitica) | F112: 0 | G112: =PRODUCT(F112/F152,100) -> 0 | H112: OK | I112: 500000 | J112: 11.47842057 | L112: 3 | M112: Late
A113: Ironweed | B113: (Veronia fasticulata) | F113: 0 | G113: =PRODUCT(F113/F152,100) -> 0 | H113: OK | I113: 24000 | J113: 0.5509641873 | L113: 3 | M113: Late
A114: Meadow Blazingstar | B114: (Liatris ligulistylis) | F114: 0 | G114: =PRODUCT(F114/F152,100) -> 0 | H114: =IF(AND(21>G114),"OK","HIGH") -> OK | I114: 11000 | J114: 0.2525252525 | L114: 8 | M114: Late
A115: Mountain Mint | B115: (Pycnanthemum virginianum) | F115: 0 | G115: =PRODUCT(F115/F152,100) -> 0 | H115: =IF(AND(21>G115),"OK","HIGH") -> OK | I115: 220000 | J115: =PRODUCT(I115/43560) -> 5.050505051 | L115: 8 | M115: Mid
A116: Partridge Pea | B116: (Cassia fasticulata) | F116: 0 | G116: =PRODUCT(F116/F152,100) -> 0 | H116: OK | I116: 2700 | J116: =PRODUCT(I116/43560) -> 0.06198347107 | L116: 1 | M116: Mid
A117: Rattlesnake Master | B117: (Eryngium yuccifolium) | F117: 0 | G117: =PRODUCT(F117/F152,100) -> 0 | H117: OK | I117: 7500 | J117: 0.1721763085 | L117: 8 | M117: Mid
A118: Sawtooth Sunflower | B118: (Helianthus grosseserratus) | F118: 0 | G118: =PRODUCT(F118/F152,100) -> 0 | H118: OK | I118: 10000 | J118: 0.2295684114 | L118: 4 | M118: Late
A119: Tall Blazingstar | B119: (Liatris pycnostachya) | F119: 0 | G119: =PRODUCT(F119/F152,100) -> 0 | H119: OK | I119: 11000 | J119: 0.2525252525 | L119: 6 | M119: Mid
A120: Virginia Bluebells | B120: (Mertenias virginica) | F120: 0 | G120: =PRODUCT(F120/F152,100) -> 0 | H120: =IF(AND(21>G120),"OK","HIGH") -> OK | I120: 9700 | J120: =PRODUCT(I120/43560) -> 0.222681359 | K120: =IF(E120=0,"",L120) ->  | L120: 6 | M120: Early
A121: Wild Bergamot | B121: (Monarda fistulosa) | F121: 0 | G121: =PRODUCT(F121/F152,100) -> 0 | H121: OK | I121: 70000 | J121: 1.60697888 | L121: 2 | M121: Mid
A122: Yellow Coneflower | B122: (Ratibida pinnata) | F122: 0 | G122: =PRODUCT(F122/F152,100) -> 0 | H122: OK | I122: 30000 | J122: 0.6887052342 | L122: 4 | M122: Mid
A123: WET
A124: Blue Vervain | B124: (Verbena hastata) | F124: 0 | G124: =PRODUCT(F124/F152,100) -> 0 | H124: =IF(AND(21>G124),"OK","HIGH") -> OK | I124: 93000 | J124: =PRODUCT(I124/43560) -> 2.134986226 | K124: =IF(E124=0,"",L124) ->  | L124: 3 | M124: Mid
A125: Boneset | B125: (Eupatorium perfoliatum) | F125: 0 | G125: =PRODUCT(F125/F152,100) -> 0 | H125: OK | I125: 160000 | J125: 3.673094582 | L125: 6 | M125: Late
A126: Cup Plant | B126: (Silphium perfoliatum) | F126: 0 | G126: =PRODUCT(F126/F152,100) -> 0 | H126: OK | I126: 1400 | J126: 0.03213957759 | L126: 1 | M126: Mid
A127: Joe-pye Weed | B127: (Eutrochium maculatum) | F127: 0 | G127: =PRODUCT(F127/F152,100) -> 0 | H127: OK | I127: 95000 | J127: 2.180899908 | L127: 5 | M127: Mid
A128: New England Aster | B128: (Symphyotrichum novae-angliae) | F128: 0 | G128: =PRODUCT(F128/F152,100) -> 0 | H128: OK | I128: 66000 | J128: 1.515151515 | L128: 3 | M128: Late
A129: Panicled Aster | B129: (Symphyotrichum lanceolatum) | F129: 0 | G129: =PRODUCT(F129/F152,100) -> 0 | H129: OK | I129: 156000 | J129: 3.581267218 | L129: 4 | M129: Late
A130: Sneezeweed | B130: (Helenium autumnale) | F130: 0 | G130: =PRODUCT(F130/F152,100) -> 0 | H130: =IF(AND(21>G130),"OK","HIGH") -> OK | I130: 130000 | J130: =PRODUCT(I130/43560) -> 2.984389348 | L130: 4 | M130: Late
A131: Swamp Milkweed | B131: (Asclepias incarnata) | F131: 0 | G131: =PRODUCT(F131/F152,100) -> 0 | H131: OK | I131: 4800 | J131: 0.1101928375 | L131: 4 | M131: Mid
A132: DRY to WET
A133: Anise Hyssop | B133: (Agastache foeniculum) | F133: 0 | G133: =PRODUCT(F133/F152,100) -> 0 | H133: =IF(AND(21>G133),"OK","HIGH") -> OK | I133: 91000 | J133: =PRODUCT(I133/43560) -> 2.089072544 | K133: =IF(E133=0,"",L133) ->  | L133: 4 | M133: Mid
A134: Black-eyed Susan | B134: (Rudbeckia hirta) | F134: 0 | G134: =PRODUCT(F134/F152,100) -> 0 | H134: =IF(AND(21>G134),"OK","HIGH") -> OK | I134: 92000 | J134: =PRODUCT(I134/43560) -> 2.112029385 | K134: =IF(E134=0,"",L134) ->  | L134: 2 | M134: Late
A135: Common Milkweed | B135: (Asclepias syriaca) | F135: 0 | G135: =PRODUCT(F135/F152,100) -> 0 | H135: =IF(AND(21>G135),"OK","HIGH") -> OK | I135: 4000 | J135: =PRODUCT(I135/43560) -> 0.09182736455 | L135: 1 | M135: Mid
A136: Grassleaved Goldenrod | B136: (Euthamia graminifolia ) | E136: 1 | F136: 8.034894399 | G136: =PRODUCT(F136/F152,100) -> 16.71234708 | H136: =IF(AND(21>G136),"OK","HIGH") -> OK | I136: 350000 | J136: =PRODUCT(I136/43560) -> 8.034894399 | K136: 4 | L136: 4 | M136: Mid
A137: Illinois Bundleflower | B137: (Desmanthus illinoensis) | F137: 0 | G137: =PRODUCT(F137/F152,100) -> 0 | H137: OK | I137: 4200 | J137: 0.09641873278 | L137: 4 | M137: Mid
A138: Purple Prairie Clover | B138: (Petalostemum purpurum) | F138: 0 | G138: =PRODUCT(F138/F152,100) -> 0 | H138: OK | I138: 18000 | J138: 0.4132231405 | L138: 8 | M138: Mid
A139: Maximillian Sunflower | B139: (Helianthus maximiliani) | F139: =J139*E139 -> 0 | G139: =PRODUCT(F139/F152,100) -> 0 | H139: OK | I139: 13000 | J139: 0.2984389348 | L139: 4 | M139: Late
A140: Stiff Goldenrod | B140: (Solidago rigida) | F140: 0 | G140: =PRODUCT(F140/F152,100) -> 0 | H140: OK | I140: 41000 | J140: 0.9412304867 | L140: 4 | M140: Late
A141: White Prairie Clover | B141: (Petalostemum candidum) | F141: 0 | G141: =PRODUCT(F141/F152,100) -> 0 | H141: OK | I141: 19000 | J141: 0.4361799816 | L141: 10 | M141: Mid
A142: Yarrow | B142: (Achillea millefolium) | F142: 0 | G142: =PRODUCT(F142/F152,100) -> 0 | H142: =IF(AND(21>G142),"OK","HIGH") -> OK | I142: 180000 | J142: =PRODUCT(I142/43560) -> 4.132231405 | L142: 1 | M142: Mid
A143: Yellow Giant Hyssop | B143: (Agastache nepetoides ) | F143: 0 | G143: =PRODUCT(F143/F152,100) -> 0 | H143: =IF(AND(21>G143),"OK","HIGH") -> OK | I143: 91000 | J143: =PRODUCT(I143/43560) -> 2.089072544 | L143: 4 | M143: Late
A144: ADDITIONAL APPROVED FORBS 7/
F145: 0 | G145: =PRODUCT(F145/F152,100) -> 0 | H145: =IF(AND(21>G145),"OK","HIGH") -> OK | J145: =PRODUCT(I145/43560) -> 0 | K145: =IF(E145=0,"",L145) -> 
F146: 0 | G146: =PRODUCT(F146/F152,100) -> 0 | H146: OK | J146: 0
F147: 0 | G147: =PRODUCT(F147/F152,100) -> 0 | H147: OK | J147: 0
F148: 0 | G148: =PRODUCT(F148/F152,100) -> 0 | H148: OK | J148: 0
F149: 0 | G149: =PRODUCT(F149/F152,100) -> 0 | H149: OK | J149: 0
F150: 0 | G150: =PRODUCT(F150/F152,100) -> 0 | H150: OK | J150: 0
C152: TOTAL OUNCES PLS | E152: =SUM(E75:E150) -> 29 | F152: =SUM(F75:F150) -> 48.07759412 | G152: =SUM(G75:G150) -> 100 | J152: AVE COC FORB | K152: =AVERAGE(K75:K150) -> 5.724137931
F155: 3/ Individual species not to exceed 20% of the forb component by seeds/ft
B157: TOTAL SEEDS/FT 4/ | C157: =SUM(F59,F152) -> 295.4375574 | E157: =IF(AND(35<C157),"OK","LOW") -> OK | F157: 4/ Minimum 35-40 seeds/square foot
B159: PERCENT GRASS 5/ | C159: =PRODUCT(F59/C157)*100 -> 83.72664784 | E159: =IF(AND(60>C159),"","HIGH") -> HIGH | F159: 5/ Maximum 60% grasses
B161: PERCENT FLOWER | C161: =PRODUCT(F152/C157)*100 -> 16.27335216 | F161: 6/ Assignment of Coefficients
F162: 0 to 3 : Plants with a high range of ecological tolerances/found in a variety of plant communities
B163: AVE. COC - MIX | C163: =AVERAGE(K17:K57,K75:K150) -> 3.970588235 | F163: 4 to 6 : Plants with an intermediate range of ecological tolerances/ associated with a specific plant community
F164: 7 to 8 : Plants with a poor range of ecological tolerances/associated with advanced successional stage
B165: SPECIES RICHNESS | C165: =COUNT(K17:K57,K75:K150) -> 68 | F165: 9 to 10 : Plants with a high degree of fidelity to a narrow range of pristine habitats
F167: 7/ Consult with the appropriate NRCS Area Resource Conservationist or Biologist for prior approval of additional species.

Sheet Seeding Plan
A2: Seeding Plan
A4: Name | E4: Date | F4: =TODAY() -> 2022-06-16
A6: Prepared by | E6: Tract No./ Field No. | I6: VISIBLE
A10: Type of Seeding: | C10: Field Area (acres):
A15: Seeding Mix Summary
A17: Grasses/ Sedges | B17: Common Name | C17: Scientific Name | D17: PLS Lbs/Acre | F17: PLS Lbs
A18: 1 | F18: =IF(D18>0, D$10*D18," ") -> 
A19: 2 | F19: =IF(D19>0, D$10*D19," ") -> 
A20: 3
A21: 4
A22: 5
A23: 6
A24: 7 | H24: CREP CP-2 Establishment of Permanent Native Grass and Forbs
A25: 8 | H25: Monarch Food Plot (CP-2)
A26: 9 | H26: CREP CP-21 Filter Strip
A27: 10 | H27: CREP CP-23 Wetland Restoration - Floodplain
A28: 11 | H28: CREP CP-23 Wetland Restoration Buffer
A29: 12 | H29: CREP CP-23A Wetland Restoration - Non-Floodplain
A30: 13 | H30: CREP CP-23A Wetland Restoration Buffer
A31: 14
A32: 15
A33: 16
A34: 17
A35: 18 | H35: Cool Season Grasses and Legumes. North: Spring 4/1 -6/15. Late Summer 7/15 - 9/1.
A36: 19 | H36: Cool Season Grasses and Legumes. South: Spring 4/1 - 6/1. Late Summer 8/1 - 9/10.
A37: 20 | H37: Native Grasses and Forbs: Statewide 5/15 - 6/30
A38: 21 | H38: Native Grasses and Forbs: Dormant 11/1 or a consistent soil temperature of <50 degrees F.
A39: 22 | H39: Conventional or no-till drill into prepared seedbed: Seedbed should be tilled and clean of all vegetation and weeds, packed and firm enough to make a 1/2' or less boot imprint.
A40: 23
A41: 24 | H41: No-till drill into existing sod: Seedbed preparation will vary from site to site. Most common seedbed preparation methods can included heavy grazing, light tillage, herbicide application, or a combination. Existing vegetation should be as severly suppresed for grass seeds to germinate and grow without excessive competition.
A42: 25
C43: SUBTOTAL GRASS/SEDGE | D43: =SUM(D18:D42) -> 0 | F43: =SUM(F18:F42) -> 0 | H43: Broadcasting via terrigator or vicon seeder: Seedbed should be tilled and clean of all vegetation and weeds, packed and firm enough to make a 1/2' or less boot imprint. Pack or light harrow following application to ensure proper seed to soil contact. Broadcast seed at 1.5 times the recommended drilled rate.
C44: DRILLED RATE1 | H44: Ryegrass < 2.5lbs/ac
A45: Forbs/ Legumes | B45: Common Name | C45: Scientific Name | D45: PLS Oz/Acre | E45: PLS Oz | F45: PLS Lbs | H45: Winter Wheat 1/2 BU/Ac
A46: 1 | E46: =IF(D46<>"",D46*$D$10,"") ->  | F46: =IF(D46>0, D$10*D46/16," ") ->  | H46: Oats 3/4-1.25 BU/Ac
A47: 2 | E47: =IF(D47<>"",D47*$D$10,"") ->  | F47: =IF(D47>0, D$10*D47/16," ") ->  | H47: Barley 1/2 - 1 BU/Ac
A48: 3 | H48: None
A49: 4
A50: 5
A51: 6
A52: 7
A53: 8
A54: 9
A55: 10
A56: 11
A57: 12
A58: 13
A59: 14
A60: 15
A61: 16
A62: 17
A63: 18
A64: 19
A65: 20
A66: 21
A67: 22
A68: 23
A69: 24
A70: 25
A71: 26
A72: 27
A73: 28
A74: 29
A75: 30
A76: 31
A77: 32
A78: 33
A79: 34
A80: 35
A81: 36
A82: 37
A83: 38
A84: 39
A85: 40
C86: SUBTOTAL FORBS | D86: =SUM(D46:D85) -> 0 | E86: =SUM(E46:E85) -> 0 | F86: =SUM(F46:F85) -> 0
C87: DRILLED RATE 1
A88: 1/ Broadcast seeding rate is 1.5 times the drilled rate.
A89: Seeding Dates
A92: Seeding Method and Seedbed Preparation
A97: Companion Crop
G101: HIDDEN
F102: HIDDEN
A103: Nitrogen Recommended (units/ac)
A104: Grass w/Legume >20% | C104: 0
A105: Grass w/Legume <20% | C105: 60
A107: Phosphorous Recommendations for Grass w/ >20% Legume (lb/ac)
A108: Bray | B108: 0-5 | C108: 6-10 | D108: 11-15 | E108: 16-20 | F108: 21+
A109: Olsen | B109: 0-3 | C109: 4-7 | D109: 8-11 | E109: 12-15 | F109: 16+
B110: 35 | C110: 25 | D110: 15 | E110: 0 | F110: 0
A111: Phosphorous Recommendations for Grass w/ <20% Legume (lb/ac)
A112: Bray | B112: 0-5 | C112: 6-10 | D112: 11-15 | E112: 16-20 | F112: 21+
A113: Olsen | B113: 0-3 | C113: 4-7 | D113: 8-11 | E113: 12-15 | F113: 16+
B114: 40 | C114: 30 | D114: 20 | E114: 10 | F114: 0
A116: Potassium Recommendations for Grass w/ >20% Legume (lb/ac)
A117: Soil Test Result | B117: 0-40 | C117: 41-80 | D117: 81-120 | E117: 121-160 | F117: 161+
B118: 95 | C118: 65 | D118: 40 | E118: 15 | F118: 0
A119: Potassium Recommendations for Grass w/ <20% Legume (lb/ac)
A120: Soil Test Result | B120: 0-40 | C120: 41-80 | D120: 81-120 | E120: 121-160 | F120: 161+
B121: 90 | C121: 60 | D121: 30 | E121: 0 | F121: 0
A123: If soil tests are not available, fertilizer will be applied in equal amounts of Nitrogen-Phosphorus-Potassium (N-P-K) for grass and legume establishment. An example fertilizer blend would be 60-60-60.

Sheet 643 CREP CP23A Buffer
A1: CREP 643 TALLGRASS PRAIRIE + MONARCH
A2: Seeding Design
I3: DATE | J3: =TODAY() -> 2022-06-16
A5: LANDOWNER | H5: TRACT/FIELD
A7: PLANNER | H7: ACRES SEEDED
I10: Background Information
A11: GRASS SPECIES | C11: PLANNED % | E11: POUNDS | F11: TOTAL SEEDS/ | G11: % OF GRASS MIX BY SEEDS/FT 1/ | J11: SEEDS/ | K11: COC | L11: COC | M11: Pounds PLS
C12: OF GRASS COMPONENT BY | E12: PLS/AC. | F12: SQ. FOOT | J12: SQ. FOOT | K12: Selected | L12: Reference
C13: SEEDS/SQ. FOOT | J13: At 1 lb. Rate | L13: 6/
C14: Planned | G14: Can't Exceed | H14: Planned %
A16: WARM SEASON 7/
A17: Big Bluestem | B17: Andropogon gerardii | C17: 0 to 25 | E17: 0 | F17: =PRODUCT(J17,E17) -> 0 | G17: =PRODUCT(F17/F59,100) ->  | H17: =IF(AND(26>G17),"OK","HIGH") ->  | I17: 176000 | J17: =PRODUCT(I17/43560) -> 4.04040404 | K17: =IF(E17=0,"",L17) ->  | L17: 4 | M17: =PRODUCT(J7*E17) -> 0
A18: Blue Grama | B18: Bouteloua gracilis | C18: 0 to 20 | E18: 0 | F18: 0 | G18: =PRODUCT(F18/F59,100) ->  | H18: =IF(AND(21>G18),"OK","HIGH") ->  | I18: 750000 | J18: 17.21763085 | L18: 8 | M18: =PRODUCT(J7*E18) -> 0
A19: Indiangrass | B19: Sorgastrum nutans | C19: 0 to 25 | E19: 0 | F19: 0 | G19: =PRODUCT(F19/F59,100) ->  | H19: =IF(AND(26>G19),"OK","HIGH") ->  | I19: 193000 | J19: 4.43067034 | L19: 4 | M19: =PRODUCT(J7*E19) -> 0
A20: Little Bluestem | B20: Schizachryrium scoparium | C20: 0 to 30 | E20: 0 | F20: 0 | G20: =PRODUCT(F20/F59,100) ->  | H20: =IF(AND(31>G20),"OK","HIGH") ->  | I20: 286000 | J20: 6.565656566 | L20: 5 | M20: =PRODUCT(J7*E20) -> 0
A21: Prairie Cordgrass | B21: Spartina pectinata | C21: 0 to 5 | E21: 0 | F21: 0 | G21: =PRODUCT(F21/F59,100) ->  | H21: =IF(AND(6>G21),"OK","HIGH") ->  | I21: 183000 | J21: 4.201101928 | L21: 4 | M21: =PRODUCT(J7*E21) -> 0
A22: Prairie Dropseed | B22: Sporopolus heterolepis | C22: 0 to 10 | E22: 0 | F22: 0 | G22: =PRODUCT(F22/F59,100) ->  | H22: =IF(AND(11>G22),"OK","HIGH") ->  | I22: 224000 | J22: 5.142332415 | L22: 9 | M22: =PRODUCT(J7*E22) -> 0
A23: Prairie Sandreed | B23: Calamovilfa longifolia | C23: 0 to 30 | E23: 0 | F23: 0 | G23: =PRODUCT(F23/F59,100) ->  | H23: =IF(AND(31>G23),"OK","HIGH") ->  | I23: 275000 | J23: 6.313131313 | L23: 7 | M23: =PRODUCT(J7*E23) -> 0
A24: Rough Dropseed | B24: Sporobolus compositus | C24: 0 to 10 | E24: 0 | F24: 0 | G24: =PRODUCT(F24/F59,100) ->  | H24: =IF(AND(11>G24),"OK","HIGH") ->  | I24: 480000 | J24: 11.01928375 | L24: 9 | M24: =PRODUCT(J7*E24) -> 0
A25: Sideoats Grama | B25: Bouteloua curtipendula | C25: 0 to 30 | E25: 0 | F25: 0 | G25: =PRODUCT(F25/F59,100) ->  | H25: =IF(AND(31>G25),"OK","HIGH") ->  | I25: 180000 | J25: 4.132231405 | L25: 6 | M25: =PRODUCT(J7*E25) -> 0
A26: Switchgrass | B26: Panicum virgatum | C26: 0 to 5 | E26: 0 | F26: 0 | G26: =PRODUCT(F26/F59,100) ->  | H26: =IF(AND(6>G26),"OK","HIGH") ->  | I26: 390000 | J26: 8.953168044 | L26: 5 | M26: =PRODUCT(J7*E26) -> 0
C27: 0 to 10 | E27: 0 | F27: 0 | G27: =PRODUCT(F27/F59,100) ->  | H27: =IF(AND(11>G27),"OK","HIGH") ->  | J27: 0 | M27: =PRODUCT(J7*E27) -> 0
C28: 0 to 10 | E28: 0 | F28: 0 | G28: =PRODUCT(F28/F59,100) ->  | J28: 0 | M28: =PRODUCT(J7*E28) -> 0
C29: 0 to 10 | E29: 0 | F29: 0 | G29: =PRODUCT(F29/F59,100) ->  | J29: 0 | M29: =PRODUCT(J7*E29) -> 0
C30: 0 to 10 | E30: 0 | F30: 0 | G30: =PRODUCT(F30/F59,100) ->  | J30: 0 | M30: =PRODUCT(J7*E30) -> 0
C31: 0 to 10 | E31: 0 | F31: =PRODUCT(J31,E31) -> 0 | G31: =PRODUCT(F31/F59,100) ->  | J31: =PRODUCT(I31/43560) -> 0 | K31: =IF(E31=0,"",L31) ->  | M31: =PRODUCT(J7*E31) -> 0
C32: 0 to 10 | E32: 0 | F32: =PRODUCT(J32,E32) -> 0 | G32: =PRODUCT(F32/F59,100) ->  | J32: =PRODUCT(I32/43560) -> 0 | K32: =IF(E32=0,"",L32) ->  | M32: =PRODUCT(J7*E32) -> 0
A33: COOL SEASON 2/ 7/
A34: Canada Bluejoint | B34: Calamagrostis canadensis | C34: 0 to 5 | E34: 0 | F34: =PRODUCT(J34,E34) -> 0 | G34: =PRODUCT(F34/F59,100) ->  | H34: =IF(AND(6>G34),"OK","HIGH") ->  | I34: 4480000 | J34: =PRODUCT(I34/43560) -> 102.8466483 | K34: =IF(E34=0,"",L34) ->  | L34: 5 | M34: =PRODUCT(J7*E34) -> 0
A35: Canada Wildrye | B35: Elymus canadensis | C35: 0 to 10 | E35: 0 | F35: 0 | G35: =PRODUCT(F35/F59,100) ->  | H35: =IF(AND(11>G35),"OK","HIGH") ->  | I35: 115000 | J35: 2.640036731 | L35: 5 | M35: =PRODUCT(J7*E35) -> 0
A36: Green Needlegrass | B36: Stipa viridula | C36: 0 to 10 | E36: 0 | F36: 0 | G36: =PRODUCT(F36/F59,100) ->  | H36: =IF(AND(11>G36),"OK","HIGH") ->  | I36: 180000 | J36: 4.132231405 | L36: 5 | M36: =PRODUCT(J7*E36) -> 0
A37: June grass | B37: Koleria macrantha | C37: 0 to 5 | E37: 0 | F37: 0 | G37: =PRODUCT(F37/F59,100) ->  | H37: =IF(AND(6>G37),"OK","HIGH") ->  | I37: 2315000 | J37: 53.14508724 | L37: 7 | M37: =PRODUCT(J7*E37) -> 0
A38: Kalms Brome | B38: Bromus kalmii | C38: 0 to 10 | E38: 0 | F38: 0 | G38: =PRODUCT(F38/F59,100) ->  | H38: =IF(AND(11>G38),"OK","HIGH") ->  | I38: 128000 | J38: 2.938475666 | L38: 5 | M38: =PRODUCT(J7*E38) -> 0
A39: Porcupine grass | B39: Hesperostipa spartea | C39: 0 to 10 | E39: 0 | F39: 0 | G39: =PRODUCT(F39/F59,100) ->  | H39: =IF(AND(11>G39),"OK","HIGH") ->  | I39: 57000 | J39: 1.308539945 | L39: 6 | M39: =PRODUCT(J7*E39) -> 0
A40: Slender Wheatgrass | B40: Agropyron caninum | C40: 0 to 10 | E40: 0 | F40: 0 | G40: =PRODUCT(F40/F59,100) ->  | H40: =IF(AND(11>G40),"OK","HIGH") ->  | I40: 155000 | J40: 3.558310376 | L40: 5 | M40: =PRODUCT(J7*E40) -> 0
A41: Virginia Wildrye | B41: Elymus virginicus | C41: 0 to 10 | E41: 0 | F41: 0 | G41: =PRODUCT(F41/F59,100) ->  | H41: =IF(AND(11>G41),"OK","HIGH") ->  | I41: 96000 | J41: 2.203856749 | L41: 3 | M41: =PRODUCT(J7*E41) -> 0
A42: Western Wheatgrass | B42: Agropyron smithii | C42: 0 to 10 | E42: 0 | F42: 0 | G42: =PRODUCT(F42/F59,100) ->  | H42: =IF(AND(11>G42),"OK","HIGH") ->  | I42: 112000 | J42: 2.571166208 | L42: 2 | M42: =PRODUCT(J7*E42) -> 0
C43: 0 to 10 | E43: 0 | F43: 0 | G43: =PRODUCT(F43/F59,100) ->  | J43: 0 | M43: =PRODUCT(J7*E43) -> 0
C44: 0 to 10 | E44: 0 | F44: 0 | G44: =PRODUCT(F44/F59,100) ->  | J44: 0 | M44: =PRODUCT(J7*E44) -> 0
C45: 0 to 10 | E45: 0 | F45: 0 | G45: =PRODUCT(F45/F59,100) ->  | J45: 0 | M45: =PRODUCT(J7*E45) -> 0
C46: 0 to 10 | E46: 0 | F46: 0 | G46: =PRODUCT(F46/F59,100) ->  | J46: 0 | M46: =PRODUCT(J7*E46) -> 0
C47: 0 to 10 | E47: 0 | F47: =PRODUCT(J47,E47) -> 0 | G47: =PRODUCT(F47/F59,100) ->  | H47: =IF(AND(11>G47),"OK","HIGH") ->  | J47: =PRODUCT(I47/43560) -> 0 | K47: =IF(E47=0,"",L47) ->  | M47: =PRODUCT(J7*E47) -> 0
C48: 0 to 10 | E48: 0 | F48: =PRODUCT(J48,E48) -> 0 | G48: =PRODUCT(F48/F59,100) ->  | H48: =IF(AND(11>G48),"OK","HIGH") ->  | J48: =PRODUCT(I48/43560) -> 0 | K48: =IF(E48=0,"",L48) ->  | M48: =Q72 -> 0
C49: 0 to 10 | E49: 0 | F49: 0 | G49: =PRODUCT(F49/F59,100) ->  | J49: 0 | M49: =PRODUCT(I13*E49) -> 0
C50: 0 to 10 | E50: 0 | F50: 0 | G50: =PRODUCT(F50/F59,100) ->  | J50: 0 | M50: =PRODUCT(I13*E50) -> 0
C51: 0 to 10 | E51: 0 | F51: 0 | G51: =PRODUCT(F51/F59,100) ->  | J51: 0 | M51: =PRODUCT(I14*E51) -> 0
C52: 0 to 10 | E52: 0 | F52: 0 | G52: =PRODUCT(F52/F59,100) ->  | J52: 0 | M52: =PRODUCT(I16*E52) -> 0
C53: 0 to 10 | E53: 0 | F53: 0 | G53: =PRODUCT(F53/F59,100) ->  | J53: 0 | M53: =PRODUCT(I16*E53) -> 0
C54: 0 to 10 | E54: 0 | F54: 0 | G54: =PRODUCT(F54/F59,100) ->  | J54: 0 | M54: =PRODUCT(I16*E54) -> 0
C55: 0 to 10 | E55: 0 | F55: 0 | G55: =PRODUCT(F55/F59,100) ->  | J55: 0 | M55: =PRODUCT(I16*E55) -> 0
C56: 0 to 10 | E56: 0 | F56: =PRODUCT(J56,E56) -> 0 | G56: =PRODUCT(F56/F59,100) ->  | H56: =IF(AND(11>G56),"OK","HIGH") ->  | J56: =PRODUCT(I56/43560) -> 0 | K56: =IF(E56=0,"",L56) ->  | M56: =PRODUCT(I16*E56) -> 0
C57: 0 to 10 | E57: 0 | F57: 0 | G57: =PRODUCT(F57/F59,100) ->  | J57: 0 | M57: =PRODUCT(I13*E57) -> 0
C59: TOTAL Pounds PLS | E59: =SUM(E17:E57) -> 0 | F59: =SUM(F17:F57) -> 0 | G59: =SUM(G17:G57) ->  | J59: AVE COC GRASS | K59: =AVERAGE(K17:K57) -> 
G60: =SUM(G34:G57) -> 
F61: =IF(AND(20.1>G60,G60<100),"","COOL SEASON GRASSES EXCEED 20% OF THE MIX BASED ON SEEDS/FT") -> 
A62: 1/ ACTUAL SEEDS PER SQUARE FOOT SHALL BE WITHIN THE RANGE SPECIFIED IN PLANNED CONDITION
A63: 2/ NO MORE THAN 20% OF THE MIXTURE SHALL BE COMPRISED OF COOL SEASON GRASSES BASED ON SEEDS PER SQUARE FOOT.
I69: Background Information
A70: FORB SPECIES | E70: OUNCES | F70: TOTAL SEEDS/ | G70: % OF FORB MIX BY SEEDS/FT 3/ | I70: SEEDS/oz | J70: SEEDS/ | K70: COC | L70: COC | M70: Pollinator Monarch Preferred (X) | N70: Bloom Period | O70: Ounces PLS
E71: PLS/AC. | F71: SQ. FOOT | J71: SQ. FOOT | K71: Selected | L71: Reference
J72: At 1 oz/ac Rate
A74: DRY | M74: 9/
A75: Bush Clover | B75: Lespedeza capitata | E75: 0 | F75: =PRODUCT(J75,E75) -> 0 | G75: =PRODUCT(F75/F152,100) ->  | H75: =IF(AND(21>G75),"OK","HIGH") ->  | I75: 8000 | J75: =PRODUCT(I75/43560) -> 0.1836547291 | K75: =IF(E75=0,"",L75) ->  | L75: 3 | N75: Late | O75: =PRODUCT(J7*E75) -> 0
A76: Culvers Root | B76: Veronicastrum virginicum | E76: 0 | F76: 0 | G76: =PRODUCT(F76/F152,100) ->  | H76: =IF(AND(21>G76),"OK","HIGH") ->  | I76: 800000 | J76: 18.36547291 | L76: 5 | M76: H | N76: Mid | O76: =PRODUCT(J7*E76) -> 0
A77: Dotted Blazingstar | B77: Liatris punctata | E77: 0 | F77: 0 | G77: =PRODUCT(F77/F152,100) ->  | I77: 7000 | J77: 0.160697888 | L77: 8 | M77: H | N77: Mid | O77: =PRODUCT(J7*E77) -> 0
A78: Purple Coneflower, Narrow Leaved | B78: Echinacea pallida var. angustifolia | E78: 0 | F78: 0 | G78: =PRODUCT(F78/F152,100) ->  | I78: 7000 | J78: 0.160697888 | L78: 8 | M78: H | N78: Mid | O78: =PRODUCT(J7*E78) -> 0
A79: Prairie Cinquefoil | B79: Potentilla arguta | E79: 0 | F79: 0 | G79: =PRODUCT(F79/F152,100) ->  | I79: 230000 | J79: 5.280073462 | L79: 8 | N79: Late | O79: =PRODUCT(J7*E79) -> 0
A80: Showy Penstemon | B80: Penstemon grandifloris | E80: 0 | F80: 0 | G80: =PRODUCT(F80/F152,100) ->  | I80: 14000 | J80: 0.3213957759 | L80: 5 | N80: Early | O80: =PRODUCT(J7*E80) -> 0
A81: Stiff Sunflower | B81: Helianthus paucifloris | E81: 0 | F81: 0 | G81: =PRODUCT(F81/F152,100) ->  | H81: =IF(AND(21>G81),"OK","HIGH") ->  | I81: 4000 | J81: =PRODUCT(I81/43560) -> 0.09182736455 | L81: 5 | M81: H | N81: Mid | O81: =PRODUCT(J7*E81) -> 0
A82: Silky Aster | B82: Symphyotrichum sericeum | E82: 0 | F82: 0 | G82: =PRODUCT(F82/F152,100) ->  | I82: 26000 | J82: 0.5968778696 | L82: 10 | N82: Late | O82: =PRODUCT(J7*E82) -> 0
A83: DRY to MESIC
A84: Butterfly Weed | B84: Asclepias tuberosa | E84: 0 | F84: =PRODUCT(J84,E84) -> 0 | G84: =PRODUCT(F84/F152,100) ->  | H84: =IF(AND(21>G84),"OK","HIGH") ->  | I84: 4300 | J84: =PRODUCT(I84/43560) -> 0.0987144169 | K84: =IF(E84=0,"",L84) ->  | L84: 6 | M84: LH | N84: Mid | O84: =PRODUCT(J7*E84) -> 0
A85: Canada Milkvetch | B85: Astragalus canadensis | C85: Legume | E85: 0 | F85: =PRODUCT(J85,E85) -> 0 | G85: =PRODUCT(F85/F152,100) ->  | H85: =IF(AND(21>G85),"OK","HIGH") ->  | I85: 17000 | J85: =PRODUCT(I85/43560) -> 0.3902662994 | K85: =IF(E85=0,"",L85) ->  | L85: 4 | N85: Mid | O85: =PRODUCT(J7*E85) -> 0
A86: Compass Plant | B86: Silphium laciniatum | E86: 0 | F86: 0 | G86: =PRODUCT(F86/F152,100) ->  | I86: 660 | J86: 0.01515151515 | L86: 7 | M86: H | N86: Mid | O86: =PRODUCT(J7*E86) -> 0
A87: Evening Primrose | B87: Oenothera biennis | E87: 0 | F87: 0 | G87: =PRODUCT(F87/F152,100) ->  | I87: 90000 | J87: 2.066115702 | L87: 4 | N87: Mid | O87: =PRODUCT(J7*E87) -> 0
A88: Foxglove Beardtongue | B88: Penstemon digitalis | E88: 0 | F88: =PRODUCT(J88,E88) -> 0 | G88: =PRODUCT(F88/F152,100) ->  | H88: =IF(AND(21>G88),"OK","HIGH") ->  | I88: 130000 | J88: 2.984389348 | L88: 5 | N88: Early | O88: =PRODUCT(J7*E88) -> 0
A89: Heart-leaved Alexander | B89: Zizia aptera | E89: 0 | F89: 0 | G89: =PRODUCT(F89/F152,100) ->  | I89: 12000 | J89: 0.2754820937 | L89: 8 | N89: Early | O89: =PRODUCT(J7*E89) -> 0
A90: Heath Aster | B90: Symphyotrichum ericoides | E90: 0 | F90: 0 | G90: =PRODUCT(F90/F152,100) ->  | H90: =IF(AND(21>G90),"OK","HIGH") ->  | I90: 200000 | J90: =PRODUCT(I90/43560) -> 4.591368228 | L90: 3 | N90: Late | O90: =PRODUCT(J7*E90) -> 0
A91: Hoary Vervain | B91: Verbena stricta | E91: 0 | F91: 0 | G91: =PRODUCT(F91/F152,100) ->  | I91: 28000 | J91: 0.6427915519 | L91: 1 | M91: H | N91: Mid | O91: =PRODUCT(J7*E91) -> 0
A92: Lance-leaved Coreopsis | B92: Coreopsis lanceolata | E92: 0 | F92: 0 | G92: =PRODUCT(F92/F152,100) ->  | I92: 20000 | J92: 0.4591368228 | L92: 5 | M92: H | N92: Early | O92: =PRODUCT(J7*E92) -> 0
A93: Leadplant | B93: Amorpha canescens | C93: Legume | E93: 0 | F93: 0 | G93: =PRODUCT(F93/F152,100) ->  | I93: 16000 | J93: 0.3673094582 | L93: 8 | M93: H | N93: Mid | O93: =PRODUCT(J7*E93) -> 0
A94: Long -headed Coneflower | B94: Ratibida columnifera | E94: 0 | F94: 0 | G94: =PRODUCT(F94/F152,100) ->  | I94: 42000 | J94: 0.9641873278 | L94: 5 | N94: Mid | O94: =PRODUCT(J7*E94) -> 0
A95: Ontario Blazingstar | B95: Liatris cylindracea | E95: 0 | F95: 0 | G95: =PRODUCT(F95/F152,100) ->  | H95: =IF(AND(21>G95),"OK","HIGH") ->  | I95: 14000 | J95: =PRODUCT(I95/43560) -> 0.3213957759 | L95: 8 | M95: H | N95: Late | O95: =PRODUCT(J7*E95) -> 0
A96: Prairie Smoke | B96: Geum triflorum | E96: 0 | F96: 0 | G96: =PRODUCT(F96/F152,100) ->  | I96: 27000 | J96: 0.6198347107 | L96: 8 | N96: Early | O96: =PRODUCT(J7*E96) -> 0
A97: Rough Blazingstar | B97: Liatris aspera | E97: 0 | F97: 0 | G97: =PRODUCT(F97/F152,100) ->  | I97: 16000 | J97: 0.3673094582 | L97: 8 | M97: VH | N97: Late | O97: =PRODUCT(J7*E97) -> 0
A98: Showy Goldenrod | B98: Solidago speciosa | E98: 0 | F98: 0 | G98: =PRODUCT(F98/F152,100) ->  | I98: 95000 | J98: 2.180899908 | L98: 7 | M98: VH | N98: Late | O98: =PRODUCT(J7*E98) -> 0
A99: Smooth Aster | B99: Symphyotrichum laeva | E99: 0 | F99: 0 | G99: =PRODUCT(F99/F152,100) ->  | I99: 55000 | J99: 1.262626263 | L99: 7 | M99: H | N99: Late | O99: =PRODUCT(J7*E99) -> 0
A100: Spotted Beebalm | B100: Monarda punctata | E100: 0 | F100: 0 | G100: =PRODUCT(F100/F152,100) ->  | I100: 70000 | J100: 1.60697888 | L100: 6 | M100: H | N100: Mid | O100: =PRODUCT(J7*E100) -> 0
A101: Stiff Tickseed | B101: Coreopsis palmata | E101: 0 | F101: 0 | G101: =PRODUCT(F101/F152,100) ->  | I101: 10000 | J101: 0.2295684114 | L101: 7 | M101: H | N101: Mid | O101: =PRODUCT(J7*E101) -> 0
A102: Thimbleweed | B102: Anemone cylindrica | E102: 0 | F102: 0 | G102: =PRODUCT(F102/F152,100) ->  | I102: 26000 | J102: 0.5968778696 | L102: 7 | N102: Mid | O102: =PRODUCT(J7*E102) -> 0
A103: Whorled Milkweed | B103: Asclepias verticillata | E103: 0 | F103: 0 | G103: =PRODUCT(F103/F152,100) ->  | I103: 11000 | J103: 0.2525252525 | L103: 4 | M103: LH | N103: Mid-Late | O103: =PRODUCT(J7*E103) -> 0
A104: Wild Blue Phlox | B104: Phlox divaricata | E104: 0 | F104: =PRODUCT(J104,E104) -> 0 | G104: =PRODUCT(F104/F152,100) ->  | H104: =IF(AND(21>G104),"OK","HIGH") ->  | I104: 12500 | J104: =PRODUCT(I104/43560) -> 0.2869605142 | K104: =IF(E104=0,"",L104) ->  | L104: 7 | M104: H | N104: Early | O104: =PRODUCT(J7*E104) -> 0
A105: Wild Columbine | B105: Aquilegia canadensis | E105: 0 | F105: 0 | G105: =PRODUCT(F105/F152,100) ->  | I105: 38000 | J105: 0.8723599633 | L105: 6 | N105: Early | O105: =PRODUCT(J7*E105) -> 0
A106: MESIC to WET
A107: Blanketflower | B107: Gaillardia aristata | E107: 0 | F107: =PRODUCT(J107,E107) -> 0 | G107: =PRODUCT(F107/F152,100) ->  | H107: =IF(AND(21>G107),"OK","HIGH") ->  | I107: 9813 | J107: =PRODUCT(I107/43560) -> 0.2252754821 | K107: =IF(E107=0,"",L107) ->  | L107: 2 | N107: Mid | O107: =PRODUCT(J7*E107) -> 0
A108: Canada Tick Trefoil | B108: Desmodium canadense | C108: Legume | E108: 0 | F108: 0 | G108: =PRODUCT(F108/F152,100) ->  | I108: 5500 | J108: 0.1262626263 | L108: 6 | N108: Mid | O108: =PRODUCT(J7*E108) -> 0
A109: Common Ox-eye | B109: Heliopsis helianthoides | E109: 0 | F109: 0 | G109: =PRODUCT(F109/F152,100) ->  | I109: 6300 | J109: 0.1446280992 | L109: 4 | M109: H | N109: Mid | O109: =PRODUCT(J7*E109) -> 0
A110: Giant Sunflower | B110: Helianthus giganteus | E110: 0 | F110: 0 | G110: =PRODUCT(F110/F152,100) ->  | I110: 10000 | J110: 0.2295684114 | L110: 5 | M110: H | N110: Late | O110: =PRODUCT(J7*E110) -> 0
A111: Golden Alexanders | B111: Zizia aurea | E111: 0 | F111: 0 | G111: =PRODUCT(F111/F152,100) ->  | I111: 11000 | J111: 0.2525252525 | L111: 6 | N111: Early | O111: =PRODUCT(J7*E111) -> 0
A112: Great Blue Lobelia | B112: Lobelia siphilitica | E112: 0 | F112: 0 | G112: =PRODUCT(F112/F152,100) ->  | I112: 500000 | J112: 11.47842057 | L112: 3 | M112: H | N112: Late | O112: =PRODUCT(J7*E112) -> 0
A113: Ironweed | B113: Veronia fasticulata | E113: 0 | F113: 0 | G113: =PRODUCT(F113/F152,100) ->  | I113: 24000 | J113: 0.5509641873 | L113: 3 | M113: H | N113: Late | O113: =PRODUCT(J7*E113) -> 0
A114: Meadow Blazingstar | B114: Liatris ligulistylis | E114: 0 | F114: 0 | G114: =PRODUCT(F114/F152,100) ->  | H114: =IF(AND(21>G114),"OK","HIGH") ->  | I114: 11000 | J114: 0.2525252525 | L114: 8 | M114: VH | N114: Late | O114: =PRODUCT(J7*E114) -> 0
A115: Mountain Mint | B115: Pycnanthemum virginianum | E115: 0 | F115: 0 | G115: =PRODUCT(F115/F152,100) ->  | H115: =IF(AND(21>G115),"OK","HIGH") ->  | I115: 220000 | J115: =PRODUCT(I115/43560) -> 5.050505051 | L115: 8 | N115: Mid | O115: =PRODUCT(J7*E115) -> 0
A116: Partridge Pea | B116: Cassia fasticulata | C116: Legume | E116: 0 | F116: 0 | G116: =PRODUCT(F116/F152,100) ->  | I116: 2700 | J116: =PRODUCT(I116/43560) -> 0.06198347107 | L116: 1 | N116: Mid | O116: =PRODUCT(J7*E116) -> 0
A117: Rattlesnake Master | B117: Eryngium yuccifolium | E117: 0 | F117: 0 | G117: =PRODUCT(F117/F152,100) ->  | I117: 7500 | J117: 0.1721763085 | L117: 8 | M117: H | N117: Mid | O117: =PRODUCT(J7*E117) -> 0
A118: Sawtooth Sunflower | B118: Helianthus grosseserratus | E118: 0 | F118: 0 | G118: =PRODUCT(F118/F152,100) ->  | I118: 10000 | J118: 0.2295684114 | L118: 4 | M118: H | N118: Late | O118: =PRODUCT(J7*E118) -> 0
A119: Tall Blazingstar | B119: Liatris pycnostachya | E119: 0 | F119: 0 | G119: =PRODUCT(F119/F152,100) ->  | I119: 11000 | J119: 0.2525252525 | L119: 6 | M119: H | N119: Mid | O119: =PRODUCT(J7*E119) -> 0
A120: Virginia Bluebells | B120: Mertenias virginica | E120: 0 | F120: =PRODUCT(J120,E120) -> 0 | G120: =PRODUCT(F120/F152,100) ->  | H120: =IF(AND(21>G120),"OK","HIGH") ->  | I120: 9700 | J120: =PRODUCT(I120/43560) -> 0.222681359 | K120: =IF(E120=0,"",L120) ->  | L120: 6 | M120: H | N120: Early | O120: =PRODUCT(J7*E120) -> 0
A121: Wild Bergamot | B121: Monarda fistulosa | E121: 0 | F121: 0 | G121: =PRODUCT(F121/F152,100) ->  | I121: 70000 | J121: 1.60697888 | L121: 2 | M121: VH | N121: Mid | O121: =PRODUCT(J7*E121) -> 0
A122: Yellow Coneflower | B122: Ratibida pinnata | E122: 0 | F122: 0 | G122: =PRODUCT(F122/F152,100) ->  | I122: 30000 | J122: 0.6887052342 | L122: 4 | N122: Mid | O122: =PRODUCT(J7*E122) -> 0
A123: WET
A124: Blue Vervain | B124: Verbena hastata | E124: 0 | F124: =PRODUCT(J124,E124) -> 0 | G124: =PRODUCT(F124/F152,100) ->  | H124: =IF(AND(21>G124),"OK","HIGH") ->  | I124: 93000 | J124: =PRODUCT(I124/43560) -> 2.134986226 | K124: =IF(E124=0,"",L124) ->  | L124: 3 | N124: Mid | O124: =PRODUCT(J7*E124) -> 0
A125: Boneset | B125: Eupatorium perfoliatum | E125: 0 | F125: 0 | G125: =PRODUCT(F125/F152,100) ->  | I125: 160000 | J125: 3.673094582 | L125: 6 | M125: H | N125: Late | O125: =PRODUCT(J7*E125) -> 0
A126: Cup Plant | B126: Silphium perfoliatum | E126: 0 | F126: 0 | G126: =PRODUCT(F126/F152,100) ->  | I126: 1400 | J126: 0.03213957759 | L126: 1 | M126: H | N126: Mid | O126: =PRODUCT(J7*E126) -> 0
A127: Joe-pye Weed | B127: Eutrochium maculatum | E127: 0 | F127: 0 | G127: =PRODUCT(F127/F152,100) ->  | I127: 95000 | J127: 2.180899908 | L127: 5 | M127: VH | N127: Mid | O127: =PRODUCT(J7*E127) -> 0
A128: New England Aster | B128: Symphyotrichum novae-angliae | E128: 0 | F128: 0 | G128: =PRODUCT(F128/F152,100) ->  | I128: 66000 | J128: 1.515151515 | L128: 3 | M128: VH | N128: Late | O128: =PRODUCT(J7*E128) -> 0
A129: Panicled Aster | B129: Symphyotrichum lanceolatum | E129: 0 | F129: 0 | G129: =PRODUCT(F129/F152,100) ->  | I129: 156000 | J129: 3.581267218 | L129: 4 | N129: Late | O129: =PRODUCT(J7*E129) -> 0
A130: Sneezeweed | B130: Helenium autumnale | E130: 0 | F130: 0 | G130: =PRODUCT(F130/F152,100) ->  | H130: =IF(AND(21>G130),"OK","HIGH") ->  | I130: 130000 | J130: =PRODUCT(I130/43560) -> 2.984389348 | L130: 4 | N130: Late | O130: =PRODUCT(J7*E130) -> 0
A131: Swamp Milkweed | B131: Asclepias incarnata | E131: 0 | F131: 0 | G131: =PRODUCT(F131/F152,100) ->  | I131: 4800 | J131: 0.1101928375 | L131: 4 | M131: LH | N131: Mid | O131: =PRODUCT(J7*E131) -> 0
A132: DRY to WET
A133: Anise Hyssop | B133: Agastache foeniculum | E133: 0 | F133: =PRODUCT(J133,E133) -> 0 | G133: =PRODUCT(F133/F152,100) ->  | H133: =IF(AND(21>G133),"OK","HIGH") ->  | I133: 91000 | J133: =PRODUCT(I133/43560) -> 2.089072544 | K133: =IF(E133=0,"",L133) ->  | L133: 4 | N133: Mid | O133: =PRODUCT(J7*E133) -> 0
A134: Black-eyed Susan | B134: Rudbeckia hirta | E134: 0 | F134: =PRODUCT(J134,E134) -> 0 | G134: =PRODUCT(F134/F152,100) ->  | H134: =IF(AND(21>G134),"OK","HIGH") ->  | I134: 92000 | J134: =PRODUCT(I134/43560) -> 2.112029385 | K134: =IF(E134=0,"",L134) ->  | L134: 2 | M134: H | N134: Late | O134: =PRODUCT(J7*E134) -> 0
A135: Common Milkweed | B135: Asclepias syriaca | E135: 0 | F135: 0 | G135: =PRODUCT(F135/F152,100) ->  | H135: =IF(AND(21>G135),"OK","HIGH") ->  | I135: 4000 | J135: =PRODUCT(I135/43560) -> 0.09182736455 | L135: 1 | M135: LH | N135: Mid | O135: =PRODUCT(J7*E135) -> 0
A136: Grassleaved Goldenrod | B136: Euthamia graminifolia | E136: 0 | F136: 0 | G136: =PRODUCT(F136/F152,100) ->  | H136: =IF(AND(21>G136),"OK","HIGH") ->  | I136: 350000 | J136: =PRODUCT(I136/43560) -> 8.034894399 | L136: 4 | M136: H | N136: Mid | O136: =PRODUCT(J7*E136) -> 0
A137: Illinois Bundleflower | B137: Desmanthus illinoensis | E137: 0 | F137: 0 | G137: =PRODUCT(F137/F152,100) ->  | I137: 4200 | J137: 0.09641873278 | L137: 4 | N137: Mid | O137: =PRODUCT(J7*E137) -> 0
A138: Purple Prairie Clover | B138: Petalostemum purpurum | C138: Legume | E138: 0 | F138: 0 | G138: =PRODUCT(F138/F152,100) ->  | I138: 18000 | J138: 0.4132231405 | L138: 8 | N138: Mid | O138: =PRODUCT(J7*E138) -> 0
A139: Maximillian Sunflower | B139: Helianthus maximiliani | E139: 0 | F139: 0 | G139: =PRODUCT(F139/F152,100) ->  | I139: 13000 | J139: 0.2984389348 | L139: 4 | M139: H | N139: Late | O139: =PRODUCT(J7*E139) -> 0
A140: Stiff Goldenrod | B140: Solidago rigida | E140: 0 | F140: 0 | G140: =PRODUCT(F140/F152,100) ->  | I140: 41000 | J140: 0.9412304867 | L140: 4 | M140: VH | N140: Late | O140: =PRODUCT(J7*E140) -> 0
A141: White Prairie Clover | B141: Petalostemum candidum | C141: Legume | E141: 0 | F141: 0 | G141: =PRODUCT(F141/F152,100) ->  | I141: 19000 | J141: 0.4361799816 | L141: 10 | M141: H | N141: Mid | O141: =PRODUCT(J7*E141) -> 0
A142: Yarrow | B142: Achillea millefolium | E142: 0 | F142: 0 | G142: =PRODUCT(F142/F152,100) ->  | H142: =IF(AND(21>G142),"OK","HIGH") ->  | I142: 180000 | J142: =PRODUCT(I142/43560) -> 4.132231405 | L142: 1 | N142: Mid | O142: =PRODUCT(J7*E142) -> 0
A143: Yellow Giant Hyssop | B143: Agastache nepetoides | E143: 0 | F143: 0 | G143: =PRODUCT(F143/F152,100) ->  | H143: =IF(AND(21>G143),"OK","HIGH") ->  | I143: 91000 | J143: =PRODUCT(I143/43560) -> 2.089072544 | L143: 4 | M143: H | N143: Late | O143: =PRODUCT(J7*E143) -> 0
A144: ADDITIONAL APPROVED FORBS 7/
E145: 0 | F145: =PRODUCT(J145,E145) -> 0 | G145: =PRODUCT(F145/F152,100) ->  | H145: =IF(AND(21>G145),"OK","HIGH") ->  | J145: =PRODUCT(I145/43560) -> 0 | K145: =IF(E145=0,"",L145) ->  | O145: =PRODUCT(J7*E145) -> 0
E146: 0 | F146: 0 | G146: =PRODUCT(F146/F152,100) ->  | J146: 0 | O146: =PRODUCT(J7*E146) -> 0
E147: 0 | F147: 0 | G147: =PRODUCT(F147/F152,100) ->  | J147: 0 | O147: =PRODUCT(J7*E147) -> 0
E148: 0 | F148: 0 | G148: =PRODUCT(F148/F152,100) ->  | J148: 0 | O148: =PRODUCT(J7*E148) -> 0
E149: 0 | F149: 0 | G149: =PRODUCT(F149/F152,100) ->  | J149: 0 | O149: =PRODUCT(J7*E149) -> 0
E150: 0 | F150: 0 | G150: =PRODUCT(F150/F152,100) ->  | J150: 0 | O150: =PRODUCT(J7*E150) -> 0
C152: TOTAL OUNCES PLS | E152: =SUM(E75:E150) -> 0 | F152: =SUM(F75:F150) -> 0 | G152: =SUM(G75:G150) ->  | J152: AVE COC | K152: =AVERAGE(K75:K150) -> 
F154: 3/ Individual species not to exceed 20% of the forb component by seeds/ft
A155: TOTAL SEEDS/FT4 | C155: =SUM(F59,F152) -> 0 | E155: =IF(AND(35<C155),"OK","LOW") -> LOW | F155: 4/ Minimum 35-40 seeds/square foot
A156: PERCENT GRASS5 | C156: =PRODUCT(F59/C155)*100 ->  | E156: =IF(AND(60>C156),"","HIGH") ->  | F156: 5/ Maximum 60% grasses
A157: PERCENT FLOWER | C157: =PRODUCT(F152/C155)*100 ->  | F157: 6/ Assignment of Coefficients
A158: AVE. COC - MIX | C158: =AVERAGE(K17:K57,K75:K150) ->  | F158: 0 to 3 : Plants with a high range of ecological tolerances/found in a variety of plant communities
A159: SPECIES RICHNESS | C159: =COUNT(K17:K57,K75:K150) -> 0 | F159: 4 to 6 : Plants with an intermediate range of ecological tolerances/ associated with a specific plant community
A160: MILKWEED %8 | C160: =SUM((F84+F103+F131+F135)/C155)*100 ->  | E160: =IF(AND(1<C160),"OK","LOW") ->  | F160: 7 to 8 : Plants with a poor range of ecological tolerances/associated with advanced successional stage
A161: % FORBS THAT ARE MONARCH PREFERRED9 | C161: =PRODUCT(E168/E169)*100 ->  | F161: 9 to 10 : Plants with a high degree of fidelity to a narrow range of pristine habitats
F162: 7/ Consult with the appropriate NRCS Area Resource Conservationist or Biologist for prior approval of additional species.
F164: 8/ A minimum 1% of the total mix(based on seeds/ft2) will be comprised of milkweeds. A. syriaca shall comprise at least 50% of milkweeds
F166: 9/ A minimum 60% of the forbs must be Pollinator/Monarch preferred (Column M).
A167: Total Forb Species by Bloom Period
A168: Early Total | C168: =COUNTIF(E80, ">0")+ COUNTIF(E88:E89, ">0")+ COUNTIF(E92, ">0") + COUNTIF(E96, ">0")+ COUNTIF(E104:E105, ">0") +COUNTIF(E111,">0") +COUNTIF(E120,">0")+COUNTIFS(E145:E150,">0",N145:N150,"Early") -> 0 | D168: =COUNTIF(E76:E78, ">0")+ COUNTIF(E81, ">0")+ COUNTIF(E84, ">0") + COUNTIF(E86, ">0")+ COUNTIF(E91:E93, ">0") +COUNTIF(E95,">0") +COUNTIF(E97:E101,">0")+COUNTIF(E103:E104,">0")+COUNTIFS(E109:E110,">0")+COUNTIFS(E112:E114,">0")+COUNTIFS(E117:E121,">0")+COUNTIFS(E125:E128,">0")+COUNTIFS(E131,">0")+COUNTIFS(E134:E136,">0")+COUNTIFS(E139:E141,">0")+COUNTIFS(E143,">0")+COUNTIFS(E145:E150,">0",M145:M150,"X") -> 0 | E168: =COUNTIFS(E75:E150,">0",M75:M150,"=H")+COUNTIFS(E75:E150,">0",M75:M150,"=VH")+COUNTIFS(E75:E150,">0",M75:M150,"=LH") -> 0
A169: Mid Total | C169: =COUNTIF(E76:E78,">0")+COUNTIF(E81,">0")+COUNTIF(E84:E87,">0")+COUNTIF(E91,">0")+COUNTIF(E93:E94,">0")+COUNTIF(E100:E102,">0")+COUNTIF(E107:E109,">0")+COUNTIF(E115:E117,">0")+COUNTIF(E119,">0")+COUNTIF(E121:E124,">0")+COUNTIF(E126:E127,">0")+COUNTIF(E131:E133,">0")+COUNTIF(E135:E138,">0")+COUNTIF(E141:E142,">0")+COUNTIFS(E145:E150,">0",N145:N150,"Mid") -> 0 | D169: =SUM(C168:C170) -> 0 | E169: =SUM(C168,C169,C170) -> 0
A170: Late Total | C170: =COUNTIF(E75,">0") + COUNTIF(E79,">0") +COUNTIF(E82,">0") +COUNTIF(E90,">0") + COUNTIF(E95,">0") + COUNTIF(E97:E99,">0")+ COUNTIF(E103,">0") + COUNTIF(E110,">0") + COUNTIF(E112:E114,">0")+COUNTIF(E118,">0") +COUNTIF(E125,">0")+COUNTIF(E128:E130,">0")+COUNTIF(E134,">0")+COUNTIF(E139:E140,">0")+COUNTIF(E143,">0")+COUNTIFS(E145:E150,">0",N145:N150,"Late") -> 0

Sheet 327 CREP CP2 Monarch Food Plot
A1: CREP 327 CP-2 MONARCH FOOD PLOT
A2: Seeding Design
I3: DATE | J3: =TODAY() -> 2022-06-16
A5: LANDOWNER | H5: TRACT/FIELD
A7: PLANNER | H7: ACRES SEEDED
I11: Background Information
A12: GRASS SPECIES | C12: PLANNED % | E12: POUNDS | F12: TOTAL SEEDS/ | G12: % OF GRASS MIX BY SEEDS/FT 1/ | I12: SEEDS/lb. | J12: SEEDS/ | K12: POUNDS PLS
C13: OF GRASS COMPONENT BY | E13: PLS/AC. | F13: SQ. FOOT | J13: SQ. FOOT
C14: SEEDS/SQ. FOOT | E14: DRILL | J14: At 1 lb/ac Rate
C15: Planned | G15: Can't Exceed | H15: Planned %
A17: Big Bluestem or Indiangrass | C17: 0 to 25 | E17: 0 | F17: =PRODUCT(J17,E17) -> 0 | G17: =PRODUCT(F17/F59,100) ->  | H17: =IF(AND(26>G17),"OK","HIGH") ->  | I17: 176000 | J17: =PRODUCT(I17/43560) -> 4.04040404 | K17: =PRODUCT(J7,E17) -> 0
A18: Canada/Virginia Wildrye | C18: 0 to 10 | E18: 0 | F18: =PRODUCT(J18,E18) -> 0 | G18: =PRODUCT(F18/F59,100) ->  | H18: =IF(AND(11>G18),"OK","HIGH") ->  | I18: 96000 | J18: =PRODUCT(I18/43560) -> 2.203856749 | K18: =PRODUCT(J7,E18) -> 0
A19: Little Bluestem | B19: Schizachryrium scoparium | C19: 0 to 50 | E19: 0 | F19: 0 | G19: =PRODUCT(F19/F59,100) ->  | H19: =IF(AND(51>G19),"OK","HIGH") ->  | I19: 286000 | J19: 6.565656566 | K19: =PRODUCT(J7,E19) -> 0
A20: Prairie Dropseed | B20: Sporopolus heterolepis | C20: 0 to 50 | E20: 0 | F20: 0 | G20: =PRODUCT(F20/F59,100) ->  | H20: =IF(AND(51>G20),"OK","HIGH") ->  | I20: 224000 | J20: 5.142332415 | K20: =PRODUCT(J7,E20) -> 0
A21: Rough Dropseed | B21: Sporobolus compositus | C21: 0 to 25 | E21: 0 | F21: 0 | G21: =PRODUCT(F21/F59,100) ->  | H21: =IF(AND(26>G21),"OK","HIGH") ->  | I21: 480000 | J21: 11.01928375 | K21: =PRODUCT(J7,E21) -> 0
A22: Side-oats grama | B22: Bouteloua curtipendula | C22: 0 to 25 | E22: 0 | F22: 0 | G22: =PRODUCT(F22/F59,100) ->  | H22: =IF(AND(26>G22),"OK","HIGH") ->  | I22: 180000 | J22: 4.132231405 | K22: =PRODUCT(J7,E22) -> 0
E23: 0
E24: 0
E25: 0
E26: 0
E27: 0
E28: 0
E29: 0
E30: 0
E31: 0
E32: 0
E33: 0
E34: 0
E35: 0
E36: 0
E37: 0
E38: 0
E39: 0
E40: 0
E41: 0
E42: 0
E43: 0
E44: 0
E45: 0
E46: 0
E47: 0
E48: 0
E49: 0
E50: 0
E51: 0
E52: 0
E53: 0
E54: 0
E55: 0
E56: 0
E57: 0
A59: TOTAL - Pounds PLS Drill Seeding | E59: =SUM(E17:E22) -> 0 | F59: =SUM(F17:F22) -> 0 | G59: =SUM(G17:G22) -> 
A68: 1/ ACTUAL SEEDS PER SQUARE FOOT SHALL BE WITHIN THE RANGE SPECIFIED IN PLANNED CONDITION
I69: Background Information
A70: FORB SPECIES | E70: OUNCES | F70: TOTAL SEEDS/ | G70: % OF FORB MIX BY SEEDS/FT 2/ | I70: SEEDS/oz | J70: SEEDS/ | K70: Bloom Period | L70: BLOOM | M70: MONARCH | N70: OUNCES PLS
E71: PLS/AC. | F71: SQ. FOOT | J71: SQ. FOOT | K71: Early = April-June | L71: COLOR
E72: DRILL | J72: At 1 oz/ac Rate | K72: Mid = June-August
K73: Late = August-Oct.
A74: DRY TO MESIC | M74: 4/
A75: Butterfly Weed | B75: Asclepias tuberosa | E75: 0 | F75: =PRODUCT(J75,E75) -> 0 | G75: =PRODUCT(F75/F151,100) ->  | H75: =IF(AND(21>G75),"OK","HIGH") ->  | I75: 4300 | J75: =PRODUCT(I75/43560) -> 0.0987144169 | K75: Mid | L75: Orange | M75: LH | N75: =PRODUCT(J7,E75) -> 0
A76: Compass Plant | B76: Sliphium lactinatum | E76: 0 | F76: 0 | G76: =PRODUCT(F76/F151,100) ->  | I76: 660 | J76: 0.01515151515 | K76: Mid | L76: Yellow | M76: H | N76: =PRODUCT(J7,E76) -> 0
A77: Culvers Root | B77: Veronicastrum virg. | E77: 0 | F77: 0 | G77: =PRODUCT(F77/F151,100) ->  | I77: 800000 | J77: 18.36547291 | K77: Mid | L77: White | M77: H | N77: =PRODUCT(J7,E77) -> 0
A78: Dotted Blazingstar | B78: Liatris punctata | E78: 0 | F78: 0 | G78: =PRODUCT(F78/F151,100) ->  | I78: 7000 | J78: 0.160697888 | K78: Mid | L78: Rose | M78: H | N78: =PRODUCT(J7,E78) -> 0
A79: Foxglove Beardtongue | B79: Penstemon digitalis | E79: 0 | F79: 0 | G79: =PRODUCT(F79/F151,100) ->  | I79: 130000 | J79: 2.984389348 | K79: Early | L79: Yellow | N79: =PRODUCT(J7,E79) -> 0
A80: Ground Plum | B80: Astragalus crassicarpus | E80: 0 | F80: 0 | G80: =PRODUCT(F80/F151,100) ->  | I80: 5200 | J80: 0.1193755739 | K80: Early | L80: Purple | N80: =PRODUCT(J7,E80) -> 0
A81: Hoary Vervain | B81: Verbena stricta | E81: 0 | F81: 0 | G81: =PRODUCT(F81/F151,100) ->  | I81: 28000 | J81: 0.6427915519 | K81: Mid | L81: Blue | M81: H | N81: =PRODUCT(J7,E81) -> 0
A82: Lance-leaved Coreopsis | B82: Coreopsis lanceolata | E82: 0 | F82: 0 | G82: =PRODUCT(F82/F151,100) ->  | I82: 20000 | J82: 0.4591368228 | K82: Early | L82: White | M82: H | N82: =PRODUCT(J7,E82) -> 0
A83: Leadplant | B83: Amorpha canescens | C83: Legume | E83: 0 | F83: 0 | G83: =PRODUCT(F83/F151,100) ->  | I83: 16000 | J83: 0.3673094582 | K83: Mid | L83: Purple | M83: H | N83: =PRODUCT(J7,E83) -> 0
A84: Ontario Blazingstar | B84: Liatris cylindracea | E84: 0 | F84: 0 | G84: =PRODUCT(F84/F151,100) ->  | I84: 14000 | J84: 0.3213957759 | K84: Late | L84: Purple | M84: H | N84: =PRODUCT(J7,E84) -> 0
A85: Purple Coneflower, Narrow Leaved | B85: Echinacea angustifolia | E85: 0 | F85: 0 | G85: =PRODUCT(F85/F151,100) ->  | I85: 7000 | J85: 0.160697888 | K85: Mid | L85: Pink | M85: H | N85: =PRODUCT(J7,E85) -> 0
A86: Purple Coneflower, Eastern | B86: Echinacea purpurea | E86: 0 | F86: 0 | G86: =PRODUCT(F86/F151,100) ->  | I86: 7000 | J86: 0.160697888 | K86: Mid | L86: Pink | M86: VH | N86: =PRODUCT(J7,E86) -> 0
A87: Rough Blazingstar | B87: Liatris aspera | E87: 0 | F87: 0 | G87: =PRODUCT(F87/F151,100) ->  | I87: 16000 | J87: 0.3673094582 | K87: Late | L87: Purple | M87: VH | N87: =PRODUCT(J7,E87) -> 0
A88: Showy Goldenrod | B88: Solidago speciosa | E88: 0 | F88: 0 | G88: =PRODUCT(F88/F151,100) ->  | I88: 95000 | J88: 2.180899908 | K88: Late | L88: Yellow | M88: VH | N88: =PRODUCT(J7,E88) -> 0
A89: Large-flowered Penstemon | B89: Penstemon grandifloris | E89: 0 | F89: 0 | G89: =PRODUCT(F89/F151,100) ->  | I89: 14000 | J89: 0.3213957759 | K89: Early | L89: Lavender | N89: =PRODUCT(J7,E89) -> 0
A90: Sky Blue Aster | B90: Symphyotrichum oolentangiense | E90: 0 | F90: 0 | G90: =PRODUCT(F90/F151,100) ->  | I90: 80000 | J90: 1.836547291 | K90: Late | L90: Blue | M90: H | N90: =PRODUCT(J7,E90) -> 0
A91: Smooth Aster | B91: Symphyotrichum laeva | E91: 0 | F91: 0 | G91: =PRODUCT(F91/F151,100) ->  | I91: 55000 | J91: 1.262626263 | K91: Late | L91: Blue | M91: H | N91: =PRODUCT(J7,E91) -> 0
A92: Spotted Beebalm | B92: Monarda punctata | E92: 0 | F92: 0 | G92: =PRODUCT(F92/F151,100) ->  | I92: 70000 | J92: 1.60697888 | K92: Mid | L92: Lavender | M92: H | N92: =PRODUCT(J7,E92) -> 0
A93: Stiff Sunflower | B93: Helianthus pacuifloris | E93: 0 | F93: 0 | G93: =PRODUCT(F93/F151,100) ->  | I93: 4000 | J93: 0.09182736455 | K93: Mid | L93: Yellow | M93: H | N93: =PRODUCT(J7,E93) -> 0
A94: Stiff Tickseed | B94: Coreopsis palmata | E94: 0 | F94: 0 | G94: =PRODUCT(F94/F151,100) ->  | I94: 10000 | J94: 0.2295684114 | K94: Mid | L94: Yellow | M94: H | N94: =PRODUCT(J7,E94) -> 0
A95: Wild Blue Phlox | B95: Phlox divaricata | E95: 0 | F95: =PRODUCT(J95,E95) -> 0 | G95: =PRODUCT(F95/F151,100) ->  | H95: =IF(AND(21>G95),"OK","HIGH") ->  | I95: 12500 | J95: =PRODUCT(I95/43560) -> 0.2869605142 | K95: Early | L95: Blue | M95: H | N95: =PRODUCT(J7,E95) -> 0
A96: Wild Lupine | B96: Lupinus perrenis | C96: Legume | E96: 0 | F96: =PRODUCT(J96,E96) -> 0 | G96: =PRODUCT(F96/F151,100) ->  | H96: =IF(AND(21>G96),"OK","HIGH") ->  | I96: 1100 | J96: =PRODUCT(I96/43560) -> 0.02525252525 | K96: Early | L96: Lavender | N96: =PRODUCT(J7,E96) -> 0
A97: Wild White Indigo | B97: Baptista leucantha | C97: Legume | E97: 0 | F97: =PRODUCT(J97,E97) -> 0 | G97: =PRODUCT(F97/F151,100) ->  | H97: =IF(AND(21>G97),"OK","HIGH") ->  | I97: 1700 | J97: =PRODUCT(I97/43560) -> 0.03902662994 | K97: Early | L97: White | N97: =PRODUCT(J7,E97) -> 0
A98: Whorled Milkweed | B98: Asclepias verticillata | E98: 0 | F98: =PRODUCT(J98,E98) -> 0 | G98: =PRODUCT(F98/F151,100) ->  | H98: =IF(AND(21>G98),"OK","HIGH") ->  | I98: 11000 | J98: =PRODUCT(I98/43560) -> 0.2525252525 | K98: Mid - Late | L98: White | M98: LH | N98: =PRODUCT(J7,E98) -> 0
A99: MESIC to WET MESIC
A100: Common Ox-eye | B100: Heliopsis helianthoides | E100: 0 | F100: =PRODUCT(J100,E100) -> 0 | G100: =PRODUCT(F100/F151,100) ->  | H100: =IF(AND(21>G100),"OK","HIGH") ->  | I100: 6300 | J100: =PRODUCT(I100/43560) -> 0.1446280992 | K100: Mid | L100: Yellow | M100: H | N100: =PRODUCT(J7,E100) -> 0
A101: Giant Sunflower | B101: Helianthus giganteus | E101: 0 | F101: 0 | G101: =PRODUCT(F101/F151,100) ->  | I101: 10000 | J101: 0.2295684114 | K101: Late | L101: Yellow | M101: H | N101: =PRODUCT(J7,E101) -> 0
A102: Great Blue Lobelia | B102: Lobelia siphilitica | E102: 0 | F102: 0 | G102: =PRODUCT(F102/F151,100) ->  | I102: 500000 | J102: 11.47842057 | K102: Late | L102: Blue | M102: H | N102: =PRODUCT(J7,E102) -> 0
A103: Ironweed | B103: Veronia fasciculata | E103: 0 | F103: 0 | G103: =PRODUCT(F103/F151,100) ->  | H103: =IF(AND(21>G103),"OK","HIGH") ->  | I103: 24000 | J103: 0.5509641873 | K103: Late | L103: Purple | M103: H | N103: =PRODUCT(J7,E103) -> 0
A104: Meadow Blazingstar | B104: Liatris ligulistylis | E104: 0 | F104: 0 | G104: =PRODUCT(F104/F151,100) ->  | I104: 11000 | J104: 0.2525252525 | K104: Late | L104: Purple | M104: VH | N104: =PRODUCT(J7,E104) -> 0
A105: Rattlesnake Master | B105: Eryngium yuccifolium | E105: 0 | F105: 0 | G105: =PRODUCT(F105/F151,100) ->  | H105: =IF(AND(21>G105),"OK","HIGH") ->  | I105: 7500 | J105: 0.1721763085 | K105: Mid | L105: White | M105: H | N105: =PRODUCT(J7,E105) -> 0
A106: Sawtooth Sunflower | B106: Helianthus grosseserratus | E106: 0 | F106: 0 | G106: =PRODUCT(F106/F151,100) ->  | I106: 10000 | J106: 0.2295684114 | K106: Late | L106: Yellow | M106: H | N106: =PRODUCT(J7,E106) -> 0
A107: Tall Blazingstar | B107: Liatris pycnostachya | E107: 0 | F107: 0 | G107: =PRODUCT(F107/F151,100) ->  | I107: 11000 | J107: 0.2525252525 | K107: Mid | L107: Purple | M107: H | N107: =PRODUCT(J7,E107) -> 0
A108: Virginia Bluebells | B108: Mertensia virginica | E108: 0 | F108: 0 | G108: =PRODUCT(F108/F151,100) ->  | I108: 9700 | J108: 0.222681359 | K108: Early | L108: Blue | M108: H | N108: =PRODUCT(J7,E108) -> 0
A109: Wild Bergamot | B109: Monarda fistulosa | E109: 0 | F109: 0 | G109: =PRODUCT(F109/F151,100) ->  | I109: 70000 | J109: 1.60697888 | K109: Mid | L109: Lavender | M109: VH | N109: =PRODUCT(J7,E109) -> 0
A110: WET
A111: Boneset | B111: Eupatorium perfoliatum | E111: 0 | F111: =PRODUCT(J111,E111) -> 0 | G111: =PRODUCT(F111/F151,100) ->  | H111: =IF(AND(21>G111),"OK","HIGH") ->  | I111: 160000 | J111: =PRODUCT(I111/43560) -> 3.673094582 | K111: Late | L111: White | M111: H | N111: =PRODUCT(J7,E111) -> 0
A112: Cup Plant | B112: Silphium perfoliatum | E112: 0 | F112: =PRODUCT(J112,E112) -> 0 | G112: =PRODUCT(F112/F151,100) ->  | H112: =IF(AND(21>G112),"OK","HIGH") ->  | I112: 1400 | J112: =PRODUCT(I112/43560) -> 0.03213957759 | K112: Mid | L112: Yellow | M112: H | N112: =PRODUCT(J7,E112) -> 0
A113: Joe-pye Weed | B113: Eutrochium maculatum | E113: 0 | F113: =PRODUCT(J113,E113) -> 0 | G113: =PRODUCT(F113/F151,100) ->  | H113: =IF(AND(21>G113),"OK","HIGH") ->  | I113: 95000 | J113: =PRODUCT(I113/43560) -> 2.180899908 | K113: Mid | L113: Rose | M113: VH | N113: =PRODUCT(J7,E113) -> 0
A114: New England Aster | B114: Symphyotrichum novae-angliae | E114: 0 | F114: =PRODUCT(J114,E114) -> 0 | G114: =PRODUCT(F114/F151,100) ->  | H114: =IF(AND(21>G114),"OK","HIGH") ->  | I114: 66000 | J114: =PRODUCT(I114/43560) -> 1.515151515 | K114: Late | L114: Purple | M114: VH | N114: =PRODUCT(J7,E114) -> 0
A115: Swamp Milkweed | B115: Asclepias incarnata | E115: 0 | F115: =PRODUCT(J115,E115) -> 0 | G115: =PRODUCT(F115/F151,100) ->  | H115: =IF(AND(21>G115),"OK","HIGH") ->  | I115: 4800 | J115: =PRODUCT(I115/43560) -> 0.1101928375 | K115: Mid | L115: Red | M115: LH | N115: =PRODUCT(J7,E115) -> 0
A116: DRY to WET MESIC
A117: Black-eyed Susan | B117: Rudbeckia hirta | E117: 0 | F117: =PRODUCT(J117,E117) -> 0 | G117: =PRODUCT(F117/F151,100) ->  | H117: =IF(AND(21>G117),"OK","HIGH") ->  | I117: 92000 | J117: =PRODUCT(I117/43560) -> 2.112029385 | K117: Late | L117: Yellow | M117: H | N117: =PRODUCT(J7,E117) -> 0
A118: Common Milkweed | B118: Asclepias syriaca | E118: 0 | F118: 0 | G118: =PRODUCT(F118/F151,100) ->  | H118: =IF(AND(21>G118),"OK","HIGH") ->  | I118: 4000 | J118: 0.09182736455 | K118: Mid | L118: Purple | M118: LH | N118: =PRODUCT(J7,E118) -> 0
A119: Yellow Giant Hyssop | B119: Agastache nepetoides | E119: 0 | F119: 0 | G119: =PRODUCT(F119/F151,100) ->  | H119: =IF(AND(21>G119),"OK","HIGH") ->  | I119: 91000 | J119: 2.089072544 | K119: Late | L119: Purple | M119: H | N119: =PRODUCT(J7,E119) -> 0
A120: Grassleaved Goldenrod | B120: Euthamia graminifolia | E120: 0 | F120: 0 | G120: =PRODUCT(F120/F151,100) ->  | H120: =IF(AND(21>G120),"OK","HIGH") ->  | I120: 350000 | J120: 8.034894399 | K120: Mid | L120: Yellow | M120: H | N120: =PRODUCT(J7,E120) -> 0
A121: Maximillian Sunflower | B121: Helianthus maximiliani | E121: 0 | F121: 0 | G121: =PRODUCT(F121/F151,100) ->  | I121: 13000 | J121: 0.2984389348 | K121: Late | L121: Yellow | M121: H | N121: =PRODUCT(J7,E121) -> 0
A122: Spiderworts | B122: Tradescantia spp. | E122: 0 | F122: 0 | G122: =PRODUCT(F122/F151,100) ->  | I122: 10000 | J122: 0.2295684114 | K122: Early | L122: Blue | N122: =PRODUCT(J7,E122) -> 0
A123: Stiff Goldenrod | B123: Solidago rigida | E123: 0 | F123: 0 | G123: =PRODUCT(F123/F151,100) ->  | I123: 41000 | J123: 0.9412304867 | K123: Late | L123: Yellow | M123: VH | N123: =PRODUCT(J7,E123) -> 0
A124: White Prairie Clover | B124: Dalea candida | C124: Legume | E124: 0 | F124: 0 | G124: =PRODUCT(F124/F151,100) ->  | H124: =IF(AND(21>G124),"OK","HIGH") ->  | I124: 19000 | J124: =PRODUCT(I124/43560) -> 0.4361799816 | K124: Mid | L124: White | M124: H | N124: =PRODUCT(J7,E124) -> 0
A125: ADDITIONAL APPROVED SPECIES 7/
E126: 0 | F126: =PRODUCT(J126,E126) -> 0 | G126: =PRODUCT(F126/F151,100) ->  | H126: =IF(AND(21>G126),"OK","HIGH") ->  | J126: =PRODUCT(I126/43560) -> 0 | N126: =PRODUCT(J7,E126) -> 0
E127: 0 | F127: 0 | G127: =PRODUCT(F127/F151,100) ->  | J127: 0 | N127: =PRODUCT(J7,E127) -> 0
E128: 0 | F128: 0 | G128: =PRODUCT(F128/F151,100) ->  | J128: 0 | N128: =PRODUCT(J7,E128) -> 0
E129: 0 | F129: 0 | G129: =PRODUCT(F129/F151,100) ->  | J129: 0 | N129: =PRODUCT(J9,E129) -> 0
E130: 0 | F130: 0 | G130: =PRODUCT(F130/F151,100) ->  | J130: 0 | N130: =PRODUCT(J7,E130) -> 0
E131: 0 | F131: 0 | G131: =PRODUCT(F131/F151,100) ->  | J131: 0 | N131: =PRODUCT(J7,E131) -> 0
E132: 0 | F132: 0 | G132: =PRODUCT(F132/F151,100) ->  | J132: 0 | N132: =PRODUCT(J11,E132) -> 0
E133: 0 | F133: 0 | G133: =PRODUCT(F133/F151,100) ->  | J133: 0 | N133: =PRODUCT(J11,E133) -> 0
E134: 0 | F134: 0 | G134: =PRODUCT(F134/F151,100) ->  | J134: 0 | N134: =PRODUCT(J11,E134) -> 0
E135: 0 | F135: 0 | G135: =PRODUCT(F135/F151,100) ->  | J135: 0 | N135: =PRODUCT(J11,E135) -> 0
E136: 0 | F136: 0 | G136: =PRODUCT(F136/F151,100) ->  | J136: 0 | N136: =PRODUCT(J11,E136) -> 0
E137: 0 | F137: 0 | G137: =PRODUCT(F137/F151,100) ->  | J137: 0 | N137: =PRODUCT(J11,E137) -> 0
E138: 0 | F138: 0 | G138: =PRODUCT(F138/F151,100) ->  | J138: 0 | N138: =PRODUCT(J18,E138) -> 0
E139: 0 | F139: 0 | G139: =PRODUCT(F139/F151,100) ->  | J139: 0 | N139: =PRODUCT(J18,E139) -> 0
E140: 0 | F140: 0 | G140: =PRODUCT(F140/F151,100) ->  | J140: 0 | N140: =PRODUCT(J20,E140) -> 0
E141: 0 | F141: 0 | G141: =PRODUCT(F141/F151,100) ->  | J141: 0 | N141: =PRODUCT(J18,E141) -> 0
E142: 0 | F142: 0 | G142: =PRODUCT(F142/F151,100) ->  | J142: 0 | N142: =PRODUCT(J18,E142) -> 0
E143: 0 | F143: 0 | G143: =PRODUCT(F143/F151,100) ->  | J143: 0 | N143: =PRODUCT(J22,E143) -> 0
E144: 0 | F144: 0 | G144: =PRODUCT(F144/F151,100) ->  | J144: 0 | N144: =PRODUCT(J22,E144) -> 0
E145: 0 | F145: 0 | G145: =PRODUCT(F145/F151,100) ->  | J145: 0 | N145: =PRODUCT(J22,E145) -> 0
E146: 0 | F146: 0 | G146: =PRODUCT(F146/F151,100) ->  | J146: 0 | N146: =PRODUCT(J22,E146) -> 0
E147: 0 | F147: 0 | G147: =PRODUCT(F147/F151,100) ->  | J147: 0 | N147: =PRODUCT(J22,E147) -> 0
E148: 0 | F148: 0 | G148: =PRODUCT(F148/F151,100) ->  | J148: 0 | N148: =PRODUCT(J11,E148) -> 0
E149: 0 | F149: 0 | G149: =PRODUCT(F149/F151,100) ->  | J149: 0 | N149: =PRODUCT(J11,E149) -> 0
E150: 0 | F150: 0 | G150: =PRODUCT(F150/F151,100) ->  | J150: 0 | N150: =PRODUCT(J7,E150) -> 0
A151: TOTAL - OUNCES PLS Drill Seeding | E151: =SUM(E75:E150) -> 0 | F151: =SUM(F75:F150) -> 0 | G151: =SUM(G75:G150) ->  | J151: Total Species by Bloom Period
J152: Early Total | K152: =COUNTIF(E79:E80, ">0")+ COUNTIF(E82, ">0") + COUNTIF(E89, ">0") +COUNTIF(E95:E97,">0")+COUNTIF(E108, ">0") + COUNTIF(E122, ">0")+COUNTIFS(E126:E150,">0",K126:K150,"Early") -> 0 | L152: =COUNTIFS(E75:E150,">0",M75:M150,"=H")+COUNTIFS(E75:E150,">0",M75:M150,"=VH")+COUNTIFS(E75:E150,">0",M75:M150,"=LH") -> 0
J153: Mid Total | K153: =COUNTIF(E75:E78, ">0") + COUNTIF(E81, ">0") + COUNTIF(E83,">0") + COUNTIF(E85:E86, ">0")+ COUNTIF(E92:E94, ">0") + COUNTIF(E100,">0") + COUNTIF(E105,">0") + COUNTIF(E107, ">0") + COUNTIF(E109, ">0")+ COUNTIF(E112:E113, ">0") +COUNTIF(E115,">0") +COUNTIF(E118, ">0") + COUNTIF(E120, ">0")+COUNTIF(E124, ">0")+COUNTIFS(E126:E150,">0",K126:K150,"Mid") -> 0 | L153: =SUM(K152:K154) -> 0
B154: TOTAL SEEDS/FT 6/ | C154: =SUM(F59,F151) -> 0 | E154: 2/ Individual species not to exceed 20% of forb component by seeds/ft | J154: Late Total | K154: =COUNTIF(E84,">0")+COUNTIF(E87:E88,">0")+COUNTIF(E90:E91,">0")+COUNTIF(E98,">0")+COUNTIF(E101,">0")+COUNTIF(E102:E104,">0")+COUNTIF(E106,">0")+COUNTIF(E111,">0")+COUNTIF(E114,">0")+COUNTIF(E117,">0")+COUNTIF(E119,">0")+COUNTIF(E121,">0")+COUNTIF(E123,">0")+COUNTIFS(E126:E150,">0",K126:K150,"Late") -> 0
B156: PERCENT GRASS | C156: =PRODUCT(F59/C154) ->  | E156: 3/ 75-80% forbs
B157: PERCENT FORBS 3/ | C157: =PRODUCT(F151/C154) ->  | E157: 4/ LH - Larval Host, H - High Value Nectar, VH - Very High Value Nectar
B158: PERCENT MILKWEED 5/ | C158: =SUM(F75,F98,F115,F118)/C154 ->  | E158: 5/ Milkweeds shall comprise a minimum 1.5% of the total mixture
E159: 6/ Minimum 35-40 seeds/ft2
B160: % FORBS THAT ARE MONARCH PREFERRED 8/ | C160: =PRODUCT(L152/L153)*100 ->  | E160: 7/ Consult appropriate NRCS Area Resource Conservationist or Biologist for prior approval
E161: 8/ A minimum 60% of the forbs must be monarch preferred (column M).
A166: Optional Trees and Shrubs | C166: Bloom Period
A167: American Plum | B167: Prunus americana | C167: April - May
A168: Black Willow | B168: Salix nigra | C168: April - May
A169: Button Bush | B169: Cephalanthus occidentalis | C169: June - August
A170: Common Chokecherry | B170: Prunus virginiana | C170: April - June
A171: Common Ninebark | B171: Physocarpus opulifolius | C171: May - July
A172: False Indigo* | B172: Amorpha fruitcosa | C172: June - August
A173: Fragrant False Indigo* | B173: Amorpha nana | C173: June - August
A174: New Jersey Tea | B174: Ceanothus americanus | C174: June - August
A175: Pussy Willow | B175: Salix discolor | C175: April - May
A176: Red Osier Dogwood | B176: Cornus sericea | C176: May - August
A177: Saskatoon Serviceberry | B177: Amelanchier alnifolia | C177: April - May
A178: Silky Dogwood | B178: Cornus amomum | C178: May - July
A179: Wild Rose | B179: Rosea spp. | C179: June -August

Sheet 327 CREP CP2 & CP23 Buffer
A1: CREP 327 CONSERVATION COVER - NATIVE GRASS/FORBS
A2: Seeding Design
I3: DATE | J3: =TODAY() -> 2022-06-16
A5: LANDOWNER | I5: TRACT/FIELD
A7: PLANNER | H7: ACRES SEEDED
J10: Background Information
A11: GRASS SPECIES | C11: PLANNED % | E11: POUNDS | F11: TOTAL SEEDS/ | G11: % OF GRASS MIX BY SEEDS/FT 1/ | K11: SEEDS/ | L11: COC | M11: COC | N11: Pounds PLS
C12: OF GRASS COMPONENT BY | E12: PLS/AC. | F12: SQ. FOOT | K12: SQ. FOOT | L12: Selected | M12: Reference
C13: SEEDS/SQ. FOOT | K13: At 1 lb. Rate | M13: 6/
C14: Planned | G14: Can't Exceed | H14: Planned %
A16: WARM SEASON 7/
A17: Big Bluestem | B17: Andropogon gerardii | C17: 0 to 30 | E17: 0 | F17: =PRODUCT(K17,E17) -> 0 | G17: =PRODUCT(F17/F59,100) ->  | H17: =IF(AND(31>G17),"OK","HIGH") ->  | J17: 176000 | K17: =PRODUCT(J17/43560) -> 4.04040404 | L17: =IF(E17=0,"",M17) ->  | M17: 4 | N17: =PRODUCT(J7*E17) -> 0
A18: Blue Grama | B18: Bouteloua gracilis | C18: 0 to 20 | E18: 0 | F18: 0 | G18: =PRODUCT(F18/F59,100) ->  | H18: =IF(AND(21>G18),"OK","HIGH") ->  | J18: 750000 | K18: 17.21763085 | M18: 8 | N18: =PRODUCT(J7*E18) -> 0
A19: Indiangrass | B19: Sorgastrum nutans | C19: 0 to 30 | E19: 0 | F19: 0 | G19: =PRODUCT(F19/F59,100) ->  | H19: =IF(AND(31>G19),"OK","HIGH") ->  | J19: 193000 | K19: 4.43067034 | M19: 4 | N19: =PRODUCT(J7*E19) -> 0
A20: Little Bluestem | B20: Schizachryrium scoparium | C20: 0 to 30 | E20: 0 | F20: 0 | G20: =PRODUCT(F20/F59,100) ->  | H20: =IF(AND(31>G20),"OK","HIGH") ->  | J20: 286000 | K20: 6.565656566 | M20: 5 | N20: =PRODUCT(J7*E20) -> 0
A21: Prairie Cordgrass | B21: Spartina pectinata | C21: 0 to 5 | E21: 0 | F21: 0 | G21: =PRODUCT(F21/F59,100) ->  | H21: =IF(AND(6>G21),"OK","HIGH") ->  | J21: 183000 | K21: 4.201101928 | M21: 4 | N21: =PRODUCT(J7*E21) -> 0
A22: Prairie Dropseed | B22: Sporopolus heterolepis | C22: 0 to 10 | E22: 0 | F22: 0 | G22: =PRODUCT(F22/F59,100) ->  | H22: =IF(AND(11>G22),"OK","HIGH") ->  | J22: 224000 | K22: 5.142332415 | M22: 9 | N22: =PRODUCT(J7*E22) -> 0
A23: Prairie Sandreed | B23: Calamovilfa longifolia | C23: 0 to 30 | E23: 0 | F23: 0 | G23: =PRODUCT(F23/F59,100) ->  | H23: =IF(AND(31>G23),"OK","HIGH") ->  | J23: 275000 | K23: 6.313131313 | M23: 7 | N23: =PRODUCT(J7*E23) -> 0
A24: Rough Dropseed | B24: Sporobolus compositus | C24: 0 to 10 | E24: 0 | F24: 0 | G24: =PRODUCT(F24/F59,100) ->  | H24: =IF(AND(11>G24),"OK","HIGH") ->  | J24: 480000 | K24: 11.01928375 | M24: 9 | N24: =PRODUCT(J7*E24) -> 0
A25: Sideoats Grama | B25: Bouteloua curtipendula | C25: 0 to 30 | E25: 0 | F25: 0 | G25: =PRODUCT(F25/F59,100) ->  | H25: =IF(AND(31>G25),"OK","HIGH") ->  | J25: 180000 | K25: 4.132231405 | M25: 6 | N25: =PRODUCT(J7*E25) -> 0
A26: Switchgrass | B26: Panicum virgatum | C26: 0 to 10 | E26: 0 | F26: 0 | G26: =PRODUCT(F26/F59,100) ->  | H26: =IF(AND(11>G26),"OK","HIGH") ->  | J26: 390000 | K26: 8.953168044 | M26: 5 | N26: =PRODUCT(J7*E26) -> 0
C27: 0 to 10 | E27: 0 | F27: 0 | G27: =PRODUCT(F27/F59,100) ->  | K27: 0 | N27: =PRODUCT(J7*E27) -> 0
C28: 0 to 10 | E28: 0 | F28: 0 | G28: =PRODUCT(F28/F59,100) ->  | K28: 0 | N28: =PRODUCT(J7*E28) -> 0
C29: 0 to 10 | E29: 0 | F29: 0 | G29: =PRODUCT(F29/F59,100) ->  | K29: 0 | N29: =PRODUCT(J7*E29) -> 0
C30: 0 to 10 | E30: 0 | F30: 0 | G30: =PRODUCT(F30/F59,100) ->  | K30: 0 | N30: =PRODUCT(J7*E30) -> 0
C31: 0 to 10 | E31: 0 | F31: =PRODUCT(K31,E31) -> 0 | G31: =PRODUCT(F31/F59,100) ->  | K31: =PRODUCT(J31/43560) -> 0 | L31: =IF(E31=0,"",M31) ->  | N31: =PRODUCT(J7*E31) -> 0
C32: 0 to 10 | E32: 0 | F32: =PRODUCT(K32,E32) -> 0 | G32: =PRODUCT(F32/F59,100) ->  | K32: =PRODUCT(J32/43560) -> 0 | L32: =IF(E32=0,"",M32) ->  | N32: =PRODUCT(J7*E32) -> 0
A33: COOL SEASON 2/ 7/
A34: Canada Bluejoint | B34: Calamagrostis canadensis | C34: 0 to 5 | E34: 0 | F34: =PRODUCT(K34,E34) -> 0 | G34: =PRODUCT(F34/F59,100) ->  | H34: =IF(AND(6>G34),"OK","HIGH") ->  | J34: 4480000 | K34: =PRODUCT(J34/43560) -> 102.8466483 | L34: =IF(E34=0,"",M34) ->  | M34: 5 | N34: =PRODUCT(J7*E34) -> 0
A35: Canada Wildrye | B35: Elymus canadensis | C35: 0 to 10 | E35: 0 | F35: 0 | G35: =PRODUCT(F35/F59,100) ->  | H35: =IF(AND(11>G35),"OK","HIGH") ->  | J35: 115000 | K35: =PRODUCT(J35/43560) -> 2.640036731 | L35: =IF(E35=0,"",M35) ->  | M35: 5 | N35: =PRODUCT(J7*E35) -> 0
A36: Green Needlegrass | B36: Stipa viridula | C36: 0 to 10 | E36: 0 | F36: 0 | G36: =PRODUCT(F36/F59,100) ->  | H36: =IF(AND(11>G36),"OK","HIGH") ->  | J36: 180000 | K36: 4.132231405 | M36: 5 | N36: =PRODUCT(J7*E36) -> 0
A37: June grass | B37: Koleria macrantha | C37: 0 to 5 | E37: 0 | F37: 0 | G37: =PRODUCT(F37/F59,100) ->  | H37: =IF(AND(6>G37),"OK","HIGH") ->  | J37: 2315000 | K37: =PRODUCT(J37/43560) -> 53.14508724 | L37: =IF(E37=0,"",M37) ->  | M37: 7 | N37: =PRODUCT(J7*E37) -> 0
A38: Kalms Brome | B38: Bromus kalmii | C38: 0 to 10 | E38: 0 | F38: 0 | G38: =PRODUCT(F38/F59,100) ->  | H38: =IF(AND(11>G38),"OK","HIGH") ->  | J38: 128000 | K38: =PRODUCT(J38/43560) -> 2.938475666 | L38: =IF(E38=0,"",M38) ->  | M38: 5 | N38: =PRODUCT(J7*E38) -> 0
A39: Porcupine grass | B39: Hesperostipa spartea | C39: 0 to 10 | E39: 0 | F39: 0 | G39: =PRODUCT(F39/F59,100) ->  | J39: 57000 | K39: 1.308539945 | M39: 6 | N39: =PRODUCT(J7*E39) -> 0
A40: Slender Wheatgrass | B40: Agropyron caninum | C40: 0 to 10 | E40: 0 | F40: 0 | G40: =PRODUCT(F40/F59,100) ->  | J40: 155000 | K40: =PRODUCT(J40/43560) -> 3.558310376 | L40: =IF(E40=0,"",M40) ->  | M40: 5 | N40: =PRODUCT(J7*E40) -> 0
A41: Virginia Wildrye | B41: Elymus virginicus | C41: 0 to 10 | E41: 0 | F41: 0 | G41: =PRODUCT(F41/F59,100) ->  | J41: 96000 | K41: =PRODUCT(J41/43560) -> 2.203856749 | L41: =IF(E41=0,"",M41) ->  | M41: 3 | N41: =PRODUCT(J7*E41) -> 0
A42: Western Wheatgrass | B42: Agropyron smithii | C42: 0 to 10 | E42: 0 | F42: 0 | G42: =PRODUCT(F42/F59,100) ->  | J42: 112000 | K42: 2.571166208 | M42: 2 | N42: =PRODUCT(J7*E42) -> 0
C43: 0 to 10 | E43: 0 | F43: 0 | G43: =PRODUCT(F43/F59,100) ->  | K43: 0 | N43: =PRODUCT(J7*E43) -> 0
C44: 0 to 10 | E44: 0 | F44: 0 | G44: =PRODUCT(F44/F59,100) ->  | K44: 0 | N44: =PRODUCT(J7*E44) -> 0
C45: 0 to 10 | E45: 0 | F45: 0 | G45: =PRODUCT(F45/F59,100) ->  | K45: 0 | N45: =PRODUCT(J7*E45) -> 0
C46: 0 to 10 | E46: 0 | F46: 0 | G46: =PRODUCT(F46/F59,100) ->  | K46: 0 | N46: =PRODUCT(J7*E46) -> 0
C47: 0 to 10 | E47: 0 | F47: =PRODUCT(K47,E47) -> 0 | G47: =PRODUCT(F47/F59,100) ->  | H47: =IF(AND(11>G47),"OK","HIGH") ->  | K47: =PRODUCT(J47/43560) -> 0 | L47: =IF(E47=0,"",M47) ->  | N47: =PRODUCT(J7*E47) -> 0
C48: 0 to 10 | E48: 0 | F48: =PRODUCT(K48,E48) -> 0 | G48: =PRODUCT(F48/F59,100) ->  | H48: =IF(AND(11>G48),"OK","HIGH") ->  | K48: =PRODUCT(J48/43560) -> 0 | L48: =IF(E48=0,"",M48) ->  | N48: =PRODUCT(J7*E48) -> 0
C49: 0 to 10 | E49: 0 | F49: 0 | G49: =PRODUCT(F49/F59,100) ->  | K49: 0 | N49: =PRODUCT(J7*E49) -> 0
C50: 0 to 10 | E50: 0 | F50: 0 | G50: =PRODUCT(F50/F59,100) ->  | K50: 0 | N50: =PRODUCT(J7*E50) -> 0
C51: 0 to 10 | E51: 0 | F51: 0 | G51: =PRODUCT(F51/F59,100) ->  | K51: 0 | N51: =PRODUCT(J7*E51) -> 0
C52: 0 to 10 | E52: 0 | F52: 0 | G52: =PRODUCT(F52/F59,100) ->  | K52: 0 | N52: =PRODUCT(J7*E52) -> 0
C53: 0 to 10 | E53: 0 | F53: 0 | G53: =PRODUCT(F53/F59,100) ->  | K53: 0 | N53: =PRODUCT(J7*E53) -> 0
C54: 0 to 10 | E54: 0 | F54: =PRODUCT(K54,E54) -> 0 | G54: =PRODUCT(F54/F59,100) ->  | H54: =IF(AND(11>G54),"OK","HIGH") ->  | K54: =PRODUCT(J54/43560) -> 0 | L54: =IF(E54=0,"",M54) ->  | N54: =PRODUCT(J7*E54) -> 0
C55: 0 to 10 | E55: 0 | F55: 0 | G55: =PRODUCT(F55/F59,100) ->  | K55: 0 | N55: =PRODUCT(J7*E55) -> 0
C56: 0 to 10 | E56: 0 | F56: 0 | G56: =PRODUCT(F56/F59,100) ->  | K56: 0 | N56: =PRODUCT(J7*E56) -> 0
C57: 0 to 10 | E57: 0 | F57: =PRODUCT(K57,E57) -> 0 | G57: =PRODUCT(F57/F59,100) ->  | H57: =IF(AND(11>G57),"OK","HIGH") ->  | K57: =PRODUCT(J57/43560) -> 0 | L57: =IF(E57=0,"",M57) ->  | N57: =PRODUCT(J7*E57) -> 0
C59: TOTAL Pounds PLS | E59: =SUM(E17:E57) -> 0 | F59: =SUM(F17:F57) -> 0 | G59: =SUM(G17:G57) ->  | K59: AVE COC GRASS | L59: =AVERAGE(L17:L57) -> 
G60: =SUM(G34:G57) -> 
F61: =IF(AND(20.1>G60,G60<100),"","COOL SEASON GRASSES EXCEED 20% OF THE MIX BASED ON SEEDS/FT") -> 
A67: 1/ ACTUAL SEEDS PER SQUARE FOOT SHALL BE WITHIN THE RANGE SPECIFIED IN PLANNED CONDITION
A68: 2/ NO MORE THAN 20% OF THE MIXTURE SHALL BE COMPRISED OF COOL SEASON GRASSES BASED ON SEEDS PER SQUARE FOOT.
J69: Background Information
A70: FORB SPECIES | E70: OUNCES | F70: TOTAL SEEDS/ | G70: % OF FORB MIX BY SEEDS/FT 3/ | I70: % of mix | J70: SEEDS/oz | K70: SEEDS/ | L70: COC | M70: COC | N70: Pollinator Monarch Preferred Blue | O70: Ounces PLS
E71: PLS/AC. | F71: SQ. FOOT | I71: by WEIGHT | K71: SQ. FOOT | L71: Selected | M71: Reference
K72: At 1 oz/ac Rate
A74: DRY
A75: Bush Clover | B75: Lespedeza capitata | E75: 0 | F75: =PRODUCT(K75,E75) -> 0 | G75: =PRODUCT(F75/F152,100) ->  | H75: =IF(AND(51>G75),"OK","HIGH") ->  | I75: =PRODUCT(E75/E152)*100 ->  | J75: 8000 | K75: =PRODUCT(J75/43560) -> 0.1836547291 | L75: =IF(E75=0,"",M75) ->  | M75: 3 | N75: Late | O75: =PRODUCT(J7*E75) -> 0
A76: Culvers Root | B76: Veronicastrum virginicum | E76: 0 | F76: =PRODUCT(K76,E76) -> 0 | G76: =PRODUCT(F76/F152,100) ->  | I76: =PRODUCT(E76/E152)*100 ->  | J76: 800000 | K76: 18.36547291 | M76: 5 | N76: Mid | O76: =PRODUCT(J7*E76) -> 0
A77: Dotted Blazingstar | B77: Liatris punctata | E77: 0 | F77: 0 | G77: =PRODUCT(F77/F152,100) ->  | I77: =PRODUCT(E77/E152)*100 ->  | J77: 7000 | K77: 0.160697888 | M77: 8 | N77: Mid | O77: =PRODUCT(J7*E77) -> 0
A78: Purple Coneflower, Narrow Leaved | B78: Echinacea pallida var. angustifolia | E78: 0 | F78: 0 | G78: =PRODUCT(F78/F152,100) ->  | I78: =PRODUCT(E78/E152)*100 ->  | J78: 7000 | K78: 0.160697888 | M78: 8 | N78: Mid | O78: =PRODUCT(J7*E78) -> 0
A79: Prairie Cinquefoil | B79: Potentilla arguta | E79: 0 | F79: 0 | G79: =PRODUCT(F79/F152,100) ->  | I79: =PRODUCT(E79/E152)*100 ->  | J79: 230000 | K79: 5.280073462 | M79: 8 | N79: Late | O79: =PRODUCT(J7*E79) -> 0
A80: Showy Penstemon | B80: Penstemon grandifloris | E80: 0 | F80: 0 | G80: =PRODUCT(F80/F152,100) ->  | I80: =PRODUCT(E80/E152)*100 ->  | J80: 14000 | K80: 0.3213957759 | M80: 5 | N80: Early | O80: =PRODUCT(J7*E80) -> 0
A81: Stiff Sunflower | B81: Helianthus paucifloris | E81: 0 | F81: =PRODUCT(K81,E81) -> 0 | G81: =PRODUCT(F81/F152,100) ->  | I81: =PRODUCT(E81/E152)*100 ->  | J81: 4000 | K81: =PRODUCT(J81/43560) -> 0.09182736455 | M81: 5 | N81: Mid | O81: =PRODUCT(J7*E81) -> 0
A82: Silky Aster | B82: Symphyotrichum sericeum | E82: 0 | F82: 0 | G82: =PRODUCT(F82/F152,100) ->  | I82: =PRODUCT(E82/E152)*100 ->  | J82: 26000 | K82: 0.5968778696 | M82: 10 | N82: Late | O82: =PRODUCT(J7*E82) -> 0
A83: DRY to MESIC
A84: Butterfly Weed | B84: Asclepias tuberosa | E84: 0 | F84: =PRODUCT(K84,E84) -> 0 | G84: =PRODUCT(F84/F152,100) ->  | H84: =IF(AND(51>G84),"OK","HIGH") ->  | I84: =PRODUCT(E84/E152)*100 ->  | J84: 4300 | K84: =PRODUCT(J84/43560) -> 0.0987144169 | L84: =IF(E84=0,"",M84) ->  | M84: 6 | N84: Mid | O84: =PRODUCT(J7*E84) -> 0
A85: Canada Milkvetch | B85: Astragalus canadensis | C85: Legume | E85: 0 | F85: =PRODUCT(K85,E85) -> 0 | G85: =PRODUCT(F85/F152,100) ->  | H85: =IF(AND(51>G85),"OK","HIGH") ->  | I85: =PRODUCT(E85/E152)*100 ->  | J85: 17000 | K85: =PRODUCT(J85/43560) -> 0.3902662994 | L85: =IF(E85=0,"",M85) ->  | M85: 4 | N85: Mid | O85: =PRODUCT(J7*E85) -> 0
A86: Compass Plant | B86: Silphium laciniatum | E86: 0 | F86: 0 | G86: =PRODUCT(F86/F152,100) ->  | I86: =PRODUCT(E86/E152)*100 ->  | J86: 660 | K86: 0.01515151515 | M86: 7 | N86: Mid | O86: =PRODUCT(J7*E86) -> 0
A87: Evening Primrose | B87: Oenothera biennis | E87: 0 | F87: 0 | G87: =PRODUCT(F87/F152,100) ->  | I87: =PRODUCT(E87/E152)*100 ->  | J87: 90000 | K87: 2.066115702 | M87: 4 | N87: Mid | O87: =PRODUCT(J7*E87) -> 0
A88: Foxglove Beardtongue | B88: Penstemon digitalis | E88: 0 | F88: =PRODUCT(K88,E88) -> 0 | G88: =PRODUCT(F88/F152,100) ->  | H88: =IF(AND(51>G88),"OK","HIGH") ->  | I88: =PRODUCT(E88/E152)*100 ->  | J88: 130000 | K88: =PRODUCT(J88/43560) -> 2.984389348 | L88: =IF(E88=0,"",M88) ->  | M88: 4 | N88: Early | O88: =PRODUCT(J7*E88) -> 0
A89: Heart-leaved Alexander | B89: Zizia aptera | E89: 0 | F89: 0 | G89: =PRODUCT(F89/F152,100) ->  | I89: =PRODUCT(E89/E152)*100 ->  | J89: 12000 | K89: 0.2754820937 | M89: 8 | N89: Early | O89: =PRODUCT(J7*E89) -> 0
A90: Heath Aster | B90: Symphyotrichum ericoides | E90: 0 | F90: =PRODUCT(K90,E90) -> 0 | G90: =PRODUCT(F90/F152,100) ->  | I90: =PRODUCT(E90/E152)*100 ->  | J90: 200000 | K90: =PRODUCT(J90/43560) -> 4.591368228 | M90: 3 | N90: Late | O90: =PRODUCT(J7*E90) -> 0
A91: Hoary Vervain | B91: Verbena stricta | E91: 0 | F91: 0 | G91: =PRODUCT(F91/F152,100) ->  | I91: =PRODUCT(E91/E152)*100 ->  | J91: 28000 | K91: 0.6427915519 | M91: 1 | N91: Mid | O91: =PRODUCT(J7*E91) -> 0
A92: Lance-leaved Coreopsis | B92: Coreopsis lanceolata | E92: 0 | F92: =PRODUCT(K92,E92) -> 0 | G92: =PRODUCT(F92/F152,100) ->  | H92: =IF(AND(51>G92),"OK","HIGH") ->  | I92: =PRODUCT(E92/E152)*100 ->  | J92: 20000 | K92: =PRODUCT(J92/43560) -> 0.4591368228 | L92: =IF(E92=0,"",M92) ->  | M92: 1 | N92: Early | O92: =PRODUCT(J7*E92) -> 0
A93: Leadplant | B93: Amorpha canescens | C93: Legume | E93: 0 | F93: 0 | G93: =PRODUCT(F93/F152,100) ->  | I93: =PRODUCT(E93/E152)*100 ->  | J93: 16000 | K93: 0.3673094582 | M93: 5 | N93: Mid | O93: =PRODUCT(J7*E93) -> 0
A94: Long -headed Coneflower | B94: Ratibida columnifera | E94: 0 | F94: 0 | G94: =PRODUCT(F94/F152,100) ->  | I94: =PRODUCT(E94/E152)*100 ->  | J94: 42000 | K94: 0.9641873278 | M94: 5 | N94: Mid | O94: =PRODUCT(J7*E94) -> 0
A95: Ontario Blazingstar | B95: Liatris cylindracea | E95: 0 | F95: =PRODUCT(K95,E95) -> 0 | G95: =PRODUCT(F95/F152,100) ->  | I95: =PRODUCT(E95/E152)*100 ->  | J95: 14000 | K95: =PRODUCT(J95/43560) -> 0.3213957759 | L95: =IF(E95=0,"",M95) ->  | M95: 8 | N95: Late | O95: =PRODUCT(J7*E95) -> 0
A96: Prairie Smoke | B96: Geum triflorum | E96: 0 | F96: 0 | G96: =PRODUCT(F96/F152,100) ->  | I96: =PRODUCT(E96/E152)*100 ->  | J96: 27000 | K96: 0.6198347107 | M96: 8 | N96: Early | O96: =PRODUCT(J7*E96) -> 0
A97: Rough Blazingstar | B97: Liatris aspera | E97: 0 | F97: 0 | G97: =PRODUCT(F97/F152,100) ->  | I97: =PRODUCT(E97/E152)*100 ->  | J97: 16000 | K97: 0.3673094582 | M97: 8 | N97: Late | O97: =PRODUCT(J7*E97) -> 0
A98: Showy Goldenrod | B98: Solidago speciosa | E98: 0 | F98: 0 | G98: =PRODUCT(F98/F152,100) ->  | I98: =PRODUCT(E98/E152)*100 ->  | J98: 95000 | K98: 2.180899908 | M98: 7 | N98: Late | O98: =PRODUCT(J7*E98) -> 0
A99: Smooth Aster | B99: Symphyotrichum laeva | E99: 0 | F99: 0 | G99: =PRODUCT(F99/F152,100) ->  | I99: =PRODUCT(E99/E152)*100 ->  | J99: 55000 | K99: 1.262626263 | M99: 7 | N99: Late | O99: =PRODUCT(J7*E99) -> 0
A100: Spotted Beebalm | B100: Monarda punctata | E100: 0 | F100: =PRODUCT(K100,E100) -> 0 | G100: =PRODUCT(F100/F152,100) ->  | H100: =IF(AND(51>G100),"OK","HIGH") ->  | I100: =PRODUCT(E100/E152)*100 ->  | J100: 70000 | K100: =PRODUCT(J100/43560) -> 1.60697888 | L100: =IF(E100=0,"",M100) ->  | M100: 6 | N100: Mid | O100: =PRODUCT(J7*E100) -> 0
A101: Stiff Tickseed | B101: Coreopsis palmata | E101: 0 | F101: 0 | G101: =PRODUCT(F101/F152,100) ->  | I101: =PRODUCT(E101/E152)*100 ->  | J101: 10000 | K101: 0.2295684114 | M101: 7 | N101: Mid | O101: =PRODUCT(J7*E101) -> 0
A102: Thimbleweed | B102: Anemone cylindrica | E102: 0 | F102: 0 | G102: =PRODUCT(F102/F152,100) ->  | I102: =PRODUCT(E102/E152)*100 ->  | J102: 26000 | K102: 0.5968778696 | M102: 7 | N102: Mid | O102: =PRODUCT(J7*E102) -> 0
A103: Whorled Milkweed | B103: Asclepias verticillata | E103: 0 | F103: =PRODUCT(K103,E103) -> 0 | G103: =PRODUCT(F103/F152,100) ->  | H103: =IF(AND(51>G103),"OK","HIGH") ->  | I103: =PRODUCT(E103/E152)*100 ->  | J103: 11000 | K103: =PRODUCT(J103/43560) -> 0.2525252525 | L103: =IF(E103=0,"",M103) ->  | M103: 4 | N103: Mid-Late | O103: =PRODUCT(J7*E103) -> 0
A104: Wild Blue Phlox | B104: Phlox divaricata | E104: 0 | F104: =PRODUCT(K104,E104) -> 0 | G104: =PRODUCT(F104/F152,100) ->  | H104: =IF(AND(51>G104),"OK","HIGH") ->  | I104: =PRODUCT(E104/E152)*100 ->  | J104: 12500 | K104: =PRODUCT(J104/43560) -> 0.2869605142 | L104: =IF(E104=0,"",M104) ->  | M104: 7 | N104: Early | O104: =PRODUCT(J7*E104) -> 0
A105: Wild Columbine | B105: Aquilegia canadensis | E105: 0 | F105: =PRODUCT(K105,E105) -> 0 | G105: =PRODUCT(F105/F152,100) ->  | H105: =IF(AND(51>G105),"OK","HIGH") ->  | I105: =PRODUCT(E105/E152)*100 ->  | J105: 3800 | K105: =PRODUCT(J105/43560) -> 0.08723599633 | L105: =IF(E105=0,"",M105) ->  | M105: 6 | N105: Early | O105: =PRODUCT(J7*E105) -> 0
A106: MESIC to WET
A107: Blanketflower | B107: Gaillardia aristata | E107: 0 | F107: =PRODUCT(K107,E107) -> 0 | G107: =PRODUCT(F107/F152,100) ->  | H107: =IF(AND(51>G107),"OK","HIGH") ->  | I107: =PRODUCT(E107/E152)*100 ->  | J107: 9813 | K107: =PRODUCT(J107/43560) -> 0.2252754821 | L107: =IF(E107=0,"",M107) ->  | M107: 2 | N107: Mid | O107: =PRODUCT(J7*E107) -> 0
A108: Canada Tick Trefoil | B108: Desmodium canadense | C108: Legume | E108: 0 | F108: 0 | G108: =PRODUCT(F108/F152,100) ->  | I108: =PRODUCT(E108/E152)*100 ->  | J108: 5500 | K108: 0.1262626263 | M108: 6 | N108: Mid | O108: =PRODUCT(J7*E108) -> 0
A109: Common Ox-eye | B109: Heliopsis helianthoides | E109: 0 | F109: 0 | G109: =PRODUCT(F109/F152,100) ->  | I109: =PRODUCT(E109/E152)*100 ->  | J109: 6300 | K109: 0.1446280992 | M109: 4 | N109: Mid | O109: =PRODUCT(J7*E109) -> 0
A110: Giant Sunflower | B110: Helianthus giganteus | E110: 0 | F110: 0 | G110: =PRODUCT(F110/F152,100) ->  | I110: =PRODUCT(E110/E152)*100 ->  | J110: 10000 | K110: 0.2295684114 | M110: 5 | N110: Late | O110: =PRODUCT(J7*E110) -> 0
A111: Golden Alexanders | B111: Zizia aurea | E111: 0 | F111: 0 | G111: =PRODUCT(F111/F152,100) ->  | I111: =PRODUCT(E111/E152)*100 ->  | J111: 11000 | K111: 0.2525252525 | M111: 6 | N111: Early | O111: =PRODUCT(J7*E111) -> 0
A112: Great Blue Lobelia | B112: Lobelia siphilitica | E112: 0 | F112: =PRODUCT(K112,E112) -> 0 | G112: =PRODUCT(F112/F152,100) ->  | H112: =IF(AND(51>G112),"OK","HIGH") ->  | I112: =PRODUCT(E112/E152)*100 ->  | J112: 500000 | K112: =PRODUCT(J112/43560) -> 11.47842057 | L112: =IF(E112=0,"",M112) ->  | M112: 3 | N112: Late | O112: =PRODUCT(J7*E112) -> 0
A113: Ironweed | B113: Veronia fasticulata | E113: 0 | F113: 0 | G113: =PRODUCT(F113/F152,100) ->  | I113: =PRODUCT(E113/E152)*100 ->  | J113: 24000 | K113: 0.5509641873 | M113: 3 | N113: Late | O113: =PRODUCT(J7*E113) -> 0
A114: Meadow Blazingstar | B114: Liatris ligulistylis | E114: 0 | F114: =PRODUCT(K114,E114) -> 0 | G114: =PRODUCT(F114/F152,100) ->  | I114: =PRODUCT(E114/E152)*100 ->  | J114: 11000 | K114: 0.2525252525 | M114: 8 | N114: Late | O114: =PRODUCT(J7*E114) -> 0
A115: Mountain Mint | B115: Pycnanthemum virginianum | E115: 0 | F115: =PRODUCT(K115,E115) -> 0 | G115: =PRODUCT(F115/F152,100) ->  | I115: =PRODUCT(E115/E152)*100 ->  | J115: 220000 | K115: =PRODUCT(J115/43560) -> 5.050505051 | L115: =IF(E115=0,"",M115) ->  | M115: 8 | N115: Mid | O115: =PRODUCT(J7*E115) -> 0
A116: Partridge Pea | B116: Cassia fasticulata | C116: Legume | E116: 0 | F116: =PRODUCT(K116,E116) -> 0 | G116: =PRODUCT(F116/F152,100) ->  | I116: =PRODUCT(E116/E152)*100 ->  | J116: 2700 | K116: =PRODUCT(J116/43560) -> 0.06198347107 | L116: =IF(E116=0,"",M116) ->  | M116: 4 | N116: Mid | O116: =PRODUCT(J7*E116) -> 0
A117: Rattlesnake Master | B117: Eryngium yuccifolium | E117: 0 | F117: 0 | G117: =PRODUCT(F117/F152,100) ->  | I117: =PRODUCT(E117/E152)*100 ->  | J117: 7500 | K117: 0.1721763085 | M117: 8 | N117: Mid | O117: =PRODUCT(J7*E117) -> 0
A118: Sawtooth Sunflower | B118: Helianthus grosseserratus | E118: 0 | F118: =PRODUCT(K118,E118) -> 0 | G118: =PRODUCT(F118/F152,100) ->  | H118: =IF(AND(51>G118),"OK","HIGH") ->  | I118: =PRODUCT(E118/E152)*100 ->  | J118: 10000 | K118: =PRODUCT(J118/43560) -> 0.2295684114 | L118: =IF(E118=0,"",M118) ->  | M118: 8 | N118: Late | O118: =PRODUCT(J7*E118) -> 0
A119: Tall Blazingstar | B119: Liatris pycnostachya | E119: 0 | F119: 0 | G119: =PRODUCT(F119/F152,100) ->  | I119: =PRODUCT(E119/E152)*100 ->  | J119: 11000 | K119: 0.2525252525 | M119: 6 | N119: Mid | O119: =PRODUCT(J7*E119) -> 0
A120: Virginia Bluebells | B120: Mertenias virginica | E120: 0 | F120: =PRODUCT(K120,E120) -> 0 | G120: =PRODUCT(F120/F152,100) ->  | H120: =IF(AND(51>G120),"OK","HIGH") ->  | I120: =PRODUCT(E120/E152)*100 ->  | J120: 9700 | K120: =PRODUCT(J120/43560) -> 0.222681359 | L120: =IF(E120=0,"",M120) ->  | M120: 6 | N120: Early | O120: =PRODUCT(J7*E120) -> 0
A121: Wild Bergamot | B121: Monarda fistulosa | E121: 0 | F121: 0 | G121: =PRODUCT(F121/F152,100) ->  | I121: =PRODUCT(E121/E152)*100 ->  | J121: 70000 | K121: 1.60697888 | M121: 2 | N121: Mid | O121: =PRODUCT(J7*E121) -> 0
A122: Yellow Coneflower | B122: Ratibida pinnata | E122: 0 | F122: 0 | G122: =PRODUCT(F122/F152,100) ->  | I122: =PRODUCT(E122/E152)*100 ->  | J122: 30000 | K122: 0.6887052342 | M122: 4 | N122: Mid | O122: =PRODUCT(J7*E122) -> 0
A123: WET
A124: Blue Vervain | B124: Verbena hastata | E124: 0 | F124: =PRODUCT(K124,E124) -> 0 | G124: =PRODUCT(F124/F152,100) ->  | H124: =IF(AND(51>G124),"OK","HIGH") ->  | I124: =PRODUCT(E124/E152)*100 ->  | J124: 93000 | K124: =PRODUCT(J124/43560) -> 2.134986226 | L124: =IF(E124=0,"",M124) ->  | M124: 3 | N124: Mid | O124: =PRODUCT(J7*E124) -> 0
A125: Boneset | B125: Eupatorium perfoliatum | E125: 0 | F125: 0 | G125: =PRODUCT(F125/F152,100) ->  | I125: =PRODUCT(E125/E152)*100 ->  | J125: 160000 | K125: 3.673094582 | M125: 6 | N125: Late | O125: =PRODUCT(J7*E125) -> 0
A126: Cup Plant | B126: Silphium perfoliatum | E126: 0 | F126: =PRODUCT(K126,E126) -> 0 | G126: =PRODUCT(F126/F152,100) ->  | I126: =PRODUCT(E126/E152)*100 ->  | J126: 1400 | K126: 0.03213957759 | L126: =IF(E126=0,"",M126) ->  | M126: 1 | N126: Mid | O126: =PRODUCT(J7*E126) -> 0
A127: Joe-pye Weed | B127: Eutrochium maculatum | E127: 0 | F127: 0 | G127: =PRODUCT(F127/F152,100) ->  | I127: =PRODUCT(E127/E152)*100 ->  | J127: 95000 | K127: 2.180899908 | M127: 5 | N127: Mid | O127: =PRODUCT(J7*E127) -> 0
A128: New England Aster | B128: Symphyotrichum novae-angliae | E128: 0 | F128: 0 | G128: =PRODUCT(F128/F152,100) ->  | I128: =PRODUCT(E128/E152)*100 ->  | J128: 66000 | K128: 1.515151515 | M128: 3 | N128: Late | O128: =PRODUCT(J7*E128) -> 0
A129: Panicled Aster | B129: Symphyotrichum lanceolatum | E129: 0 | F129: 0 | G129: =PRODUCT(F129/F152,100) ->  | I129: =PRODUCT(E129/E152)*100 ->  | J129: 156000 | K129: 3.581267218 | M129: 4 | N129: Late | O129: =PRODUCT(J7*E129) -> 0
A130: Sneezeweed | B130: Helenium autumnale | E130: 0 | F130: =PRODUCT(K130,E130) -> 0 | G130: =PRODUCT(F130/F152,100) ->  | I130: =PRODUCT(E130/E152)*100 ->  | J130: 130000 | K130: =PRODUCT(J130/43560) -> 2.984389348 | M130: 4 | N130: Late | O130: =PRODUCT(J7*E130) -> 0
A131: Swamp Milkweed | B131: Asclepias incarnata | E131: 0 | F131: 0 | G131: =PRODUCT(F131/F152,100) ->  | I131: =PRODUCT(E131/E152)*100 ->  | J131: 4800 | K131: 0.1101928375 | M131: 4 | N131: Mid | O131: =PRODUCT(J7*E131) -> 0
A132: DRY to WET
A133: Anise Hyssop | B133: Agastache foeniculum | E133: 0 | F133: =PRODUCT(K133,E133) -> 0 | G133: =PRODUCT(F133/F152,100) ->  | H133: =IF(AND(51>G133),"OK","HIGH") ->  | I133: =PRODUCT(E133/E152)*100 ->  | J133: 91000 | K133: =PRODUCT(J133/43560) -> 2.089072544 | L133: =IF(E133=0,"",M133) ->  | M133: 4 | N133: Mid | O133: =PRODUCT(J7*E133) -> 0
A134: Black-eyed Susan | B134: Rudbeckia hirta | E134: 0 | F134: =PRODUCT(K134,E134) -> 0 | G134: =PRODUCT(F134/F152,100) ->  | H134: =IF(AND(51>G134),"OK","HIGH") ->  | I134: =PRODUCT(E134/E152)*100 ->  | J134: 92000 | K134: =PRODUCT(J134/43560) -> 2.112029385 | L134: =IF(E134=0,"",M134) ->  | M134: 2 | N134: Late | O134: =PRODUCT(J7*E134) -> 0
A135: Common Milkweed | B135: Asclepias syriaca | E135: 0 | F135: =PRODUCT(K135,E135) -> 0 | G135: =PRODUCT(F135/F152,100) ->  | I135: =PRODUCT(E135/E152)*100 ->  | J135: 4000 | K135: =PRODUCT(J135/43560) -> 0.09182736455 | L135: =IF(E135=0,"",M135) ->  | M135: 1 | N135: Mid | O135: =PRODUCT(J7*E135) -> 0
A136: Grassleaved Goldenrod | B136: Euthamia graminifolia | E136: 0 | F136: =PRODUCT(K136,E136) -> 0 | G136: =PRODUCT(F136/F152,100) ->  | I136: =PRODUCT(E136/E152)*100 ->  | J136: 350000 | K136: =PRODUCT(J136/43560) -> 8.034894399 | L136: =IF(E136=0,"",M136) ->  | M136: 4 | N136: Mid | O136: =PRODUCT(J7*E136) -> 0
A137: Illinois Bundleflower | B137: Desmanthus illinoensis | E137: 0 | F137: 0 | G137: =PRODUCT(F137/F152,100) ->  | I137: =PRODUCT(E137/E152)*100 ->  | J137: 4200 | K137: 0.09641873278 | M137: 4 | N137: Mid | O137: =PRODUCT(J7*E137) -> 0
A138: Purple Prairie Clover | B138: Petalostemum purpurum | C138: Legume | E138: 0 | F138: 0 | G138: =PRODUCT(F138/F152,100) ->  | I138: =PRODUCT(E138/E152)*100 ->  | J138: 18000 | K138: 0.4132231405 | M138: 8 | N138: Mid | O138: =PRODUCT(J7*E138) -> 0
A139: Maximillian Sunflower | B139: Helianthus maximiliani | E139: 0 | F139: 0 | G139: =PRODUCT(F139/F152,100) ->  | I139: =PRODUCT(E139/E152)*100 ->  | J139: 13000 | K139: 0.2984389348 | M139: 4 | N139: Late | O139: =PRODUCT(J7*E139) -> 0
A140: Stiff Goldenrod | B140: Solidago rigida | E140: 0 | F140: 0 | G140: =PRODUCT(F140/F152,100) ->  | I140: =PRODUCT(E140/E152)*100 ->  | J140: 41000 | K140: 0.9412304867 | M140: 4 | N140: Late | O140: =PRODUCT(J7*E140) -> 0
A141: White Prairie Clover | B141: Petalostemum candidum | C141: Legume | E141: 0 | F141: 0 | G141: =PRODUCT(F141/F152,100) ->  | I141: =PRODUCT(E141/E152)*100 ->  | J141: 19000 | K141: 0.4361799816 | M141: 10 | N141: Mid | O141: =PRODUCT(J7*E141) -> 0
A142: Yarrow | B142: Achillea millefolium | E142: 0 | F142: =PRODUCT(K142,E142) -> 0 | G142: =PRODUCT(F142/F152,100) ->  | H142: =IF(AND(51>G142),"OK","HIGH") ->  | I142: =PRODUCT(E142/E152)*100 ->  | J142: 180000 | K142: =PRODUCT(J142/43560) -> 4.132231405 | L142: =IF(E142=0,"",M142) ->  | M142: 1 | N142: Mid | O142: =PRODUCT(J7*E142) -> 0
A143: Yellow Giant Hyssop | B143: Agastache nepetoides | E143: 0 | F143: =PRODUCT(K143,E143) -> 0 | G143: =PRODUCT(F143/F152,100) ->  | H143: =IF(AND(51>G143),"OK","HIGH") ->  | I143: =PRODUCT(E143/E152)*100 ->  | J143: 91000 | K143: =PRODUCT(J143/43560) -> 2.089072544 | L143: =IF(E143=0,"",M143) ->  | M143: 4 | N143: Late | O143: =PRODUCT(J7*E143) -> 0
A144: ADDITIONAL APPROVED FORBS 7/
E145: 0 | F145: =PRODUCT(K145,E145) -> 0 | G145: =PRODUCT(F145/F152,100) ->  | H145: =IF(AND(51>G145),"OK","HIGH") ->  | I145: =PRODUCT(E145/E152)*100 ->  | K145: =PRODUCT(J145/43560) -> 0 | L145: =IF(E145=0,"",M145) ->  | O145: =PRODUCT(J7*E145) -> 0
E146: 0 | F146: 0 | G146: =PRODUCT(F146/F152,100) ->  | I146: =PRODUCT(E146/E152)*100 ->  | K146: 0 | O146: =PRODUCT(J7*E146) -> 0
E147: 0 | F147: 0 | G147: =PRODUCT(F147/F152,100) ->  | I147: =PRODUCT(E147/E152)*100 ->  | K147: 0 | O147: =PRODUCT(J7*E147) -> 0
E148: 0 | F148: 0 | G148: =PRODUCT(F148/F152,100) ->  | I148: =PRODUCT(E148/E152)*100 ->  | K148: 0 | O148: =PRODUCT(J7*E148) -> 0
E149: 0 | F149: 0 | G149: =PRODUCT(F149/F152,100) ->  | I149: =PRODUCT(E149/E152)*100 ->  | K149: 0 | O149: =PRODUCT(J7*E149) -> 0
E150: 0 | F150: 0 | G150: =PRODUCT(F150/F152,100) ->  | I150: =PRODUCT(E150/E152)*100 ->  | K150: 0 | O150: =PRODUCT(J7*E150) -> 0
C152: TOTAL OUNCES PLS | E152: =SUM(E75:E150) -> 0 | F152: =SUM(F75:F150) -> 0 | G152: =SUM(G75:G150) ->  | I152: =SUM(I75:I150) ->  | K152: AVE COC FORB | L152: =AVERAGE(L75:L150) -> 
F154: 3/ Individual species not to exceed 50% of the forb component by seeds/ft
B155: TOTAL SEEDS/FT 4/ | C155: =SUM(F59,F152) -> 0 | E155: =IF(AND(35<C155),"OK","LOW") -> LOW | F155: 4/ Minimum 35-40 seeds/square foot
B156: PERCENT GRASS 5/ | C156: =PRODUCT(F59/C155)*100 ->  | E156: =IF(AND(90>C156),"","HIGH") ->  | F156: 5/ Maximum 90% grasses
B157: PERCENT FLOWER | C157: =PRODUCT(F152/C155)*100 ->  | F157: 6/ Assignment of Coefficients
B158: AVE. COC - MIX | C158: =AVERAGE(L17:L57,L75:L150) ->  | F158: 0 to 3 : Plants with a high range of ecological tolerances/found in a variety of plant communities
B159: SPECIES RICHNESS | C159: =COUNT(L17:L57,L75:L150) -> 0 | F159: 4 to 6 : Plants with an intermediate range of ecological tolerances/ associated with a specific plant community
F160: 7 to 8 : Plants with a poor range of ecological tolerances/associated with advanced successional stage
F161: 9 to 10 : Plants with a high degree of fidelity to a narrow range of pristine habitats
F162: 7/ Consult with the appropriate NRCS Area Resource Conservationist or Biologist for prior approval of additional species.

Sheet 393 CREP CP21 Filter Strip
A1: CREP 393 FILTER STRIP - NATIVE GRASSES/FORBS
A2: Seeding Design
I3: DATE | J3: =TODAY() -> 2022-06-16
A5: LANDOWNER | H5: TRACT/FIELD
A7: PLANNER | H7: ACRES SEEDED
I11: Background Information
A12: GRASS SPECIES | C12: PLANNED % | E12: POUNDS | F12: TOTAL SEEDS/ | G12: % OF GRASS MIX BY SEEDS/FT 1/ | I12: Seeds/Pound | J12: SEEDS/ | K12: POUNDS PLS
C13: OF GRASS MIX BY | E13: PLS/AC. | F13: SQ. FOOT | J13: SQ. FOOT
C14: SEEDS/SQ. FOOT | J14: At 1 lb./Ac Rate
C15: Planned
A16: Warm Season
A17: Big Bluestem | B17: Andropogon gerardii | C17: 0 to 50 | E17: 0 | F17: =PRODUCT(J17,E17) -> 0 | G17: =PRODUCT(F17/F59,100) ->  | H17: =IF(AND(51>G17),"OK","HIGH") ->  | I17: 176000 | J17: =PRODUCT(I17/43560) -> 4.04040404 | K17: =PRODUCT(J7,E17) -> 0
A18: Blue Grama | B18: Bouteloua gracilis | C18: 0 to 25 | E18: 0 | F18: =PRODUCT(J18,E18) -> 0 | G18: =PRODUCT(F18/F59,100) ->  | H18: =IF(AND(26>G18),"OK","HIGH") ->  | I18: 750000 | J18: =PRODUCT(I18/43560) -> 17.21763085 | K18: =PRODUCT(J7,E18) -> 0
A19: Indiangrass | B19: Sorgastrum nutans | C19: 0 to 25 | E19: 0 | F19: =PRODUCT(J19,E19) -> 0 | G19: =PRODUCT(F19/F59,100) ->  | H19: =IF(AND(26>G19),"OK","HIGH") ->  | I19: 193000 | J19: =PRODUCT(I19/43560) -> 4.43067034 | K19: =PRODUCT(J7,E19) -> 0
A20: Little Bluestem | B20: Schizachryrium scoparium | C20: 0 to 25 | E20: 0 | F20: =PRODUCT(J20,E20) -> 0 | G20: =PRODUCT(F20/F59,100) ->  | H20: =IF(AND(26>G20),"OK","HIGH") ->  | I20: 286000 | J20: =PRODUCT(I20/43560) -> 6.565656566 | K20: =PRODUCT(J7,E20) -> 0
A21: Prairie Cordgrass | B21: Spartina pectinata | C21: 0 to 100 | E21: 0 | F21: =PRODUCT(J21,E21) -> 0 | G21: =PRODUCT(F21/F59,100) ->  | H21: =IF(AND(101>G21),"OK","HIGH") ->  | I21: 183000 | J21: =PRODUCT(I21/43560) -> 4.201101928 | K21: =PRODUCT(J7,E21) -> 0
A22: Sideoats Grama | B22: Bouteloua curtipendula | C22: 0 to 25 | E22: 0 | F22: 0 | G22: =PRODUCT(F22/F59,100) ->  | H22: =IF(AND(26>G22),"OK","HIGH") ->  | I22: 180000 | J22: 4.132231405 | K22: =PRODUCT(J7,E22) -> 0
A23: Switchgrass | B23: Panicum virgatum | C23: 0 to 100 | E23: 0 | F23: 0 | G23: =PRODUCT(F23/F59,100) ->  | H23: =IF(AND(101>G23),"OK","HIGH") ->  | I23: 390000 | J23: 8.953168044 | K23: =PRODUCT(J7,E23) -> 0
A24: Cool Season
A25: Canada Wildrye | B25: Elymus canadensis | C25: 0 to 25 | E25: 0 | F25: 0 | G25: =PRODUCT(F25/F59,100) ->  | H25: =IF(AND(26>G25),"OK","HIGH") ->  | I25: 115000 | J25: 2.640036731 | K25: =PRODUCT(J7,E25) -> 0
A26: Fringed Brome | B26: Bromub ciliatus | C26: 0 to 50 | E26: 0 | F26: =PRODUCT(J26,E26) -> 0 | G26: =PRODUCT(F26/F59,100) ->  | H26: =IF(AND(51>G26),"OK","HIGH") ->  | I26: 160000 | J26: =PRODUCT(I26/43560) -> 3.673094582 | K26: =PRODUCT(J7,E26) -> 0
A27: Green Needlegrass | B27: Nassella viridula | C27: 0 to 25 | E27: 0 | F27: =PRODUCT(J27,E27) -> 0 | G27: =PRODUCT(F27/F59,100) ->  | H27: =IF(AND(26>G27),"OK","HIGH") ->  | I27: 180000 | J27: =PRODUCT(I27/43560) -> 4.132231405 | K27: =PRODUCT(J7,E27) -> 0
A28: Kalms Brome | B28: Bromus kalmii | C28: 0 to 25 | E28: 0 | F28: =PRODUCT(J28,E28) -> 0 | G28: =PRODUCT(F28/F59,100) ->  | H28: =IF(AND(26>G28),"OK","HIGH") ->  | I28: 128000 | J28: =PRODUCT(I28/43560) -> 2.938475666 | K28: =PRODUCT(J7,E28) -> 0
A29: Slender Wheatgrass | B29: Agropyron caninum | C29: 0 to 25 | E29: 0 | F29: 0 | G29: =PRODUCT(F29/F59,100) ->  | H29: =IF(AND(26>G29),"OK","HIGH") ->  | I29: 155000 | J29: 3.558310376 | K29: =PRODUCT(J7,E29) -> 0
A30: Virginia Wildrye | B30: Elymus virginicus | C30: 0 to 25 | E30: 0 | F30: 0 | G30: =PRODUCT(F30/F59,100) ->  | H30: =IF(AND(26>G30),"OK","HIGH") ->  | I30: 96000 | J30: 2.203856749 | K30: =PRODUCT(J7,E30) -> 0
A31: Western Wheatgrass | B31: Agropyron smithii | C31: 0 to 50 | E31: 0 | F31: =PRODUCT(J31,E31) -> 0 | G31: =PRODUCT(F31/F59,100) ->  | H31: =IF(AND(51>G31),"OK","HIGH") ->  | I31: 112000 | J31: =PRODUCT(I31/43560) -> 2.571166208 | K31: =PRODUCT(J7,E31) -> 0
E32: 0
E33: 0
E34: 0
E35: 0
E36: 0
E37: 0
E38: 0
E39: 0
E40: 0
E41: 0
E42: 0
E43: 0
E44: 0
E45: 0
E46: 0
E47: 0
E48: 0
E49: 0
E50: 0
E51: 0
E52: 0
E53: 0
E54: 0
E55: 0
E56: 0
E57: 0
C59: TOTAL POUNDS PLS | E59: =SUM(E17:E31) -> 0 | F59: =SUM(F17:F31) -> 0 | G59: =SUM(G17:G31) -> 
A69: 1/ ACTUAL SEEDS PER SQUARE FOOT SHALL BE WITHIN THE RANGE SPECIFIED IN PLANNED CONDITION
I70: Background Information
A71: FORB SPECIES | E71: OUNCES | F71: TOTAL SEEDS/ | G71: % FORBS BY SEEDS | I71: SEEDS/oz | J71: SEEDS/ | K71: OUNCES PLS
E72: PLS/AC. | F72: SQ. FOOT | G72: SQ./FT | J72: SQ. FOOT
J73: At 1 oz/ac Rate
A75: Canada Goldenrod | B75: Solidago canadensis | E75: 0 | F75: =PRODUCT(J75,E75) -> 0 | G75: =PRODUCT(F75/F152,100) ->  | H75: =IF(AND(50>G75),"OK","HIGH") ->  | I75: 287500 | J75: =PRODUCT(I75/43560) -> 6.600091827 | K75: =PRODUCT(J7,E75) -> 0
A76: Cup Plant | B76: Silphium perfoliatum | E76: 0 | F76: 0 | G76: =PRODUCT(F76/F152,100) ->  | I76: 1400 | J76: 0.03213957759 | K76: =PRODUCT(J7,E76) -> 0
A77: Giant Hyssop | B77: Agastache foeniculum | E77: 0 | F77: 0 | G77: =PRODUCT(F77/F152,100) ->  | I77: 91000 | J77: 2.089072544 | K77: =PRODUCT(J7,E77) -> 0
A78: Giant/Late Goldenrod | B78: Solidago gigantea | E78: 0 | F78: 0 | G78: =PRODUCT(F78/F152,100) ->  | I78: 250000 | J78: 5.739210285 | K78: =PRODUCT(J7,E78) -> 0
A79: Grass-leaved Goldenrod | B79: Euthamia graminifolia | E79: 0 | F79: 0 | G79: =PRODUCT(F79/F152,100) ->  | I79: 350000 | J79: 8.034894399 | K79: =PRODUCT(J7,E79) -> 0
A80: Ironweed | B80: Veronia fasticulata | E80: 0 | F80: 0 | G80: =PRODUCT(F80/F152,100) ->  | I80: 24000 | J80: 0.5509641873 | K80: =PRODUCT(J7,E80) -> 0
A81: Joe-pye Weed | B81: Eutrochium maculatum | E81: 0 | F81: 0 | G81: =PRODUCT(F81/F152,100) ->  | I81: 95000 | J81: 2.180899908 | K81: =PRODUCT(J7,E81) -> 0
A82: Mountain Mint | B82: Pycnanthemum virginianum | E82: 0 | F82: =PRODUCT(J82,E82) -> 0 | G82: =PRODUCT(F82/F152,100) ->  | I82: 220000 | J82: 5.050505051 | K82: =PRODUCT(J7,E82) -> 0
A83: New England Aster | B83: Symphyotrichum novae-angliae | E83: 0 | F83: 0 | G83: =PRODUCT(F83/F152,100) ->  | I83: 66000 | J83: 1.515151515 | K83: =PRODUCT(J7,E83) -> 0
A84: Sneezeweed | B84: Helenium autumnale | E84: 0 | F84: 0 | G84: =PRODUCT(F84/F152,100) ->  | I84: 130000 | J84: 2.984389348 | K84: =PRODUCT(J7,E84) -> 0
A85: Stiff Goldenrod | B85: Solidago rigida | E85: 0 | F85: 0 | G85: =PRODUCT(F85/F152,100) ->  | I85: 41000 | J85: 0.9412304867 | K85: =PRODUCT(J7,E85) -> 0
A86: Panicled Aster | B86: Symphyotrichum lanceolatum | E86: 0 | F86: 0 | G86: =PRODUCT(F86/F152,100) ->  | I86: 156000 | J86: 3.581267218 | K86: =PRODUCT(J7,E86) -> 0
A87: Swamp Milkweed | B87: Asclepias incarnata | E87: 0 | F87: 0 | G87: =PRODUCT(F87/F152,100) ->  | I87: 4800 | J87: 0.1101928375 | K87: =PRODUCT(J7,E87) -> 0
A88: White Sage | B88: Artemisia ludoviciana | E88: 0 | F88: 0 | G88: =PRODUCT(F88/F152,100) ->  | I88: 4048000 | J88: 92.92929293 | K88: =PRODUCT(J7,E88) -> 0
A89: Wild Bergamot | B89: Monarda fistulosa | E89: 0 | F89: 0 | G89: =PRODUCT(F89/F152,100) ->  | I89: 70000 | J89: 1.60697888 | K89: =PRODUCT(J7,E89) -> 0
A90: Yellow Coneflower | B90: Ratibida pinnata | E90: 0 | F90: 0 | G90: =PRODUCT(F90/F152,100) ->  | I90: 30000 | J90: 0.6887052342 | K90: =PRODUCT(J7,E90) -> 0
E91: 0
E92: 0
E93: 0
E94: 0
E95: 0
E96: 0
E97: 0
E98: 0
E99: 0
E100: 0
E101: 0
E102: 0
E103: 0
E104: 0
E105: 0
E106: 0
E107: 0
E108: 0
E109: 0
E110: 0
E111: 0
E112: 0
E113: 0
E114: 0
E115: 0
E116: 0
E117: 0
E118: 0
E119: 0
E120: 0
E121: 0
E122: 0
E123: 0
E124: 0
E125: 0
E126: 0
E127: 0
E128: 0
E129: 0
E130: 0
E131: 0
E132: 0
E133: 0
E134: 0
E135: 0
E136: 0
E137: 0
E138: 0
E139: 0
E140: 0
E141: 0
E142: 0
E143: 0
E144: 0
E145: 0
E146: 0
E147: 0
E148: 0
E149: 0
E150: 0
C152: TOTAL OUNCES PLS | E152: =SUM(E75:E90) -> 0 | F152: =SUM(F75:F90) -> 0 | G152: =SUM(G75:G90) -> 
A155: TOTAL SEEDS/FT2 | C155: =SUM(F59,F152) -> 0 | E155: =IF(AND(55<C155),"OK","LOW") -> LOW | F155: Minimum 55 seeds/square foot
A157: PERCENT GRASS | C157: =(F59/C155)*100 -> 
A158: PERCENT FORBS | C158: =PRODUCT(F152/C155)*100 ->  | E158: =IF(AND(10.1>C158),"OK","HIGH") ->  | F158: Forbs - NTE 10% of mix

Sheet 657 CREP Wet-Sedge Meadow CP23A
A1: CREP 657 WET/SEDGE MEADOW
A2: Seeding Design
I3: DATE | J3: =TODAY() -> 2022-06-16
A5: LANDOWNER | I5: TRACT/FIELD
A7: PLANNER | I7: ACRES SEEDED
A14: GRASS SPECIES | E14: POUNDS | F14: % OF GRASS COMPONENT | G14: % OF TOTAL MIX | H14: SEEDS/ | I14: SEEDS/ | J14: POUNDS PLS
E15: PLS/AC. | H15: SQ. FOOT | I15: SQ. FOOT
H16: GRASS | I16: At 1 lb/Ac Rate
A17: Big Bluestem | B17: Andropogon gerardi | E17: 0 | F17: =PRODUCT(H17/H33)*100 ->  | G17: =PRODUCT(H17/B154)*100 ->  | H17: =PRODUCT(I17,E17) -> 0 | I17: 4 | J17: =PRODUCT(E17*J7) -> 0
A18: Fringed Brome | B18: Bromus ciliata | E18: 0 | F18: =PRODUCT(H18/H33)*100 ->  | G18: =PRODUCT(H18/B154)*100 ->  | H18: 0 | I18: 3.7 | J18: =PRODUCT(E18*J7) -> 0
A19: Canada Bluejoint | B19: Calamagrostis canadensis | E19: 0 | F19: =PRODUCT(H19/H33)*100 ->  | G19: =PRODUCT(H19/B154)*100 ->  | H19: 0 | I19: 102.8 | J19: =PRODUCT(E19*J7) -> 0
A20: Virginia Wildrye | B20: Elymus virginicus | E20: 0 | F20: =PRODUCT(H20/H33)*100 ->  | G20: =PRODUCT(H20/B154)*100 ->  | H20: 0 | I20: 2.2 | J20: =PRODUCT(E20*J7) -> 0
A21: Tall Manna Grass | B21: Glyceria grandis | E21: 0 | F21: =PRODUCT(H21/H33)*100 ->  | G21: =PRODUCT(H21/B154)*100 ->  | H21: 0 | I21: 29.38 | J21: =PRODUCT(E21*J7) -> 0
A22: Fowl Manna Grass | B22: Glyceria striata | E22: 0 | F22: =PRODUCT(H22/H33)*100 ->  | G22: =PRODUCT(H22/B154)*100 ->  | H22: 0 | I22: 58.77 | J22: =PRODUCT(E22*J7) -> 0
A23: Rice Cut Grass | B23: Leersia oryzoides | E23: 0 | F23: =PRODUCT(H23/H33)*100 ->  | G23: =PRODUCT(H23/B154)*100 ->  | H23: 0 | I23: 12.49 | J23: =PRODUCT(E23*J7) -> 0
A24: Switchgrass | B24: Panicum virgatum | E24: 0 | F24: =PRODUCT(H24/H33)*100 ->  | G24: =PRODUCT(H24/B154)*100 ->  | H24: 0 | I24: 9 | J24: =PRODUCT(E24*J7) -> 0
A25: Fowl Bluegrass | B25: Poa palustris | E25: 0 | F25: =PRODUCT(H25/H33)*100 ->  | G25: =PRODUCT(H25/B154)*100 ->  | H25: 0 | I25: 47.8 | J25: =PRODUCT(E25*J7) -> 0
A26: Indiangrass | B26: Sorgastrum nutans | E26: 0 | F26: =PRODUCT(H26/H33)*100 ->  | G26: =PRODUCT(H26/B154)*100 ->  | H26: 0 | I26: 4.4 | J26: =PRODUCT(E26*J7) -> 0
A27: Prairie Cordgrass | B27: Spartina pectinata | E27: 0 | F27: =PRODUCT(H27/H33)*100 ->  | G27: =PRODUCT(H27/B154)*100 ->  | H27: 0 | I27: 4.2 | J27: =PRODUCT(E27*J7) -> 0
E28: 0 | F28: =PRODUCT(H28/H33)*100 ->  | G28: =PRODUCT(H28/B154)*100 ->  | H28: 0 | J28: =PRODUCT(E28*J7) -> 0
E29: 0 | F29: =PRODUCT(H29/H33)*100 ->  | G29: =PRODUCT(H29/B154)*100 ->  | H29: 0 | J29: =PRODUCT(E29*J7) -> 0
E30: 0 | F30: =PRODUCT(H30/H33)*100 ->  | G30: =PRODUCT(H30/B154)*100 ->  | H30: 0 | J30: =PRODUCT(E30*J7) -> 0
E31: 0 | F31: =PRODUCT(H31/H33)*100 ->  | G31: =PRODUCT(H31/B154)*100 ->  | H31: 0 | J31: =PRODUCT(E31*J7) -> 0
E32: 0 | F32: =PRODUCT(H32/H33)*100 ->  | G32: =PRODUCT(H32/B154)*100 ->  | H32: 0 | J32: =PRODUCT(E32*J7) -> 0
A33: TOTAL POUNDS | B33: =SUM(E17:E32) -> 0 | H33: =SUM(H17:H32) -> 0
A35: SEDGE/RUSH SPECIES | E35: POUNDS | F35: % OF SEDGE COMPONENT | G35: % OF TOTAL MIX | H35: SEEDS/ | I35: SEEDS/ | J35: POUNDS PLS
E36: PLS/AC. | H36: SQ. FOOT | I36: SQ. FOOT
H37: SEDGES | I37: At 1 lb/Ac Rate
A38: Bebb's Sedge | B38: Carex bebbii | E38: 0 | F38: =PRODUCT(H38/H58)*100 ->  | G38: =PRODUCT(H38/B154)*100 ->  | H38: =PRODUCT(I38,E38) -> 0 | I38: 12.5 | J38: =PRODUCT(E38*J7) -> 0
A39: Bristly Sedge | B39: Carex comosa | E39: 0 | F39: =PRODUCT(H39/H58)*100 ->  | G39: =PRODUCT(H39/B154)*100 ->  | H39: =PRODUCT(I39,E39) -> 0 | I39: 11.02 | J39: =PRODUCT(E39*J7) -> 0
A40: Wooly Sedge | B40: Carex pellita | E40: 0 | F40: =PRODUCT(H40/H58)*100 ->  | G40: =PRODUCT(H40/B154)*100 ->  | H40: =PRODUCT(I40,E40) -> 0 | I40: 10.28 | J40: =PRODUCT(E40*J7) -> 0
A41: Retrosa Sedge | B41: Carex retrorsa | E41: 0 | F41: =PRODUCT(H41/H58)*100 ->  | G41: =PRODUCT(H41/B154)*100 ->  | H41: =PRODUCT(I41,E41) -> 0 | I41: 4 | J41: =PRODUCT(E41*J7) -> 0
A42: Pointed Broom Sedge | B42: Carex scoparia | E42: 0 | F42: =PRODUCT(H42/H58)*100 ->  | G42: =PRODUCT(H42/B154)*100 ->  | H42: 0 | I42: 30.85 | J42: =PRODUCT(E42*J7) -> 0
A43: Awl-fruited Sedge | B43: Carex stipata | E43: 0 | F43: =PRODUCT(H43/H58)*100 ->  | G43: =PRODUCT(H43/B154)*100 ->  | H43: 0 | I43: 12.49 | J43: =PRODUCT(E43*J7) -> 0
A44: Tussock Sedge | B44: Carex stricta | E44: 0 | F44: =PRODUCT(H44/H58)*100 ->  | G44: =PRODUCT(H44/B154)*100 ->  | H44: 0 | I44: 19.47 | J44: =PRODUCT(E44*J7) -> 0
A45: Fox Sedge | B45: Carex vulpinoidea | E45: 0 | F45: =PRODUCT(H45/H58)*100 ->  | G45: =PRODUCT(H45/B154)*100 ->  | H45: 0 | I45: 36.73 | J45: =PRODUCT(E45*J7) -> 0
A46: Spike-rush | B46: Eleocharis acicularis | E46: 0 | F46: =PRODUCT(H46/H58)*100 ->  | G46: =PRODUCT(H46/B154)*100 ->  | H46: =PRODUCT(I46,E46) -> 0 | I46: 25.7 | J46: =PRODUCT(E46*J7) -> 0
A47: Creeping spike-rush | B47: Eleocharis palustris | E47: 0 | F47: =PRODUCT(H47/H58)*100 ->  | G47: =PRODUCT(H47/B154)*100 ->  | H47: =PRODUCT(I47,E47) -> 0 | I47: 18.7 | J47: =PRODUCT(E47*J7) -> 0
A48: Knotted Rush | B48: Juncus nodosus | E48: 0 | F48: =PRODUCT(H48/H58)*100 ->  | G48: =PRODUCT(H48/B154)*100 ->  | H48: =PRODUCT(I48,E48) -> 0 | I48: 679.9 | J48: =PRODUCT(E48*J7) -> 0
A49: Path Rush | B49: Juncus tenuis | E49: 0 | F49: =PRODUCT(H49/H58)*100 ->  | G49: =PRODUCT(H49/B154)*100 ->  | H49: 0 | I49: 367.31 | J49: =PRODUCT(E49*J7) -> 0
A50: Torrey's Rush | B50: Juncus torreyii | E50: 0 | F50: =PRODUCT(H50/H58)*100 ->  | G50: =PRODUCT(H50/B154)*100 ->  | H50: =PRODUCT(I50,E50) -> 0 | I50: 587.7 | J50: =PRODUCT(E50*J7) -> 0
A51: Dark Green Bulrush | B51: Scirpus atrovirens | E51: 0 | F51: =PRODUCT(H51/H58)*100 ->  | G51: =PRODUCT(H51/B154)*100 ->  | H51: 0 | I51: 168.96 | J51: =PRODUCT(E51*J7) -> 0
A52: Woolgrass | B52: Scirpus cypernius | E52: 0 | F52: =PRODUCT(H52/H58)*100 ->  | G52: =PRODUCT(H52/B154)*100 ->  | H52: 0 | I52: 624.43 | J52: =PRODUCT(E52*J7) -> 0
E53: 0 | F53: =PRODUCT(H53/H58)*100 ->  | G53: =PRODUCT(H53/B154)*100 ->  | H53: 0 | J53: =PRODUCT(E53*J7) -> 0
E54: 0 | F54: =PRODUCT(H54/H58)*100 ->  | G54: =PRODUCT(H54/B154)*100 ->  | H54: 0 | J54: =PRODUCT(E54*J7) -> 0
E55: 0 | F55: =PRODUCT(H55/H58)*100 ->  | G55: =PRODUCT(H55/B154)*100 ->  | H55: 0 | J55: =PRODUCT(E55*J7) -> 0
E56: 0 | F56: =PRODUCT(H56/H58)*100 ->  | G56: =PRODUCT(H56/B154)*100 ->  | H56: 0 | J56: =PRODUCT(E56*J7) -> 0
E57: 0 | F57: =PRODUCT(H57/H58)*100 ->  | G57: =PRODUCT(H57/B154)*100 ->  | H57: 0 | J57: =PRODUCT(E57*J7) -> 0
A58: TOTAL POUNDS | B58: =SUM(E38:E57) -> 0 | H58: =SUM(H38:H57) -> 0
A72: FORB SPECIES | E72: OUNCES | F72: % OF FORB COMPONENT | G72: % OF TOTAL MIX | H72: SEEDS/ | I72: SEEDS/ | J72: OUNCES PLS
E73: PLS/AC. | H73: SQ. FOOT | I73: SQ. FOOT
H74: FORBS | I74: At 1 oz/Ac Rate
A75: Blue Giant Hyssop | B75: Agastache foeniculum | E75: 0 | F75: =PRODUCT(H75/H151)*100 ->  | G75: =PRODUCT(H75/B154)*100 ->  | H75: =PRODUCT(I75,E75) -> 0 | I75: 2.09 | J75: =PRODUCT(E75*J7) -> 0
A76: Canada Anemone | B76: Anemone canadensis | E76: 0 | F76: =PRODUCT(H76/H151)*100 ->  | G76: =PRODUCT(H76/B154)*100 ->  | H76: =PRODUCT(I76,E76) -> 0 | I76: 0.18 | J76: =PRODUCT(E76*J7) -> 0
A77: Dogbane | B77: Apocynum spp. | E77: 0 | F77: =PRODUCT(H77/H151)*100 ->  | G77: =PRODUCT(H77/B154)*100 ->  | H77: =PRODUCT(I77,E77) -> 0 | I77: 0.5 | J77: =PRODUCT(E77*J7) -> 0
A78: Swamp Milkweed | B78: Asclepias incarnata | E78: 0 | F78: =PRODUCT(H78/H151)*100 ->  | G78: =PRODUCT(H78/B154)*100 ->  | H78: =PRODUCT(I78,E78) -> 0 | I78: 0.11 | J78: =PRODUCT(E78*J7) -> 0
A79: Beggar's Ticks | B79: Bidens cernua | E79: 0 | F79: =PRODUCT(H79/H151)*100 ->  | G79: =PRODUCT(H79/B154)*100 ->  | H79: =PRODUCT(I79,E79) -> 0 | I79: 0.5 | J79: =PRODUCT(E79*J7) -> 0
A80: Canada Tick Trefoil | B80: Desmodium canadense | E80: 0 | F80: =PRODUCT(H80/H151)*100 ->  | G80: =PRODUCT(H80/B154)*100 ->  | H80: 0 | I80: 0.13 | J80: =PRODUCT(E80*J7) -> 0
A81: Flat-topped/White Aster | B81: Doellingeria umbellata | E81: 0 | F81: =PRODUCT(H81/H151)*100 ->  | G81: =PRODUCT(H81/B154)*100 ->  | H81: 0 | I81: 1.54 | J81: =PRODUCT(E81*J7) -> 0
A82: Joe-pye Weed | B82: Eutrochium maculatum | E82: 0 | F82: =PRODUCT(H82/H151)*100 ->  | G82: =PRODUCT(H82/B154)*100 ->  | H82: 0 | I82: 2.18 | J82: =PRODUCT(E82*J7) -> 0
A83: Boneset | B83: Eupatorium perfoliatum | E83: 0 | F83: =PRODUCT(H83/H151)*100 ->  | G83: =PRODUCT(H83/B154)*100 ->  | H83: 0 | I83: 3.67 | J83: =PRODUCT(E83*J7) -> 0
A84: Grass-leaved Goldenrod | B84: Euthamia gramnifolia | E84: 0 | F84: =PRODUCT(H84/H151)*100 ->  | G84: =PRODUCT(H84/B154)*100 ->  | H84: 0 | I84: 8.03 | J84: =PRODUCT(E84*J7) -> 0
A85: Sneezeweed | B85: Helenium autumnale | E85: 0 | F85: =PRODUCT(H85/H151)*100 ->  | G85: =PRODUCT(H85/B154)*100 ->  | H85: 0 | I85: 2.98 | J85: =PRODUCT(E85*J7) -> 0
A86: Sawtooth Sunflower | B86: Helianthus grosseserratus | E86: 0 | F86: =PRODUCT(H86/H151)*100 ->  | G86: =PRODUCT(H86/B154)*100 ->  | H86: 0 | I86: 0.23 | J86: =PRODUCT(E86*J7) -> 0
A87: Blue-flag Iris | B87: Iris versicolor | E87: 0 | F87: =PRODUCT(H87/H151)*100 ->  | G87: =PRODUCT(H87/B154)*100 ->  | H87: =PRODUCT(I87,E87) -> 0 | I87: 0.1 | J87: =PRODUCT(E87*J7) -> 0
A88: Meadow Blazingstar | B88: Liatris lingulistylis | E88: 0 | F88: =PRODUCT(H88/H151)*100 ->  | G88: =PRODUCT(H88/B154)*100 ->  | H88: 0 | I88: 0.25 | J88: =PRODUCT(E88*J7) -> 0
A89: Tall Blazingstar | B89: Liatris pycnostachya | E89: 0 | F89: =PRODUCT(H89/H151)*100 ->  | G89: =PRODUCT(H89/B154)*100 ->  | H89: 0 | I89: 0.25 | J89: =PRODUCT(E89*J7) -> 0
A90: Great Blue Lobelia | B90: Lobelia siphilitica | E90: 0 | F90: =PRODUCT(H90/H151)*100 ->  | G90: =PRODUCT(H90/B154)*100 ->  | H90: 0 | I90: 11.48 | J90: =PRODUCT(E90*J7) -> 0
A91: Water Horehound | B91: Lycopus americanus | E91: 0 | F91: =PRODUCT(H91/H151)*100 ->  | G91: =PRODUCT(H91/B154)*100 ->  | H91: =PRODUCT(I91,E91) -> 0 | I91: 2.98 | J91: =PRODUCT(E91*J7) -> 0
A92: Blue Monkey Flower | B92: Mimulus ringens | E92: 0 | F92: =PRODUCT(H92/H151)*100 ->  | G92: =PRODUCT(H92/B154)*100 ->  | H92: 0 | I92: 52.8 | J92: =PRODUCT(E92*J7) -> 0
A93: Mountain Mint | B93: Pycnanthmum virginianum | E93: 0 | F93: =PRODUCT(H93/H151)*100 ->  | G93: =PRODUCT(H93/B154)*100 ->  | H93: 0 | I93: 5.05 | J93: =PRODUCT(E93*J7) -> 0
A94: Giant Goldenrod | B94: Solidago gigantea | E94: 0 | F94: =PRODUCT(H94/H151)*100 ->  | G94: =PRODUCT(H94/B154)*100 ->  | H94: 0 | I94: 5.74 | J94: =PRODUCT(E94*J7) -> 0
A95: Panicled Aster | B95: Symphyotrichum lanceolatum | E95: 0 | F95: =PRODUCT(H95/H151)*100 ->  | G95: =PRODUCT(H95/B154)*100 ->  | H95: 0 | I95: 3.58 | J95: =PRODUCT(E95*J7) -> 0
A96: New England Aster | B96: Symphyotrichum novae-angliae | E96: 0 | F96: =PRODUCT(H96/H151)*100 ->  | G96: =PRODUCT(H96/B154)*100 ->  | H96: =PRODUCT(I96,E96) -> 0 | I96: 1.5 | J96: =PRODUCT(E96*J7) -> 0
A97: Red-stemmed/Swamp Aster | B97: Symphyotrichum puniceum | E97: 0 | F97: =PRODUCT(H97/H151)*100 ->  | G97: =PRODUCT(H97/B154)*100 ->  | H97: 0 | I97: 1.84 | J97: =PRODUCT(E97*J7) -> 0
A98: Tall Meadow Rue | B98: Thalictrum dasycarpum | E98: 0 | F98: =PRODUCT(H98/H151)*100 ->  | G98: =PRODUCT(H98/B154)*100 ->  | H98: 0 | I98: 0.25 | J98: =PRODUCT(E98*J7) -> 0
A99: Blue Vervain | B99: Verbena hastata | E99: 0 | F99: =PRODUCT(H99/H151)*100 ->  | G99: =PRODUCT(H99/B154)*100 ->  | H99: 0 | I99: 2.13 | J99: =PRODUCT(E99*J7) -> 0
A100: Ironweed | B100: Verona fasticulata | E100: 0 | F100: =PRODUCT(H100/H151)*100 ->  | G100: =PRODUCT(H100/B154)*100 ->  | H100: 0 | I100: 0.55 | J100: =PRODUCT(E100*J7) -> 0
A101: Culvers Root | B101: Veronicastrum virginicum | E101: 0 | F101: =PRODUCT(H101/H151)*100 ->  | G101: =PRODUCT(H101/B154)*100 ->  | H101: 0 | I101: 18.37 | J101: =PRODUCT(E101*J7) -> 0
A102: Golden Alexanders | B102: Zizia aurea | E102: 0 | F102: =PRODUCT(H102/H151)*100 ->  | G102: =PRODUCT(H102/B154)*100 ->  | H102: 0 | I102: 0.25 | J102: =PRODUCT(E102*J7) -> 0
E103: 0 | F103: =PRODUCT(H103/H151)*100 ->  | G103: =PRODUCT(H103/B154)*100 ->  | H103: 0 | J103: =PRODUCT(E103*J7) -> 0
E104: 0 | F104: =PRODUCT(H104/H151)*100 ->  | G104: =PRODUCT(H104/B154)*100 ->  | H104: 0 | J104: =PRODUCT(E104*J7) -> 0
E105: 0 | F105: =PRODUCT(H105/H151)*100 ->  | G105: =PRODUCT(H105/B154)*100 ->  | H105: 0 | J105: =PRODUCT(E105*J7) -> 0
E106: 0 | F106: =PRODUCT(H106/H151)*100 ->  | G106: =PRODUCT(H106/B154)*100 ->  | H106: 0 | J106: =PRODUCT(E106*J7) -> 0
E107: 0
E108: 0
E109: 0
E110: 0
E111: 0
E112: 0
E113: 0
E114: 0
E115: 0
E116: 0
E117: 0
E118: 0
E119: 0
E120: 0
E121: 0
E122: 0
E123: 0
E124: 0
E125: 0
E126: 0
E127: 0
E128: 0
E129: 0
E130: 0
E131: 0
E132: 0
E133: 0
E134: 0
E135: 0
E136: 0
E137: 0
E138: 0
E139: 0
E140: 0
E141: 0
E142: 0
E143: 0
E144: 0
E145: 0
E146: 0
E147: 0
E148: 0
E149: 0
E150: 0
B151: TOTAL OUNCES | E151: =SUM(E75:E150) -> 0 | H151: =SUM(H75:H150) -> 0
A154: TOTAL SEEDS/FT | B154: =SUM(H33,H58,H151) -> 0 | F154: 110 - 200 seeds/ft2
A156: PERCENT GRASS | B156: =PRODUCT(H33/B154) ->  | E156: Recommended Percentage: Wet Meadow 20 - 60%, Sedge Meadow 20 - 50%
A157: PERCENT SEDGE/RUSH | B157: =PRODUCT(H58/B154) ->  | E157: Recommended Percentage: Wet Meadow 15 - 60%, Sedge Meadow 40 - 70%
A158: PERCENT FORB | B158: =PRODUCT(H151/B154) ->  | E158: Recommended Percentage 15 - 35%

Sheet 657 CREP Emergent Fringe CP23A
A1: CREP 657 EMERGENT WETLAND FRINGE
A2: Seeding Design
I3: DATE | J3: =TODAY() -> 2022-06-16
A5: LANDOWNER | I5: TRACT/FIELD
A7: PLANNER | I7: ACRES SEEDED
A14: GRASS SPECIES | E14: POUNDS | F14: % OF GRASS COMPONENT | G14: % OF TOTAL MIX | H14: SEEDS/ | I14: SEEDS/ | J14: POUNDS PLS
E15: PLS/AC. | H15: SQ. FOOT | I15: SQ. FOOT
H16: GRASS | I16: At 1 lb/Ac Rate
A17: American Sloughgrass | B17: Beckmannia syzigachne | E17: 0 | F17: =PRODUCT(H17/H26)*100 ->  | G17: =PRODUCT(H17/B154)*100 ->  | H17: =PRODUCT(I17,E17) -> 0 | I17: 18.4 | J17: =PRODUCT(E17*J7) -> 0
A18: Canada Bluejoint | B18: Calamagrostis canadensis | E18: 0 | F18: =PRODUCT(H18/H26)*100 ->  | G18: =PRODUCT(H18/B154)*100 ->  | H18: 0 | I18: 102.8 | J18: =PRODUCT(E18*J7) -> 0
A19: Tall Manna Grass | B19: Glyceria grandis | E19: 0 | F19: =PRODUCT(H19/H26)*100 ->  | G19: =PRODUCT(H19/B154)*100 ->  | H19: 0 | I19: 29.38 | J19: =PRODUCT(E19*J7) -> 0
A20: Rattlesnake Manna Grass | B20: Glyceria canadensis | E20: 0 | F20: =PRODUCT(H20/H26)*100 ->  | G20: =PRODUCT(H20/B154)*100 ->  | H20: 0 | I20: 58.77 | J20: =PRODUCT(E20*J7) -> 0
A21: Rice Cut Grass | B21: Leersia oryzoides | E21: 0 | F21: =PRODUCT(H21/H26)*100 ->  | G21: =PRODUCT(H21/B154)*100 ->  | H21: 0 | I21: 12.49 | J21: =PRODUCT(E21*J7) -> 0
E22: 0 | F22: =PRODUCT(H22/H26)*100 ->  | G22: =PRODUCT(H22/B154)*100 ->  | H22: 0 | J22: =PRODUCT(E22*J7) -> 0
E23: 0 | F23: =PRODUCT(H23/H26)*100 ->  | G23: =PRODUCT(H23/B154)*100 ->  | H23: 0 | J23: =PRODUCT(E23*J7) -> 0
E24: 0 | F24: =PRODUCT(H24/H26)*100 ->  | G24: =PRODUCT(H24/B154)*100 ->  | H24: 0 | J24: =PRODUCT(E24*J7) -> 0
E25: 0 | F25: =PRODUCT(H25/H26)*100 ->  | G25: =PRODUCT(H25/B154)*100 ->  | H25: 0 | J25: =PRODUCT(E25*J7) -> 0
A26: TOTAL POUNDS | B26: =SUM(E17:E25) -> 0 | H26: =SUM(H17:H25) -> 0
A33: SEDGE/RUSH SPECIES | E33: POUNDS | F33: % OF SEDGE COMPONENT | G33: % OF TOTAL MIX | H33: SEEDS/ | I33: SEEDS/ | J33: POUNDS PLS
E34: PLS/AC. | H34: SQ. FOOT | I34: SQ. FOOT
H35: SEDGES | I35: At 1 lb/Ac Rate
A36: Slough sedge | B36: Carex atherodes | E36: 0 | F36: =PRODUCT(H36/H58)*100 ->  | G36: =PRODUCT(H36/B154)*100 ->  | H36: =PRODUCT(I36,E36) -> 0 | I36: 10.65 | J36: =PRODUCT(E36*J7) -> 0
A37: Bottlebrush sedge | B37: Carex comosa | E37: 0 | F37: =PRODUCT(H37/H58)*100 ->  | G37: =PRODUCT(H37/B154)*100 ->  | H37: 0 | I37: 11.02 | J37: =PRODUCT(E37*J7) -> 0
A38: Porcupine sedge | B38: Carex hystericina | E38: 0 | F38: =PRODUCT(H38/H58)*100 ->  | G38: =PRODUCT(H38/B154)*100 ->  | H38: 0 | I38: 11.02 | J38: =PRODUCT(E38*J7) -> 0
A39: Lake sedge | B39: Carex lacustris | E39: 0 | F39: =PRODUCT(H39/H58)*100 ->  | G39: =PRODUCT(H39/B154)*100 ->  | H39: 0 | I39: 11.75 | J39: =PRODUCT(E39*J7) -> 0
A40: Tussock sedge | B40: Carex stricta | E40: 0 | F40: =PRODUCT(H40/H58)*100 ->  | G40: =PRODUCT(H40/B154)*100 ->  | H40: 0 | I40: 19.47 | J40: =PRODUCT(E40*J7) -> 0
A41: Fox sedge | B41: Carex vulpinoidea | E41: 0 | F41: =PRODUCT(H41/H58)*100 ->  | G41: =PRODUCT(H41/B154)*100 ->  | H41: 0 | I41: 36.73 | J41: =PRODUCT(E41*J7) -> 0
A42: Least spike-rush | B42: Eleocharis acicularis | E42: 0 | F42: =PRODUCT(H42/H58)*100 ->  | G42: =PRODUCT(H42/B154)*100 ->  | H42: 0 | I42: 25.71 | J42: =PRODUCT(E42*J7) -> 0
A43: Marsh spike-rush | B43: Eleocharis palustris | E43: 0 | F43: =PRODUCT(H43/H58)*100 ->  | G43: =PRODUCT(H43/B154)*100 ->  | H43: 0 | I43: 18.73 | J43: =PRODUCT(E43*J7) -> 0
A44: Soft rush | B44: Juncus effusus | E44: 0 | F44: =PRODUCT(H44/H58)*100 ->  | G44: =PRODUCT(H44/B154)*100 ->  | H44: 0 | I44: 367.31 | J44: =PRODUCT(E44*J7) -> 0
A45: Knotted rush | B45: Juncus nodosus | E45: 0 | F45: =PRODUCT(H45/H58)*100 ->  | G45: =PRODUCT(H45/B154)*100 ->  | H45: 0 | I45: 679.89 | J45: =PRODUCT(E45*J7) -> 0
A46: Torrey’s rush | B46: Juncus torreyi | E46: 0 | F46: =PRODUCT(H46/H58)*100 ->  | G46: =PRODUCT(H46/B154)*100 ->  | H46: 0 | I46: 587.7 | J46: =PRODUCT(E46*J7) -> 0
A47: Hard-stem bulrush | B47: Schoenoplectus acutus | E47: 0 | F47: =PRODUCT(H47/H58)*100 ->  | G47: =PRODUCT(H47/B154)*100 ->  | H47: 0 | I47: 4.74 | J47: =PRODUCT(E47*J7) -> 0
A48: River bulrush | B48: Schoenoplectus fluviatilis | E48: 0 | F48: =PRODUCT(H48/H58)*100 ->  | G48: =PRODUCT(H48/B154)*100 ->  | H48: 0 | I48: 1.58 | J48: =PRODUCT(E48*J7) -> 0
A49: Three-square bulrush | B49: Schoenoplectus pungens | E49: 0 | F49: =PRODUCT(H49/H58)*100 ->  | G49: =PRODUCT(H49/B154)*100 ->  | H49: 0 | I49: 4.41 | J49: =PRODUCT(E49*J7) -> 0
A50: Soft-stem bulrush | B50: Schoenoplectus tabernaemontani | E50: 0 | F50: =PRODUCT(H50/H58)*100 ->  | G50: =PRODUCT(H50/B154)*100 ->  | H50: 0 | I50: 11.39 | J50: =PRODUCT(E50*J7) -> 0
A51: Woolgrass | B51: Scirpus cyperinus | E51: 0 | F51: =PRODUCT(H51/H58)*100 ->  | G51: =PRODUCT(H51/B154)*100 ->  | H51: =PRODUCT(I51,E51) -> 0 | I51: 624.43 | J51: =PRODUCT(E51*J7) -> 0
A52: Giant bur-reed | B52: Sparganium eurycarpum | E52: 0 | F52: =PRODUCT(H52/H58)*100 ->  | G52: =PRODUCT(H52/B154)*100 ->  | H52: 0 | I52: 0.01 | J52: =PRODUCT(E52*J7) -> 0
E53: 0 | F53: =PRODUCT(H53/H58)*100 ->  | G53: =PRODUCT(H53/B154)*100 ->  | H53: 0 | J53: =PRODUCT(E53*J7) -> 0
E54: 0 | F54: =PRODUCT(H54/H58)*100 ->  | G54: =PRODUCT(H54/B154)*100 ->  | H54: 0 | J54: =PRODUCT(E54*J7) -> 0
E55: 0 | F55: =PRODUCT(H55/H58)*100 ->  | G55: =PRODUCT(H55/B154)*100 ->  | H55: 0 | J55: =PRODUCT(E55*J7) -> 0
E56: 0 | F56: =PRODUCT(H56/H58)*100 ->  | G56: =PRODUCT(H56/B154)*100 ->  | H56: 0 | J56: =PRODUCT(E56*J7) -> 0
E57: 0 | F57: =PRODUCT(H57/H58)*100 ->  | G57: =PRODUCT(H57/B154)*100 ->  | H57: 0 | J57: =PRODUCT(E57*J7) -> 0
A58: TOTAL POUNDS | B58: =SUM(E36:E57) -> 0 | H58: =SUM(H36:H57) -> 0
A72: FORB SPECIES | E72: OUNCES | F72: % OF FORB COMPONENT | G72: % OF TOTAL MIX | H72: SEEDS/ | I72: SEEDS/ | J72: OUNCES PLS
E73: PLS/AC. | H73: SQ. FOOT | I73: SQ. FOOT
H74: FORBS | I74: At 1 oz/Ac Rate
A75: Sweet flag | B75: Acorus americanus | E75: 0 | F75: =PRODUCT(H75/H151)*100 ->  | G75: =PRODUCT(H75/B154)*100 ->  | H75: =PRODUCT(I75,E75) -> 0 | I75: 0.15 | J75: =PRODUCT(E75*J7) -> 0
A76: Water plantain | B76: Alisma subcordatum | E76: 0 | F76: =PRODUCT(H76/H151)*100 ->  | G76: =PRODUCT(H76/B154)*100 ->  | H76: =PRODUCT(I76,E76) -> 0 | I76: 1.5 | J76: =PRODUCT(E76*J7) -> 0
A77: Marsh milkweed | B77: Asclepias incarnata | E77: 0 | F77: =PRODUCT(H77/H151)*100 ->  | G77: =PRODUCT(H77/B154)*100 ->  | H77: =PRODUCT(I77,E77) -> 0 | I77: 0.11 | J77: =PRODUCT(E77*J7) -> 0
A78: Joe-pye weed | B78: Eutrochium maculatum | E78: 0 | F78: =PRODUCT(H78/H151)*100 ->  | G78: =PRODUCT(H78/B154)*100 ->  | H78: 0 | I78: 2.18 | J78: =PRODUCT(E78*J7) -> 0
A79: Water smartweed | B79: Polygonum amphibium | E79: 0 | F79: =PRODUCT(H79/H151)*100 ->  | G79: =PRODUCT(H79/B154)*100 ->  | H79: 0 | I79: 0.18 | J79: =PRODUCT(E79*J7) -> 0
A80: Great water dock | B80: Rumex orbiculatus | E80: 0 | F80: =PRODUCT(H80/H151)*100 ->  | G80: =PRODUCT(H80/B154)*100 ->  | H80: 0 | I80: 0.27 | J80: =PRODUCT(E80*J7) -> 0
A81: Broad-leaved arrowhead | B81: Sagittaria latifolia | E81: 0 | F81: =PRODUCT(H81/H151)*100 ->  | G81: =PRODUCT(H81/B154)*100 ->  | H81: 0 | I81: 1.4 | J81: =PRODUCT(E81*J7) -> 0
E82: 0 | F82: =PRODUCT(H82/H151)*100 ->  | G82: =PRODUCT(H82/B154)*100 ->  | H82: 0 | J82: =PRODUCT(E82*J7) -> 0
E83: 0 | F83: =PRODUCT(H83/H151)*100 ->  | G83: =PRODUCT(H83/B154)*100 ->  | H83: 0 | J83: =PRODUCT(E83*J7) -> 0
E84: 0 | F84: =PRODUCT(H84/H151)*100 ->  | G84: =PRODUCT(H84/B154)*100 ->  | H84: 0 | J84: =PRODUCT(E84*J7) -> 0
E85: 0 | F85: =PRODUCT(H85/H151)*100 ->  | G85: =PRODUCT(H85/B154)*100 ->  | H85: 0 | J85: =PRODUCT(E85*J7) -> 0
E86: 0
E87: 0
E88: 0
E89: 0
E90: 0
E91: 0
E92: 0
E93: 0
E94: 0
E95: 0
E96: 0
E97: 0
E98: 0
E99: 0
E100: 0
E101: 0
E102: 0
E103: 0
E104: 0
E105: 0
E106: 0
E107: 0
E108: 0
E109: 0
E110: 0
E111: 0
E112: 0
E113: 0
E114: 0
E115: 0
E116: 0
E117: 0
E118: 0
E119: 0
E120: 0
E121: 0
E122: 0
E123: 0
E124: 0
E125: 0
E126: 0
E127: 0
E128: 0
E129: 0
E130: 0
E131: 0
E132: 0
E133: 0
E134: 0
E135: 0
E136: 0
E137: 0
E138: 0
E139: 0
E140: 0
E141: 0
E142: 0
E143: 0
E144: 0
E145: 0
E146: 0
E147: 0
E148: 0
E149: 0
E150: 0
B151: TOTAL OUNCES | E151: =SUM(E75:E150) -> 0 | H151: =SUM(H75:H150) -> 0
A154: TOTAL SEEDS/FT | B154: =SUM(H26,H58,H151) -> 0 | F154: 110 - 200 seeds/ft2
A156: PERCENT GRASS | B156: =PRODUCT(H26/B154) ->  | F156: Recommended Percentage 20 - 65%
A157: PERCENT SEDGE/RUSH | B157: =PRODUCT(H58/B154) ->  | F157: Recommended Percentage 20 - 65%
A158: PERCENT FORB | B158: =PRODUCT(H151/B154) ->  | F158: Recommended Percentage 15 - 30%
